{"text_format":"1","workbook":"xlsx","n_sheets":6,"sheets":["Summary","Rank","Review","Price","Waiting","DataBase"],"not_rendered":{"charts":15,"images":33,"macros":1,"external_links":0,"defined_names":6,"comments":0,"pivot_tables":0},"unopened":[],"bounds":{"document_bytes":16777216,"sheet_cells":100000,"rows_first":2000,"rows_last":500,"rows_between":2000,"halvings":0,"cell_chars":16384,"cell_head_chars":4096},"cells_cut":0,"cells_raw":0,"read":"whole","date_system":"1900"}

{"sheet":"Summary","index":0,"n_rows":103,"n_cols":11,"rows_kept":103,"cut":false,"hidden":true,"merged":[[98,3,98,6],[84,3,84,6],[86,3,86,6],[88,3,88,6],[90,3,90,6],[96,3,96,6],[50,3,50,6],[48,3,48,6],[70,3,70,6],[68,3,68,6],[66,3,66,6],[7,28,7,35],[12,1,15,1],[16,1,18,1],[19,1,22,1],[6,1,8,1],[6,13,8,13],[12,3,12,6],[14,3,14,6],[16,3,16,6],[18,3,18,6],[20,3,20,6],[22,3,22,6],[6,26,8,26],[7,3,7,10],[7,15,7,22],[10,3,10,6],[0,26,0,36],[4,1,5,1],[4,3,4,10],[4,13,5,13],[4,15,4,22],[4,26,5,26],[4,28,4,35],[5,3,5,10],[5,15,5,22],[5,28,5,35],[0,1,2,11],[0,13,0,23],[100,3,100,6],[102,3,102,6],[92,3,92,10],[46,3,46,6],[78,3,78,6],[80,3,80,6],[82,3,82,6],[64,3,64,6],[74,3,74,6],[72,3,72,6],[54,3,54,6],[56,3,56,6],[58,3,58,6],[60,3,60,6],[62,3,62,6],[94,3,94,6],[23,1,26,1],[27,1,30,1],[28,3,28,6],[24,3,24,6],[44,3,44,6],[42,3,42,6],[26,3,26,6],[30,3,30,6],[32,1,103,1],[32,3,32,6],[34,3,34,6],[36,3,36,6],[38,3,38,6],[40,3,40,6],[76,3,76,6],[52,3,52,6]]}
[null,"N 쇼핑 상품검색"]
[]
[]
[]
[null,"N 쇼핑 키워드 추천",null,{"$f":"+DataBase!$A$16","v":"                  "}]
[null,null,null,{"$f":"+DataBase!$A$17","v":"                  "}]
[null,"N 검색 연관 검색어"]
[null,null,null,{"$f":"+DataBase!$A$18","v":"유아책상  어린이 의자  어린이책상의자  어린이책상세트  책상  이케아 어린이 책상  시디즈 어린이 의자  원목어린이책상  제롬 모션데스크  일룸 제롬"}]
[]
[]
[null,"어린이 책상",null,"랭킹순",null,null,null,"상호명",{"$f":"ROUNDUP(AVERAGE(I13:I91),-2)","v":355100},"구매건수","리뷰수"]
[]
[null,null,{"$f":"IFERROR(INT(IF(DataBase!P30<6,DataBase!P30,\"\")),\"\")","v":""},{"$f":"+DataBase!B30","v":"[리바트하움] 신학기 초등학생 초등학교책상세트"},null,null,null,{"$f":"+DataBase!C30","v":"한국오피스"},{"$f":"+DataBase!D30","v":297000},{"$f":"+DataBase!E30","v":13},{"$f":"+DataBase!F30","v":1}]
[]
[null,null,{"$f":"IFERROR(INT(IF(DataBase!P31<6,DataBase!P31,\"\")),\"\")","v":""},{"$f":"+DataBase!B31","v":"니스툴그로우 초등학생 높이 각도조절 책상 의자"},null,null,null,{"$f":"+DataBase!C31","v":"더월"},{"$f":"+DataBase!D31","v":899000},{"$f":"+DataBase!E31","v":0},{"$f":"+DataBase!F31","v":9}]
[]
[null,null,{"$f":"IFERROR(INT(IF(DataBase!P32<6,DataBase!P32,\"\")),\"\")","v":""},{"$f":"+DataBase!B32","v":"오피스보이 AP 웨이브 일자사무실책상 국산몰딩"},null,null,null,{"$f":"+DataBase!C32","v":"오피스보이"},{"$f":"+DataBase!D32","v":80300},{"$f":"+DataBase!E32","v":0},{"$f":"+DataBase!F32","v":0}]
[]
[null,null,{"$f":"IFERROR(INT(IF(DataBase!P33<6,DataBase!P33,\"\")),\"\")","v":4},{"$f":"+DataBase!B33","v":"[루나랩 키즈] 어린이 초등학생 바른자세 책상, 학생 공부 높이 각도 조절"},null,null,null,{"$f":"+DataBase!C33","v":"루나랩 키즈"},{"$f":"+DataBase!D33","v":269000},{"$f":"+DataBase!E33","v":2862},{"$f":"+DataBase!F33","v":2125}]
[]
[null,null,{"$f":"IFERROR(INT(IF(DataBase!P34<6,DataBase!P34,\"\")),\"\")","v":4},{"$f":"+DataBase!B34","v":"[데스커] 신학기 책상세트"},null,null,null,{"$f":"+DataBase!C34","v":"데스커"},{"$f":"+DataBase!D34","v":319000},{"$f":"+DataBase!E34","v":8270},{"$f":"+DataBase!F34","v":7360}]
[]
[null,null,{"$f":"IFERROR(INT(IF(DataBase!P35<6,DataBase!P35,\"\")),\"\")","v":""},{"$f":"+DataBase!B35","v":"일룸 링키플러스 1200폭 일반형 책상"},null,null,null,{"$f":"+DataBase!C35","v":0},{"$f":"+DataBase!D35","v":150000},{"$f":"+DataBase!E35","v":0},{"$f":"+DataBase!F35","v":1478}]
[]
[null,null,{"$f":"IFERROR(INT(IF(DataBase!P36<6,DataBase!P36,\"\")),\"\")","v":""},{"$f":"+DataBase!B36","v":"초등학생 책상 어린이 각도조절 초등"},null,null,null,{"$f":"+DataBase!C36","v":"리빙유피"},{"$f":"+DataBase!D36","v":143000},{"$f":"+DataBase!E36","v":365},{"$f":"+DataBase!F36","v":659}]
[]
[null,null,{"$f":"IFERROR(INT(IF(DataBase!P37<6,DataBase!P37,\"\")),\"\")","v":""},{"$f":"+DataBase!B37","v":"한샘 하이 높이 각도 조절 책상 1200"},null,null,null,{"$f":"+DataBase!C37","v":0},{"$f":"+DataBase!D37","v":299450},{"$f":"+DataBase!E37","v":0},{"$f":"+DataBase!F37","v":808}]
[]
[null,null,{"$f":"IFERROR(INT(IF(DataBase!P38<6,DataBase!P38,\"\")),\"\")","v":4},{"$f":"+DataBase!B38","v":"[데스커] 신학기 책상세트"},null,null,null,{"$f":"+DataBase!C38","v":"데스커"},{"$f":"+DataBase!D38","v":319000},{"$f":"+DataBase!E38","v":8270},{"$f":"+DataBase!F38","v":7360}]
[]
[null,null,{"$f":"IFERROR(INT(IF(DataBase!P39<6,DataBase!P39,\"\")),\"\")","v":""},{"$f":"+DataBase!B39","v":"스터디업 데스크 스텐다드 그레이 어린이 아동 초등학생 높이 각도조절책상"},null,null,null,{"$f":"+DataBase!C39","v":"엑세스엠"},{"$f":"+DataBase!D39","v":249000},{"$f":"+DataBase!E39","v":295},{"$f":"+DataBase!F39","v":150}]
[]
[null,null,{"$f":"IFERROR(INT(IF(DataBase!P40<6,DataBase!P40,\"\")),\"\")","v":""},{"$f":"+DataBase!B40","v":"컴프프로 퍼펙트1200 책상"},null,null,null,{"$f":"+DataBase!C40","v":0},{"$f":"+DataBase!D40","v":566790},{"$f":"+DataBase!E40","v":0},{"$f":"+DataBase!F40","v":20}]
[]
[null,null,{"$f":"IFERROR(INT(IF(DataBase!P41<6,DataBase!P41,\"\")),\"\")","v":""},{"$f":"+DataBase!B41","v":"마카롱 2인용 트윈 각도조절 쌍둥이 초등학생 책상 세트"},null,null,null,{"$f":"+DataBase!C41","v":"힐링가구"},{"$f":"+DataBase!D41","v":580000},{"$f":"+DataBase!E41","v":83},{"$f":"+DataBase!F41","v":139}]
[]
[null,null,{"$f":"IFERROR(INT(IF(DataBase!P42<6,DataBase!P42,\"\")),\"\")","v":""},{"$f":"+DataBase!B42","v":"[위드그로우]스마트2.0 어린이 바른자세 높이각도조절 초등학생 책상 1200(그레이)"},null,null,null,{"$f":"+DataBase!C42","v":"하로스토어"},{"$f":"+DataBase!D42","v":299000},{"$f":"+DataBase!E42","v":159},{"$f":"+DataBase!F42","v":85}]
[]
[null,null,{"$f":"IFERROR(INT(IF(DataBase!P43<6,DataBase!P43,\"\")),\"\")","v":1},{"$f":"+DataBase!B43","v":"신학기입학기념 행사 BTS 초등학생 키즈 어린이 책상 세트 구성 E0등급"},null,null,null,{"$f":"+DataBase!C43","v":"가구컴퍼스"},{"$f":"+DataBase!D43","v":75500},{"$f":"+DataBase!E43","v":1127},{"$f":"+DataBase!F43","v":1250}]
[]
[null,null,{"$f":"IFERROR(INT(IF(DataBase!P44<6,DataBase!P44,\"\")),\"\")","v":""},{"$f":"+DataBase!B44","v":"리바트 뚜뚜 높이조절 아이 책상"},null,null,null,{"$f":"+DataBase!C44","v":0},{"$f":"+DataBase!D44","v":66900},{"$f":"+DataBase!E44","v":0},{"$f":"+DataBase!F44","v":707}]
[]
[null,null,{"$f":"IFERROR(INT(IF(DataBase!P45<6,DataBase!P45,\"\")),\"\")","v":""},{"$f":"+DataBase!B45","v":"일룸 로이모노 1200폭 5단 책상세트 D600"},null,null,null,{"$f":"+DataBase!C45","v":0},{"$f":"+DataBase!D45","v":499000},{"$f":"+DataBase!E45","v":0},{"$f":"+DataBase!F45","v":257}]
[]
[null,null,{"$f":"IFERROR(INT(IF(DataBase!P46<6,DataBase!P46,\"\")),\"\")","v":""},{"$f":"+DataBase!B46","v":"한샘 티오 그로우 각도조절 책상세트 5단 120x75cm"},null,null,null,{"$f":"+DataBase!C46","v":0},{"$f":"+DataBase!D46","v":354580},{"$f":"+DataBase!E46","v":0},{"$f":"+DataBase!F46","v":44}]
[]
[null,null,{"$f":"IFERROR(INT(IF(DataBase!P47<6,DataBase!P47,\"\")),\"\")","v":""},{"$f":"+DataBase!B47","v":"한샘 티오 그로우 일반책상세트 5단 120x60cm"},null,null,null,{"$f":"+DataBase!C47","v":0},{"$f":"+DataBase!D47","v":249010},{"$f":"+DataBase!E47","v":0},{"$f":"+DataBase!F47","v":101}]
[]
[null,null,{"$f":"IFERROR(INT(IF(DataBase!P48<6,DataBase!P48,\"\")),\"\")","v":""},{"$f":"+DataBase!B48","v":"엠리빙 폴라리스 높이조절 어린이책상 각도조절 초등학생책상 유아 의자"},null,null,null,{"$f":"+DataBase!C48","v":"엠리빙"},{"$f":"+DataBase!D48","v":135000},{"$f":"+DataBase!E48","v":136},{"$f":"+DataBase!F48","v":182}]
[]
[null,null,{"$f":"IFERROR(INT(IF(DataBase!P49<6,DataBase!P49,\"\")),\"\")","v":""},{"$f":"+DataBase!B49","v":"일룸 팅클팝 피넛형 그로잉책상 1200폭"},null,null,null,{"$f":"+DataBase!C49","v":0},{"$f":"+DataBase!D49","v":169000},{"$f":"+DataBase!E49","v":0},{"$f":"+DataBase!F49","v":3854}]
[]
[null,null,{"$f":"IFERROR(INT(IF(DataBase!P50<6,DataBase!P50,\"\")),\"\")","v":""},{"$f":"+DataBase!B50","v":"일룸 링키플러스 1200폭 측판형 책상"},null,null,null,{"$f":"+DataBase!C50","v":0},{"$f":"+DataBase!D50","v":265000},{"$f":"+DataBase!E50","v":0},{"$f":"+DataBase!F50","v":171}]
[]
[null,null,{"$f":"IFERROR(INT(IF(DataBase!P51<6,DataBase!P51,\"\")),\"\")","v":""},{"$f":"+DataBase!B51","v":"일룸 팅클팝 피넛형 좌식책상 800폭"},null,null,null,{"$f":"+DataBase!C51","v":0},{"$f":"+DataBase!D51","v":99000},{"$f":"+DataBase!E51","v":0},{"$f":"+DataBase!F51","v":2554}]
[]
[null,null,{"$f":"IFERROR(INT(IF(DataBase!P52<6,DataBase!P52,\"\")),\"\")","v":""},{"$f":"+DataBase!B52","v":"일룸 링키플러스 스마트데스크 각도조절 책상"},null,null,null,{"$f":"+DataBase!C52","v":0},{"$f":"+DataBase!D52","v":389000},{"$f":"+DataBase!E52","v":0},{"$f":"+DataBase!F52","v":1444}]
[]
[null,null,{"$f":"IFERROR(INT(IF(DataBase!P53<6,DataBase!P53,\"\")),\"\")","v":""},{"$f":"+DataBase!B53","v":"루나랩 키즈 어린이 초등학생 바른자세 책상"},null,null,null,{"$f":"+DataBase!C53","v":"루나랩 키즈"},{"$f":"+DataBase!D53","v":269000},{"$f":"+DataBase!E53","v":2862},{"$f":"+DataBase!F53","v":2121}]
[]
[null,null,{"$f":"IFERROR(INT(IF(DataBase!P54<6,DataBase!P54,\"\")),\"\")","v":""},{"$f":"+DataBase!B54","v":"니스툴그로우 높이각도조절 초등학생책상 책장세트"},null,null,null,{"$f":"+DataBase!C54","v":"더월"},{"$f":"+DataBase!D54","v":1148000},{"$f":"+DataBase!E54","v":0},{"$f":"+DataBase!F54","v":69}]
[]
[null,null,{"$f":"IFERROR(INT(IF(DataBase!P55<6,DataBase!P55,\"\")),\"\")","v":""},{"$f":"+DataBase!B55","v":"이안비즈 높이 각도 조절 브레이니 어린이책상"},null,null,null,{"$f":"+DataBase!C55","v":"이안비즈"},{"$f":"+DataBase!D55","v":138000},{"$f":"+DataBase!E55","v":61},{"$f":"+DataBase!F55","v":172}]
[]
[null,null,{"$f":"IFERROR(INT(IF(DataBase!P56<6,DataBase!P56,\"\")),\"\")","v":""},{"$f":"+DataBase!B56","v":"스터디업 데스크 스텐다드 핑크 높이 각도조절 어린이 아동 초등학생 책상"},null,null,null,{"$f":"+DataBase!C56","v":"엑세스엠"},{"$f":"+DataBase!D56","v":249000},{"$f":"+DataBase!E56","v":52},{"$f":"+DataBase!F56","v":20}]
[]
[null,null,{"$f":"IFERROR(INT(IF(DataBase!P57<6,DataBase!P57,\"\")),\"\")","v":""},{"$f":"+DataBase!B57","v":"[일룸] 제롬 키즈 모션데스크"},null,null,null,{"$f":"+DataBase!C57","v":"iloom일룸"},{"$f":"+DataBase!D57","v":999000},{"$f":"+DataBase!E57","v":31},{"$f":"+DataBase!F57","v":5}]
[]
[null,null,{"$f":"IFERROR(INT(IF(DataBase!P58<6,DataBase!P58,\"\")),\"\")","v":""},{"$f":"+DataBase!B58","v":"이케아 FLISAT 플리사트 어린이책상 3단 높이조절책상"},null,null,null,{"$f":"+DataBase!C58","v":0},{"$f":"+DataBase!D58","v":58500},{"$f":"+DataBase!E58","v":0},{"$f":"+DataBase!F58","v":44}]
[]
[null,null,{"$f":"IFERROR(INT(IF(DataBase!P59<6,DataBase!P59,\"\")),\"\")","v":""},{"$f":"+DataBase!B59","v":"[위드그로우]컴포트 어린이 바른자세 초등학생 책상 지니의자 세트"},null,null,null,{"$f":"+DataBase!C59","v":"하로스토어"},{"$f":"+DataBase!D59","v":338000},{"$f":"+DataBase!E59","v":70},{"$f":"+DataBase!F59","v":20}]
[]
[null,null,{"$f":"IFERROR(INT(IF(DataBase!P60<6,DataBase!P60,\"\")),\"\")","v":""},{"$f":"+DataBase!B60","v":"한샘 하이 높이 각도 조절 책상세트 5단 1200"},null,null,null,{"$f":"+DataBase!C60","v":0},{"$f":"+DataBase!D60","v":490070},{"$f":"+DataBase!E60","v":0},{"$f":"+DataBase!F60","v":188}]
[]
[null,null,{"$f":"IFERROR(INT(IF(DataBase!P61<6,DataBase!P61,\"\")),\"\")","v":""},{"$f":"+DataBase!B61","v":"일룸 로이모노 다리형 책상 1400폭 D600"},null,null,null,{"$f":"+DataBase!C61","v":0},{"$f":"+DataBase!D61","v":199000},{"$f":"+DataBase!E61","v":0},{"$f":"+DataBase!F61","v":167}]
[]
[null,null,{"$f":"IFERROR(INT(IF(DataBase!P62<6,DataBase!P62,\"\")),\"\")","v":2},{"$f":"+DataBase!B62","v":"로니 초등학생책상 남아 초등여아 초등생 여자아이 책상"},null,null,null,{"$f":"+DataBase!C62","v":"블레스가구"},{"$f":"+DataBase!D62","v":77000},{"$f":"+DataBase!E62","v":426},{"$f":"+DataBase!F62","v":239}]
[]
[null,null,{"$f":"IFERROR(INT(IF(DataBase!P63<6,DataBase!P63,\"\")),\"\")","v":""},{"$f":"+DataBase!B63","v":"한샘 티오 일반 책상세트 5단 120cm"},null,null,null,{"$f":"+DataBase!C63","v":0},{"$f":"+DataBase!D63","v":268690},{"$f":"+DataBase!E63","v":0},{"$f":"+DataBase!F63","v":913}]
[]
[null,null,{"$f":"IFERROR(INT(IF(DataBase!P64<6,DataBase!P64,\"\")),\"\")","v":""},{"$f":"+DataBase!B64","v":"라일리 어린이 성장형 기능성 각도조절 높이조절 초등학생책상 (책장포함)"},null,null,null,{"$f":"+DataBase!C64","v":"가구컴퍼스"},{"$f":"+DataBase!D64","v":248800},{"$f":"+DataBase!E64","v":147},{"$f":"+DataBase!F64","v":122}]
[]
[null,null,{"$f":"IFERROR(INT(IF(DataBase!P65<6,DataBase!P65,\"\")),\"\")","v":""},{"$f":"+DataBase!B65","v":"일룸 로이 1400폭 5단 다리형 책상 SET"},null,null,null,{"$f":"+DataBase!C65","v":0},{"$f":"+DataBase!D65","v":685000},{"$f":"+DataBase!E65","v":0},{"$f":"+DataBase!F65","v":155}]
[]
[null,null,{"$f":"IFERROR(INT(IF(DataBase!P66<6,DataBase!P66,\"\")),\"\")","v":""},{"$f":"+DataBase!B66","v":"일룸 로이모노 1400폭 5단 책상세트 D600"},null,null,null,{"$f":"+DataBase!C66","v":0},{"$f":"+DataBase!D66","v":599000},{"$f":"+DataBase!E66","v":0},{"$f":"+DataBase!F66","v":94}]
[]
[null,null,{"$f":"IFERROR(INT(IF(DataBase!P67<6,DataBase!P67,\"\")),\"\")","v":""},{"$f":"+DataBase!B67","v":"위드그로우 엘리트 책상 어린이 바른자세 높이각도조절 초등학생 책상"},null,null,null,{"$f":"+DataBase!C67","v":0},{"$f":"+DataBase!D67","v":269000},{"$f":"+DataBase!E67","v":0},{"$f":"+DataBase!F67","v":260}]
[]
[null,null,{"$f":"IFERROR(INT(IF(DataBase!P68<6,DataBase!P68,\"\")),\"\")","v":""},{"$f":"+DataBase!B68","v":"[러브포엠] 이케아 PÅHL 폴 책상 화이트,핑크 ,블루,그린 3단높이 조절 책상"},null,null,null,{"$f":"+DataBase!C68","v":"LOVE POEM"},{"$f":"+DataBase!D68","v":74900},{"$f":"+DataBase!E68","v":14},{"$f":"+DataBase!F68","v":1}]
[]
[null,null,{"$f":"IFERROR(INT(IF(DataBase!P69<6,DataBase!P69,\"\")),\"\")","v":""},{"$f":"+DataBase!B69","v":"일룸 이타카네오 1400폭 7단 모션데스크 세트"},null,null,null,{"$f":"+DataBase!C69","v":0},{"$f":"+DataBase!D69","v":1318000},{"$f":"+DataBase!E69","v":0},{"$f":"+DataBase!F69","v":32}]
[]
[null,null,null,"데이터 조건 지수 상위 5 [ ▼ 가격  VS  ▲ 구매&리뷰]"]
[]
[null,null,1,{"$f":"IFERROR(VLOOKUP($C95,$C$13:$K$91,2,FALSE),)","v":"신학기입학기념 행사 BTS 초등학생 키즈 어린이 책상 세트 구성 E0등급"},null,null,null,{"$f":"IFERROR(VLOOKUP($C95,$C$13:$K$91,6,FALSE),)","v":"가구컴퍼스"},{"$f":"IFERROR(VLOOKUP($C95,$C$13:$K$91,7,FALSE),)","v":75500},{"$f":"IFERROR(VLOOKUP($C95,$C$13:$K$91,8,FALSE),)","v":1127},{"$f":"IFERROR(VLOOKUP($C95,$C$13:$K$91,9,FALSE),)","v":1250}]
[]
[null,null,2,{"$f":"IFERROR(VLOOKUP($C97,$C$13:$K$91,2,FALSE),)","v":"로니 초등학생책상 남아 초등여아 초등생 여자아이 책상"},null,null,null,{"$f":"IFERROR(VLOOKUP($C97,$C$13:$K$91,6,FALSE),)","v":"블레스가구"},{"$f":"IFERROR(VLOOKUP($C97,$C$13:$K$91,7,FALSE),)","v":77000},{"$f":"IFERROR(VLOOKUP($C97,$C$13:$K$91,8,FALSE),)","v":426},{"$f":"IFERROR(VLOOKUP($C97,$C$13:$K$91,9,FALSE),)","v":239}]
[]
[null,null,3,{"$f":"IFERROR(VLOOKUP($C99,$C$13:$K$91,2,FALSE),)","v":0},null,null,null,{"$f":"IFERROR(VLOOKUP($C99,$C$13:$K$91,6,FALSE),)","v":0},{"$f":"IFERROR(VLOOKUP($C99,$C$13:$K$91,7,FALSE),)","v":0},{"$f":"IFERROR(VLOOKUP($C99,$C$13:$K$91,8,FALSE),)","v":0},{"$f":"IFERROR(VLOOKUP($C99,$C$13:$K$91,9,FALSE),)","v":0}]
[]
[null,null,4,{"$f":"IFERROR(VLOOKUP($C101,$C$13:$K$91,2,FALSE),)","v":"[루나랩 키즈] 어린이 초등학생 바른자세 책상, 학생 공부 높이 각도 조절"},null,null,null,{"$f":"IFERROR(VLOOKUP($C101,$C$13:$K$91,6,FALSE),)","v":"루나랩 키즈"},{"$f":"IFERROR(VLOOKUP($C101,$C$13:$K$91,7,FALSE),)","v":269000},{"$f":"IFERROR(VLOOKUP($C101,$C$13:$K$91,8,FALSE),)","v":2862},{"$f":"IFERROR(VLOOKUP($C101,$C$13:$K$91,9,FALSE),)","v":2125}]
[]
[null,null,5,{"$f":"IFERROR(VLOOKUP($C103,$C$13:$K$91,2,FALSE),)","v":0},null,null,null,{"$f":"IFERROR(VLOOKUP($C103,$C$13:$K$91,6,FALSE),)","v":0},{"$f":"IFERROR(VLOOKUP($C103,$C$13:$K$91,7,FALSE),)","v":0},{"$f":"IFERROR(VLOOKUP($C103,$C$13:$K$91,8,FALSE),)","v":0},{"$f":"IFERROR(VLOOKUP($C103,$C$13:$K$91,9,FALSE),)","v":0}]

{"sheet":"Rank","index":1,"n_rows":94,"n_cols":9,"rows_kept":94,"cut":false,"hidden":true,"merged":[[98,4,98,5],[98,6,98,7],[92,4,92,5],[92,6,92,7],[12,1,15,1],[23,1,25,1],[19,1,22,1],[16,1,18,1],[29,1,94,1],[26,1,28,1],[24,3,25,3],[41,3,42,3],[58,3,59,3],[75,3,76,3],[82,4,82,8],[75,4,75,5],[78,9,93,10],[44,9,59,10],[61,9,76,10],[78,4,78,8],[80,4,80,8],[44,4,44,8],[46,4,46,8],[48,4,48,8],[75,6,75,7],[58,4,58,5],[58,6,58,7],[61,4,61,8],[63,4,63,8],[65,4,65,8],[6,13,8,13],[7,15,7,22],[27,4,27,8],[4,28,4,35],[5,28,5,35],[6,26,8,26],[7,28,7,35],[27,9,42,10],[29,4,29,8],[31,4,31,8],[41,4,41,5],[41,6,41,7],[0,26,0,36],[0,13,0,23],[4,13,5,13],[4,15,4,22],[5,15,5,22],[4,26,5,26],[0,1,2,11],[6,1,8,1],[14,4,14,8],[12,4,12,8],[10,4,10,8],[4,1,5,1],[7,3,7,10],[4,3,4,10],[5,3,5,10],[10,9,25,10],[24,4,24,5],[24,6,24,7]]}
[null,"N 쇼핑 상품 검색\n랭킹순"]
[]
[]
[]
[null,"N 쇼핑 키워드 추천",null,{"$f":"+DataBase!$A$16","v":"                  "}]
[null,null,null,{"$f":"+DataBase!$A$17","v":"                  "}]
[null,"N 검색 연관 검색어"]
[null,null,null,{"$f":"+DataBase!$A$18","v":"유아책상  어린이 의자  어린이책상의자  어린이책상세트  책상  이케아 어린이 책상  시디즈 어린이 의자  원목어린이책상  제롬 모션데스크  일룸 제롬"}]
[]
[]
[null,"어린이 책상",null,"상품명",{"$f":"IF(NOT(DataBase!J4=\"\"),HYPERLINK(DataBase!$B$2,DataBase!B4),IF(NOT(DataBase!K4=\"\"),HYPERLINK(DataBase!$B$2,DataBase!B4&\" [광고상품]\"),IF(NOT(DataBase!L4=\"\"),HYPERLINK(DataBase!$B$2,DataBase!B4&\" [가격비교]\"),DataBase!B4)))","v":"[리바트하움] 신학기 초등학생 초등학교책상세트 [광고상품]"}]
[]
[null,null,null,"상품상세/광고문구",{"$f":"DataBase!$Q4&\"  \"&DataBase!$R4","v":"  스토어 찜! 최대20%할인 + 추가할인쿠폰"}]
[]
[null,null,null,"검색 노출 태그",{"$f":"+DataBase!$M4","v":"신학기,독서실,초등학교"}]
[]
[null,null,null,"상호명/판매처",{"$f":"+DataBase!$I4","v":"한국오피스"},"판매랭킹",{"$f":"+DataBase!$H4","v":9},"상품등록일",{"$f":"+DataBase!$V4","v":"2021-01-22"}]
[]
[null,null,null,"가격",{"$f":"+DataBase!$C4","v":297000},"배송비",{"$f":"+DataBase!$G4","v":0},"구매건수",{"$f":"+DataBase!$D4","v":13}]
[]
[null,null,null,"찜한 수",{"$f":"+DataBase!$S4","v":" "},"파워적립포인트",{"$f":"SUBSTITUTE(SUBSTITUTE(DataBase!$N4,\"포인트\",\"\"),\"원\",\"\")","v":" 8,910"},"기본적립포인트",{"$f":"+DataBase!$P4","v":"2970"}]
[]
[]
[]
[null,null,null,null,"2주 리뷰",null,"한달 누적 리뷰",null,"전체 리뷰수"]
[null,null,null,null,{"$f":"+DataBase!T4","v":" "},{"$f":"IFERROR(E26/I26,\"\")","v":""},{"$f":"+DataBase!U4","v":" "},{"$f":"IFERROR(G26/I26,\"\")","v":""},{"$f":"+DataBase!F4","v":1}]
[]
[null,null,null,"상품명",{"$f":"IF(NOT(DataBase!J5=\"\"),HYPERLINK(DataBase!$B$2,DataBase!B5),IF(NOT(DataBase!K5=\"\"),HYPERLINK(DataBase!$B$2,DataBase!B5&\" [광고상품]\"),IF(NOT(DataBase!L5=\"\"),HYPERLINK(DataBase!$B$2,DataBase!B5&\" [가격비교]\"),DataBase!B5)))","v":"니스툴그로우 초등학생 높이 각도조절 책상 의자 [광고상품]"}]
[]
[null,null,null,"상품상세/광고문구",{"$f":"DataBase!$Q22&\"  \"&DataBase!$R5","v":"  "}]
[]
[null,null,null,"검색 노출 태그",{"$f":"+DataBase!$M5","v":"책상"}]
[]
[null,null,null,"상호명/판매처",{"$f":"+DataBase!$I5","v":"더월"},"판매랭킹",{"$f":"+DataBase!$H5","v":12},"상품등록일",{"$f":"+DataBase!$V5","v":"2020-09-17"}]
[]
[null,null,null,"가격",{"$f":"+DataBase!$C5","v":899000},"배송비",{"$f":"+DataBase!$G5","v":0},"구매건수",{"$f":"+DataBase!$D5","v":0}]
[]
[null,null,null,"찜한 수",{"$f":"+DataBase!$S5","v":" "},"파워적립포인트",{"$f":"SUBSTITUTE(SUBSTITUTE(DataBase!$N5,\"포인트\",\"\"),\"원\",\"\")","v":" 26,970"},"기본적립포인트",{"$f":"+DataBase!$P5","v":""}]
[]
[]
[]
[null,null,null,null,"2주 리뷰",null,"한달 누적 리뷰",null,"전체 리뷰수"]
[null,null,null,null,{"$f":"+DataBase!T5","v":" "},{"$f":"IFERROR(E43/I43,\"\")","v":""},{"$f":"+DataBase!U5","v":" "},{"$f":"IFERROR(G43/I43,\"\")","v":""},{"$f":"+DataBase!F5","v":9}]
[]
[null,null,null,"상품명",{"$f":"IF(NOT(DataBase!J6=\"\"),HYPERLINK(DataBase!$B$2,DataBase!B6),IF(NOT(DataBase!K6=\"\"),HYPERLINK(DataBase!$B$2,DataBase!B6&\" [광고상품]\"),IF(NOT(DataBase!L6=\"\"),HYPERLINK(DataBase!$B$2,DataBase!B6&\" [가격비교]\"),DataBase!B6)))","v":"오피스보이 AP 웨이브 일자사무실책상 국산몰딩 [광고상품]"}]
[]
[null,null,null,"상품상세/광고문구",{"$f":"DataBase!$Q6&\"  \"&DataBase!$R6","v":"  30년 사무용가구 전문. 이전 확장 교체 오픈 빠른문의"}]
[]
[null,null,null,"검색 노출 태그",{"$f":"+DataBase!$M6","v":0}]
[]
[null,null,null,"상호명/판매처",{"$f":"+DataBase!$I6","v":"오피스보이"},"판매랭킹",{"$f":"+DataBase!$H6","v":15},"상품등록일",{"$f":"+DataBase!$V6","v":"2017-08-22"}]
[]
[null,null,null,"가격",{"$f":"+DataBase!$C6","v":80300},"배송비",{"$f":"+DataBase!$G6","v":0},"구매건수",{"$f":"+DataBase!$D6","v":0}]
[]
[null,null,null,"찜한 수",{"$f":"+DataBase!$S6","v":" "},"파워적립포인트",{"$f":"SUBSTITUTE(SUBSTITUTE(DataBase!$N6,\"포인트\",\"\"),\"원\",\"\")","v":" 2,409"},"기본적립포인트",{"$f":"+DataBase!$P6","v":""}]
[]
[]
[]
[null,null,null,null,"2주 리뷰",null,"한달 누적 리뷰",null,"전체 리뷰수"]
[null,null,null,null,{"$f":"+DataBase!T6","v":" "},{"$f":"IFERROR(E60/I60,\"\")","v":""},{"$f":"+DataBase!$U6","v":" "},{"$f":"IFERROR(G60/I60,\"\")","v":""},{"$f":"+DataBase!F6","v":0}]
[]
[null,null,null,"상품명",{"$f":"IF(NOT(DataBase!J7=\"\"),HYPERLINK(DataBase!$B$2,DataBase!B7),IF(NOT(DataBase!K7=\"\"),HYPERLINK(DataBase!$B$2,DataBase!B7&\" [광고상품]\"),IF(NOT(DataBase!L7=\"\"),HYPERLINK(DataBase!$B$2,DataBase!B7&\" [가격비교]\"),DataBase!B7)))","v":"[루나랩 키즈] 어린이 초등학생 바른자세 책상, 학생 공부 높이 각도 조절"}]
[]
[null,null,null,"상품상세/광고문구",{"$f":"DataBase!$Q7&\"  \"&DataBase!$R7","v":"전면책상|E0(친환경)|책상단품|각도조절|높이조절|가방걸이|태블릿 거치대|철재|합성목재|플라스틱|1190mm  "}]
[]
[null,null,null,"검색 노출 태그",{"$f":"+DataBase!$M7","v":"초등학생의자,초등학생책상,아이책상,초등책상,책상"}]
[]
[null,null,null,"상호명/판매처",{"$f":"+DataBase!$I7","v":"루나랩 키즈"},"판매랭킹",{"$f":"+DataBase!$H7","v":1},"상품등록일",{"$f":"+DataBase!$V7","v":"2020-03-28"}]
[]
[null,null,null,"가격",{"$f":"+DataBase!$C7","v":269000},"배송비",{"$f":"+DataBase!$G7","v":0},"구매건수",{"$f":"+DataBase!$D7","v":2862}]
[]
[null,null,null,"찜한 수",{"$f":"+DataBase!$S7","v":6542},"파워적립포인트",{"$f":"SUBSTITUTE(SUBSTITUTE(DataBase!$N7,\"포인트\",\"\"),\"원\",\"\")","v":""},"기본적립포인트",{"$f":"+DataBase!$P7","v":"3190"}]
[]
[]
[]
[null,null,null,null,"2주 리뷰",null,"한달 누적 리뷰",null,"전체 리뷰수"]
[null,null,null,null,{"$f":"+DataBase!T7","v":" "},{"$f":"IFERROR(E77/I77,\"\")","v":""},{"$f":"+DataBase!$U7","v":" "},{"$f":"IFERROR(G77/I77,\"\")","v":""},{"$f":"+DataBase!$F7","v":2125}]
[]
[null,null,null,"상품명",{"$f":"IF(NOT(DataBase!J8=\"\"),HYPERLINK(DataBase!$B$2,DataBase!B8),IF(NOT(DataBase!K8=\"\"),HYPERLINK(DataBase!$B$2,DataBase!B8&\" [광고상품]\"),IF(NOT(DataBase!L8=\"\"),HYPERLINK(DataBase!$B$2,DataBase!B8&\" [가격비교]\"),DataBase!B8)))","v":"[데스커] 신학기 책상세트"}]
[]
[null,null,null,"상품상세/광고문구",{"$f":"DataBase!$Q8&\"  \"&DataBase!$R8","v":"일자형책상|서재형  "}]
[]
[null,null,null,"검색 노출 태그",{"$f":"+DataBase!$M8","v":"깔끔한스타일,고등학생책상,초등학생책상,중학생책상,심플한책상,감각적디자인,책상,책상세트,공부책상"}]
[]
[null,null,null,"상호명/판매처",{"$f":"+DataBase!$I8","v":"데스커"},"판매랭킹",{"$f":"+DataBase!$H8","v":2},"상품등록일",{"$f":"+DataBase!$V8","v":"2019-04-30"}]
[]
[null,null,null,"가격",{"$f":"+DataBase!$C8","v":319000},"배송비",{"$f":"+DataBase!$G8","v":0},"구매건수",{"$f":"+DataBase!$D8","v":8270}]
[]
[null,null,null,"찜한 수",{"$f":"+DataBase!$S8","v":7785},"파워적립포인트",{"$f":"SUBSTITUTE(SUBSTITUTE(DataBase!$N8,\"포인트\",\"\"),\"원\",\"\")","v":""},"기본적립포인트",{"$f":"+DataBase!$P8","v":"15950"}]
[]
[]
[]
[null,null,null,null,"2주 리뷰",null,"한달 누적 리뷰",null,"전체 리뷰수"]
[null,null,null,null,{"$f":"+DataBase!T8","v":" "},{"$f":"IFERROR(E94/I94,\"\")","v":""},{"$f":"+DataBase!$U8","v":" "},{"$f":"IFERROR(G94/I94,\"\")","v":""},{"$f":"+DataBase!$F8","v":7360}]

{"sheet":"Review","index":2,"n_rows":94,"n_cols":9,"rows_kept":94,"cut":false,"hidden":true,"merged":[[78,9,93,10],[80,4,80,8],[82,4,82,8],[92,4,92,5],[92,6,92,7],[75,3,76,3],[75,4,75,5],[75,6,75,7],[98,4,98,5],[98,6,98,7],[78,4,78,8],[46,4,46,8],[48,4,48,8],[61,4,61,8],[61,9,76,10],[63,4,63,8],[65,4,65,8],[6,13,8,13],[6,26,8,26],[26,1,28,1],[27,4,27,8],[27,9,42,10],[29,1,94,1],[29,4,29,8],[31,4,31,8],[41,3,42,3],[41,4,41,5],[58,3,59,3],[58,4,58,5],[58,6,58,7],[41,6,41,7],[44,4,44,8],[44,9,59,10],[10,4,10,8],[10,9,25,10],[12,1,15,1],[12,4,12,8],[14,4,14,8],[16,1,18,1],[19,1,22,1],[23,1,25,1],[24,3,25,3],[24,4,24,5],[24,6,24,7],[7,3,7,10],[7,15,7,22],[0,1,2,11],[0,13,0,23],[0,26,0,36],[4,1,5,1],[4,3,4,10],[4,13,5,13],[4,15,4,22],[4,26,5,26],[4,28,4,35],[5,3,5,10],[5,15,5,22],[5,28,5,35],[7,28,7,35],[6,1,8,1]]}
[null,"N 쇼핑 상품 검색\n리뷰 많은순"]
[]
[]
[]
[null,"N 쇼핑 키워드 추천",null,{"$f":"+DataBase!$A$16","v":"                  "}]
[null,null,null,{"$f":"+DataBase!$A$17","v":"                  "}]
[null,"N 검색 연관 검색어"]
[null,null,null,{"$f":"+DataBase!$A$18","v":"유아책상  어린이 의자  어린이책상의자  어린이책상세트  책상  이케아 어린이 책상  시디즈 어린이 의자  원목어린이책상  제롬 모션데스크  일룸 제롬"}]
[]
[]
[null,"어린이 책상",null,"상품명",{"$f":"IF(NOT(DataBase!AF4=\"\"),HYPERLINK(DataBase!$X$2,DataBase!X4),IF(NOT(DataBase!AG4=\"\"),HYPERLINK(DataBase!$X$2,DataBase!X4&\" [광고상품]\"),IF(NOT(DataBase!AH4=\"\"),HYPERLINK(DataBase!$X$2,DataBase!X4&\" [가격비교]\"),DataBase!X4)))","v":"시디즈 S500ACF 링고 학생용의자 고정형 + 발받침대 [가격비교]"}]
[]
[null,null,null,"상품상세/광고문구",{"$f":"DataBase!$AM4&\"  \"&DataBase!$AN4","v":"책상용의자|고정형의자|키즈용|발받침대포함|좌판교체|의자높낮이조절|오발시스템|발수|1인용|일체형|합성가죽|합성가죽|44cm|우레탄  "}]
[]
[null,null,null,"검색 노출 태그",{"$f":"+DataBase!$AI4","v":0}]
[]
[null,null,null,"상호명/판매처",{"$f":"+DataBase!$AE4","v":0},"판매랭킹",{"$f":"+DataBase!$AD4","v":1},"상품등록일",{"$f":"+DataBase!$AR4","v":"2015-12-24"}]
[]
[null,null,null,"가격",{"$f":"+DataBase!Y4","v":152000},"배송비",{"$f":"+DataBase!$AC4","v":0},"구매건수",{"$f":"+DataBase!$Z4","v":0}]
[]
[null,null,null,"찜한 수",{"$f":"+DataBase!$AO4","v":931},"파워적립포인트",{"$f":"SUBSTITUTE(SUBSTITUTE(DataBase!$AJ4,\"포인트\",\"\"),\"원\",\"\")","v":""},"기본적립포인트",{"$f":"+DataBase!$AL4","v":""}]
[]
[]
[]
[null,null,null,null,"2주 리뷰",null,"한달 누적 리뷰",null,"전체 리뷰수"]
[null,null,null,null,{"$f":"+DataBase!AP4","v":" "},{"$f":"IFERROR(E26/I26,\"\")","v":""},{"$f":"+DataBase!AQ4","v":" "},{"$f":"IFERROR(G26/I26,\"\")","v":""},{"$f":"+DataBase!AB4","v":13056}]
[]
[null,null,null,"상품명",{"$f":"IF(NOT(DataBase!AF5=\"\"),HYPERLINK(DataBase!$X$2,DataBase!X5),IF(NOT(DataBase!AG5=\"\"),HYPERLINK(DataBase!$X$2,DataBase!X5&\" [광고상품]\"),IF(NOT(DataBase!AH5=\"\"),HYPERLINK(DataBase!$X$2,DataBase!X5&\" [가격비교]\"),DataBase!X5)))","v":"시니프 어린이 로보 컴퓨터 초등학생의자"}]
[]
[null,null,null,"상품상세/광고문구",{"$f":"DataBase!$AM5&\"  \"&DataBase!$AN5","v":"책상용의자|학생, 성인용|손잡이포함|의자높낮이조절|오발시스템|회전식  "}]
[]
[null,null,null,"검색 노출 태그",{"$f":"+DataBase!$AI5","v":"학생의자,컴퓨터의자,공부의자,초등학생의자,회전의자,아이의자,초등학생책상의자,책상의자"}]
[]
[null,null,null,"상호명/판매처",{"$f":"+DataBase!$AE5","v":"시니프"},"판매랭킹",{"$f":"+DataBase!$AD5","v":2},"상품등록일",{"$f":"+DataBase!$AR5","v":"2018-11-14"}]
[]
[null,null,null,"가격",{"$f":"+DataBase!Y5","v":68200},"배송비",{"$f":"+DataBase!$AC5","v":0},"구매건수",{"$f":"+DataBase!$Z5","v":4048}]
[]
[null,null,null,"찜한 수",{"$f":"+DataBase!$AO5","v":1721},"파워적립포인트",{"$f":"SUBSTITUTE(SUBSTITUTE(DataBase!$AJ5,\"포인트\",\"\"),\"원\",\"\")","v":""},"기본적립포인트",{"$f":"+DataBase!$AL5","v":"882"}]
[]
[]
[]
[null,null,null,null,"2주 리뷰",null,"한달 누적 리뷰",null,"전체 리뷰수"]
[null,null,null,null,{"$f":"+DataBase!AP5","v":" "},{"$f":"IFERROR(E43/I43,\"\")","v":""},{"$f":"+DataBase!AQ5","v":" "},{"$f":"IFERROR(G43/I43,\"\")","v":""},{"$f":"+DataBase!AB5","v":8944}]
[]
[null,null,null,"상품명",{"$f":"IF(NOT(DataBase!AF6=\"\"),HYPERLINK(DataBase!$X$2,DataBase!X6),IF(NOT(DataBase!AG6=\"\"),HYPERLINK(DataBase!$X$2,DataBase!X6&\" [광고상품]\"),IF(NOT(DataBase!AH6=\"\"),HYPERLINK(DataBase!$X$2,DataBase!X6&\" [가격비교]\"),DataBase!X6)))","v":"시디즈 S500ACF 링고 고정형 학생용의자+발받침(SNA509ACF)"}]
[]
[null,null,null,"상품상세/광고문구",{"$f":"DataBase!$AM6&\"  \"&DataBase!$AN6","v":"책상용의자|학생, 성인용|메시  "}]
[]
[null,null,null,"검색 노출 태그",{"$f":"+DataBase!$AI6","v":"초등학생,초등학생의자,학생의자,공부의자"}]
[]
[null,null,null,"상호명/판매처",{"$f":"+DataBase!$AE6","v":"시디즈의자"},"판매랭킹",{"$f":"+DataBase!$AD6","v":3},"상품등록일",{"$f":"+DataBase!$AR6","v":"2018-12-02"}]
[]
[null,null,null,"가격",{"$f":"+DataBase!Y6","v":159000},"배송비",{"$f":"+DataBase!$AC6","v":0},"구매건수",{"$f":"+DataBase!$Z6","v":6263}]
[]
[null,null,null,"찜한 수",{"$f":"+DataBase!$AO6","v":532},"파워적립포인트",{"$f":"SUBSTITUTE(SUBSTITUTE(DataBase!$AJ6,\"포인트\",\"\"),\"원\",\"\")","v":""},"기본적립포인트",{"$f":"+DataBase!$AL6","v":"7950"}]
[]
[]
[]
[null,null,null,null,"2주 리뷰",null,"한달 누적 리뷰",null,"전체 리뷰수"]
[null,null,null,null,{"$f":"+DataBase!AP6","v":" "},{"$f":"IFERROR(E60/I60,\"\")","v":""},{"$f":"+DataBase!AQ6","v":" "},{"$f":"IFERROR(G60/I60,\"\")","v":""},{"$f":"+DataBase!AB6","v":7766}]
[]
[null,null,null,"상품명",{"$f":"IF(NOT(DataBase!AF7=\"\"),HYPERLINK(DataBase!$X$2,DataBase!X7),IF(NOT(DataBase!AG7=\"\"),HYPERLINK(DataBase!$X$2,DataBase!X7&\" [광고상품]\"),IF(NOT(DataBase!AH7=\"\"),HYPERLINK(DataBase!$X$2,DataBase!X7&\" [가격비교]\"),DataBase!X7)))","v":"시디즈 S500ACF 링고 고정형 학생용의자+발받침(SNA509ACF)"}]
[]
[null,null,null,"상품상세/광고문구",{"$f":"DataBase!$AM55&\"  \"&DataBase!$AN7","v":"  "}]
[]
[null,null,null,"검색 노출 태그",{"$f":"+DataBase!$AI7","v":"초등학생,초등학생의자,공부의자,책상의자,학생의자,컴퓨터의자"}]
[]
[null,null,null,"상호명/판매처",{"$f":"+DataBase!$AE7","v":"시디즈의자"},"판매랭킹",{"$f":"+DataBase!$AD7","v":4},"상품등록일",{"$f":"+DataBase!$AR7","v":"2015-08-31"}]
[]
[null,null,null,"가격",{"$f":"+DataBase!Y7","v":159000},"배송비",{"$f":"+DataBase!$AC7","v":0},"구매건수",{"$f":"+DataBase!$Z7","v":6263}]
[]
[null,null,null,"찜한 수",{"$f":"+DataBase!$AO7","v":2284},"파워적립포인트",{"$f":"SUBSTITUTE(SUBSTITUTE(DataBase!$AJ7,\"포인트\",\"\"),\"원\",\"\")","v":""},"기본적립포인트",{"$f":"+DataBase!$AL7","v":"7950"}]
[]
[]
[]
[null,null,null,null,"2주 리뷰",null,"한달 누적 리뷰",null,"전체 리뷰수"]
[null,null,null,null,{"$f":"+DataBase!AP7","v":" "},{"$f":"IFERROR(E77/I77,\"\")","v":""},{"$f":"+DataBase!AQ7","v":" "},{"$f":"IFERROR(G77/I77,\"\")","v":""},{"$f":"+DataBase!AB7","v":7766}]
[]
[null,null,null,"상품명",{"$f":"IF(NOT(DataBase!AF8=\"\"),HYPERLINK(DataBase!$X$2,DataBase!X8),IF(NOT(DataBase!AG8=\"\"),HYPERLINK(DataBase!$X$2,DataBase!X8&\" [광고상품]\"),IF(NOT(DataBase!AH8=\"\"),HYPERLINK(DataBase!$X$2,DataBase!X8&\" [가격비교]\"),DataBase!X8)))","v":"일룸 [일룸]신학기 맞이 학생가구! 인기 책상/의자/침대"}]
[]
[null,null,null,"상품상세/광고문구",{"$f":"DataBase!$AM8&\"  \"&DataBase!$AN8","v":"  "}]
[]
[null,null,null,"검색 노출 태그",{"$f":"+DataBase!$AI8","v":0}]
[]
[null,null,null,"상호명/판매처",{"$f":"+DataBase!$AE8","v":"롯데홈쇼핑"},"판매랭킹",{"$f":"+DataBase!$AD8","v":5},"상품등록일",{"$f":"+DataBase!$AR8","v":"2018-03-07"}]
[]
[null,null,null,"가격",{"$f":"+DataBase!Y8","v":599000},"배송비",{"$f":"+DataBase!$AC8","v":0},"구매건수",{"$f":"+DataBase!$Z8","v":0}]
[]
[null,null,null,"찜한 수",{"$f":"+DataBase!$AO8","v":15},"파워적립포인트",{"$f":"SUBSTITUTE(SUBSTITUTE(DataBase!$AJ8,\"포인트\",\"\"),\"원\",\"\")","v":""},"기본적립포인트",{"$f":"+DataBase!$AL8","v":""}]
[]
[]
[]
[null,null,null,null,"2주 리뷰",null,"한달 누적 리뷰",null,"전체 리뷰수"]
[null,null,null,null,{"$f":"+DataBase!AP8","v":" "},{"$f":"IFERROR(E94/I94,\"\")","v":""},{"$f":"+DataBase!AQ8","v":" "},{"$f":"IFERROR(G94/I94,\"\")","v":""},{"$f":"+DataBase!AB8","v":7408}]

{"sheet":"Price","index":3,"n_rows":94,"n_cols":9,"rows_kept":94,"cut":false,"hidden":true,"merged":[[78,9,93,10],[80,4,80,8],[82,4,82,8],[92,4,92,5],[92,6,92,7],[75,3,76,3],[75,4,75,5],[75,6,75,7],[98,4,98,5],[98,6,98,7],[78,4,78,8],[46,4,46,8],[48,4,48,8],[61,4,61,8],[61,9,76,10],[63,4,63,8],[65,4,65,8],[6,26,8,26],[7,3,7,10],[26,1,28,1],[27,4,27,8],[27,9,42,10],[29,1,94,1],[29,4,29,8],[31,4,31,8],[41,3,42,3],[41,4,41,5],[58,3,59,3],[58,4,58,5],[58,6,58,7],[41,6,41,7],[44,4,44,8],[44,9,59,10],[10,4,10,8],[10,9,25,10],[12,1,15,1],[12,4,12,8],[14,4,14,8],[16,1,18,1],[19,1,22,1],[23,1,25,1],[24,3,25,3],[24,4,24,5],[24,6,24,7],[7,15,7,22],[0,1,2,11],[0,13,0,23],[0,26,0,36],[4,1,5,1],[4,3,4,10],[4,13,5,13],[4,15,4,22],[4,26,5,26],[4,28,4,35],[5,3,5,10],[5,15,5,22],[5,28,5,35],[7,28,7,35],[6,1,8,1],[6,13,8,13]]}
[null,"N 쇼핑 상품 검색\n낮은 가격순"]
[]
[]
[]
[null,"N 쇼핑 키워드 추천",null,{"$f":"+DataBase!$A$16","v":"                  "}]
[null,null,null,{"$f":"+DataBase!$A$17","v":"                  "}]
[null,"N 검색 연관 검색어"]
[null,null,null,{"$f":"+DataBase!$A$18","v":"유아책상  어린이 의자  어린이책상의자  어린이책상세트  책상  이케아 어린이 책상  시디즈 어린이 의자  원목어린이책상  제롬 모션데스크  일룸 제롬"}]
[]
[]
[null,"어린이 책상",null,"상품명",{"$f":"IF(NOT(DataBase!BB4=\"\"),HYPERLINK(DataBase!$AT$2,DataBase!AT4),IF(NOT(DataBase!BC4=\"\"),HYPERLINK(DataBase!$AT$2,DataBase!AT4&\" [광고상품]\"),IF(NOT(DataBase!BD4=\"\"),HYPERLINK(DataBase!$AT$2,DataBase!AT4&\" [가격비교]\"),DataBase!AT4)))","v":"h형 1인용 책상 원목 컴퓨터 학생 입식 사무실 테이블"}]
[]
[null,null,null,"상품상세/광고문구",{"$f":"DataBase!$BI4&\"  \"&DataBase!$BJ4","v":"  "}]
[]
[null,null,null,"검색 노출 태그",{"$f":"+DataBase!$BE4","v":"L자형책상,철제책상,고등학생책상,공부책상,가정용책상"}]
[]
[null,null,null,"상호명/판매처",{"$f":"+DataBase!$BA4","v":"더체어컴퍼니"},"판매랭킹",{"$f":"+DataBase!$AZ4","v":1},"상품등록일",{"$f":"+DataBase!$BN4","v":"2018-03-26"}]
[]
[null,null,null,"가격",{"$f":"+DataBase!AU4","v":30000},"배송비",{"$f":"+DataBase!$AY4","v":0},"구매건수",{"$f":"+DataBase!$AV4","v":6}]
[]
[null,null,null,"찜한 수",{"$f":"+DataBase!$BK4","v":9},"파워적립포인트",{"$f":"SUBSTITUTE(SUBSTITUTE(DataBase!$BF4,\"포인트\",\"\"),\"원\",\"\")","v":""},"기본적립포인트",{"$f":"+DataBase!$BH4","v":"300"}]
[]
[]
[]
[null,null,null,null,"2주 리뷰",null,"한달 누적 리뷰",null,"전체 리뷰수"]
[null,null,null,null,{"$f":"+DataBase!BL4","v":" "},{"$f":"IFERROR(E26/I26,\"\")","v":""},{"$f":"+DataBase!BM4","v":" "},{"$f":"IFERROR(G26/I26,\"\")","v":""},{"$f":"+DataBase!AX4","v":72}]
[]
[null,null,null,"상품명",{"$f":"IF(NOT(DataBase!BB5=\"\"),HYPERLINK(DataBase!$AT$2,DataBase!AT5),IF(NOT(DataBase!BC5=\"\"),HYPERLINK(DataBase!$AT$2,DataBase!AT5&\" [광고상품]\"),IF(NOT(DataBase!BD5=\"\"),HYPERLINK(DataBase!$AT$2,DataBase!AT5&\" [가격비교]\"),DataBase!AT5)))","v":"[리퍼가구] 원목책상 수박 과일책상(CJ015-1)[S/N : 0929-16]"}]
[]
[null,null,null,"상품상세/광고문구",{"$f":"DataBase!$BI5&\"  \"&DataBase!$BJ5","v":"  "}]
[]
[null,null,null,"검색 노출 태그",{"$f":"+DataBase!$BE5","v":"유아책상,아이책상,아기책상,찻상,공부상"}]
[]
[null,null,null,"상호명/판매처",{"$f":"+DataBase!$BA5","v":"햇살맑은집"},"판매랭킹",{"$f":"+DataBase!$AZ5","v":2},"상품등록일",{"$f":"+DataBase!$BN5","v":"2020-10-24"}]
[]
[null,null,null,"가격",{"$f":"+DataBase!AU5","v":30000},"배송비",{"$f":"+DataBase!$AY5","v":0},"구매건수",{"$f":"+DataBase!$AV5","v":0}]
[]
[null,null,null,"찜한 수",{"$f":"+DataBase!$BK5","v":" "},"파워적립포인트",{"$f":"SUBSTITUTE(SUBSTITUTE(DataBase!$BF5,\"포인트\",\"\"),\"원\",\"\")","v":""},"기본적립포인트",{"$f":"+DataBase!$BH5","v":""}]
[]
[]
[]
[null,null,null,null,"2주 리뷰",null,"한달 누적 리뷰",null,"전체 리뷰수"]
[null,null,null,null,{"$f":"+DataBase!BL5","v":" "},{"$f":"IFERROR(E43/I43,\"\")","v":""},{"$f":"+DataBase!BM5","v":" "},{"$f":"IFERROR(G43/I43,\"\")","v":""},{"$f":"+DataBase!AX5","v":0}]
[]
[null,null,null,"상품명",{"$f":"IF(NOT(DataBase!BB6=\"\"),HYPERLINK(DataBase!$AT$2,DataBase!AT6),IF(NOT(DataBase!BC6=\"\"),HYPERLINK(DataBase!$AT$2,DataBase!AT6&\" [광고상품]\"),IF(NOT(DataBase!BD6=\"\"),HYPERLINK(DataBase!$AT$2,DataBase!AT6&\" [가격비교]\"),DataBase!AT6)))","v":"[꿈꾸는요셉]책상 유리 모음 GL"}]
[]
[null,null,null,"상품상세/광고문구",{"$f":"DataBase!$BI6&\"  \"&DataBase!$BJ6","v":"  "}]
[]
[null,null,null,"검색 노출 태그",{"$f":"+DataBase!$BE6","v":"책상"}]
[]
[null,null,null,"상호명/판매처",{"$f":"+DataBase!$BA6","v":"꿈꾸는요셉"},"판매랭킹",{"$f":"+DataBase!$AZ6","v":3},"상품등록일",{"$f":"+DataBase!$BN6","v":"2019-02-07"}]
[]
[null,null,null,"가격",{"$f":"+DataBase!AU6","v":30000},"배송비",{"$f":"+DataBase!$AY6","v":0},"구매건수",{"$f":"+DataBase!$AV6","v":0}]
[]
[null,null,null,"찜한 수",{"$f":"+DataBase!$BK6","v":" "},"파워적립포인트",{"$f":"SUBSTITUTE(SUBSTITUTE(DataBase!$BF6,\"포인트\",\"\"),\"원\",\"\")","v":""},"기본적립포인트",{"$f":"+DataBase!$BH6","v":""}]
[]
[]
[]
[null,null,null,null,"2주 리뷰",null,"한달 누적 리뷰",null,"전체 리뷰수"]
[null,null,null,null,{"$f":"+DataBase!BL6","v":" "},{"$f":"IFERROR(E60/I60,\"\")","v":""},{"$f":"+DataBase!BM6","v":" "},{"$f":"IFERROR(G60/I60,\"\")","v":""},{"$f":"+DataBase!AX6","v":10}]
[]
[null,null,null,"상품명",{"$f":"IF(NOT(DataBase!BB7=\"\"),HYPERLINK(DataBase!$AT$2,DataBase!AT7),IF(NOT(DataBase!BC7=\"\"),HYPERLINK(DataBase!$AT$2,DataBase!AT7&\" [광고상품]\"),IF(NOT(DataBase!BD7=\"\"),HYPERLINK(DataBase!$AT$2,DataBase!AT7&\" [가격비교]\"),DataBase!AT7)))","v":"이케아 이케아 MAMMUT 어린이 테이블 원형 블루"}]
[]
[null,null,null,"상품상세/광고문구",{"$f":"DataBase!$BI7&\"  \"&DataBase!$BJ7","v":"  "}]
[]
[null,null,null,"검색 노출 태그",{"$f":"+DataBase!$BE7","v":0}]
[]
[null,null,null,"상호명/판매처",{"$f":"+DataBase!$BA7","v":"G마켓"},"판매랭킹",{"$f":"+DataBase!$AZ7","v":4},"상품등록일",{"$f":"+DataBase!$BN7","v":"2020-12-17"}]
[]
[null,null,null,"가격",{"$f":"+DataBase!AU7","v":30010},"배송비",{"$f":"+DataBase!$AY7","v":0},"구매건수",{"$f":"+DataBase!$AV7","v":0}]
[]
[null,null,null,"찜한 수",{"$f":"+DataBase!$BK7","v":" "},"파워적립포인트",{"$f":"SUBSTITUTE(SUBSTITUTE(DataBase!$BF7,\"포인트\",\"\"),\"원\",\"\")","v":""},"기본적립포인트",{"$f":"+DataBase!$BH7","v":""}]
[]
[]
[]
[null,null,null,null,"2주 리뷰",null,"한달 누적 리뷰",null,"전체 리뷰수"]
[null,null,null,null,{"$f":"+DataBase!BL7","v":" "},{"$f":"IFERROR(E77/I77,\"\")","v":""},{"$f":"+DataBase!BM7","v":" "},{"$f":"IFERROR(G77/I77,\"\")","v":""},{"$f":"+DataBase!AX7","v":0}]
[]
[null,null,null,"상품명",{"$f":"IF(NOT(DataBase!BB8=\"\"),HYPERLINK(DataBase!$AT$2,DataBase!AT8),IF(NOT(DataBase!BC8=\"\"),HYPERLINK(DataBase!$AT$2,DataBase!AT8&\" [광고상품]\"),IF(NOT(DataBase!BD8=\"\"),HYPERLINK(DataBase!$AT$2,DataBase!AT8&\" [가격비교]\"),DataBase!AT8)))","v":"이케아 이케아 MAMMUT 어린이 테이블 원형 블루"}]
[]
[null,null,null,"상품상세/광고문구",{"$f":"DataBase!$BI8&\"  \"&DataBase!$BJ8","v":"  "}]
[]
[null,null,null,"검색 노출 태그",{"$f":"+DataBase!$BE8","v":0}]
[]
[null,null,null,"상호명/판매처",{"$f":"+DataBase!$BA8","v":"G마켓"},"판매랭킹",{"$f":"+DataBase!$AZ8","v":5},"상품등록일",{"$f":"+DataBase!$BN8","v":"2020-11-20"}]
[]
[null,null,null,"가격",{"$f":"+DataBase!AU8","v":30010},"배송비",{"$f":"+DataBase!$AY8","v":0},"구매건수",{"$f":"+DataBase!$AV8","v":0}]
[]
[null,null,null,"찜한 수",{"$f":"+DataBase!$BK8","v":1},"파워적립포인트",{"$f":"SUBSTITUTE(SUBSTITUTE(DataBase!$BF8,\"포인트\",\"\"),\"원\",\"\")","v":""},"기본적립포인트",{"$f":"+DataBase!$BH8","v":""}]
[]
[]
[]
[null,null,null,null,"2주 리뷰",null,"한달 누적 리뷰",null,"전체 리뷰수"]
[null,null,null,null,{"$f":"+DataBase!BL8","v":" "},{"$f":"IFERROR(E94/I94,\"\")","v":""},{"$f":"+DataBase!BM8","v":" "},{"$f":"IFERROR(G94/I94,\"\")","v":""},{"$f":"+DataBase!AX8","v":0}]

{"sheet":"Waiting","index":4,"n_rows":0,"n_cols":0,"rows_kept":0,"cut":false,"hidden":false,"merged":[[3,1,94,1],[0,1,2,11],[7,3,7,10],[4,3,4,10],[5,3,5,10]]}

{"sheet":"DataBase","index":5,"n_rows":70,"n_cols":66,"rows_kept":70,"cut":false,"hidden":true,"merged":[]}
["검색어",{"$f":"+Rank!B11","v":"어린이 책상"}]
[null,"https://search.shopping.naver.com/search/all?pagingIndex=1&pagingSize=10&viewType=list&sort=rel&timestamp=NVSHATC&query=%EC%96%B4%EB%A6%B0%EC%9D%B4%20%EC%B1%85%EC%83%81",null,"-360-2476-0D95","[eit`fgdb`fc]","[eit`fgdb`fc]",null,null,null,null,null,null,null,null,null,null,null,null,null,null,null,null,null,"https://search.shopping.naver.com/search/all?pagingIndex=1&pagingSize=10&viewType=list&sort=review&timestamp=NVSHATC&query=%EC%96%B4%EB%A6%B0%EC%9D%B4%20%EC%B1%85%EC%83%81",null,null,null,null,null,null,null,null,null,null,null,null,null,null,null,null,null,null,null,null,null,"https://search.shopping.naver.com/search/all?pagingIndex=1&pagingSize=10&viewType=list&sort=price_asc&timestamp=NVSHATC&query=%EC%96%B4%EB%A6%B0%EC%9D%B4%20%EC%B1%85%EC%83%81"]
["순번","상품명","가격","구매",null,"리뷰","배송비","판매랭킹","상호명","URL","Ad_URL","검색 URL","키워드","파워적립 포인트","포인트정보","기본적립 포인트","상품주요 정보","광고문구","상품찜","2주 리뷰","한달리뷰","상품등록일",null,"상품명","가격","구매","이미지","리뷰","배송비","판매랭킹","상호명","URL","Ad_URL","검색 URL","키워드","파워적립 포인트","포인트정보","기본적립 포인트","상품주요 정보","광고문구","상품찜","2주 리뷰","한달리뷰","상품등록일",null,"상품명","가격","구매","이미지","리뷰","배송비","판매랭킹","상호명","URL","Ad_URL","검색 URL","키워드","파워적립 포인트","포인트정보","기본적립 포인트","상품주요 정보","광고문구","상품찜","2주 리뷰","한달리뷰","상품등록일"]
[1,"[리바트하움] 신학기 초등학생 초등학교책상세트",297000,13,null,1,null,9,"한국오피스",null,"https://adcr.naver.com/adcr?x=zWErwGFCV4XKt057OucSFv///w==k0zSoBpfZFrDumlk+AtQRON14FuXot0jkFq6aWux/xoTrKhOLc2qumf9BqZCoMviC4Qd/Gg0IhqPopW5WRasLiZ0r70xbsEzHqVeweVXPFJ0oYktIeTO+kjr97cVCk6b2sg/C0k4FFZcoSxqSamARAs1o0w+Jl6rt1RAoelp2XDB8zuZecBb9r+JiaQf0Kzk0gj12TgwI7PjDOOVs9UafPhfwWmPs2KJL2GT/Drpcqd6s3AmzZql3OjyvjAsb8nLT+Yhlm5So1AjXsmUzfqAWxin73Kg3H4lS+ZnYOvsGfVNsEDAqceDCWy/CjsU0P8CjbPc9wvFusaAwM37jKYLqlbjMIVNP1anxastGhqIDTeWEvPkoIQdyvgJjT77nRISCr3bKX3JtcfBOK9OtvU7npQkZXBcFsFO4RpIetLIGGKQaKLyGP/Qoak8uo+Mx/z1TSR8qQw2KRhfmw1usiWiNUekTpgNOW68dXExbsr/3nbx636mYwB55KoThqdqrzjrPSa5NpQi/AUT1A7Lx2WNPIg/CJkZbDxqnpIjAlph221IoyiqC0/AdFk4eHnenKperyN6TmmHQi5X9gZr9iAKhbttYoQE1nYKH9K7TNxOyWnRAlRiSPJ1rcu3KLjgZNvxeSTdqJKR/y05Qq0K9IV2E35x+FIytJqFZKQ1a6be3YUxAdp5+3kMBYRGGdV395RpAo4D9mS52AKZb2qPWhTgH7hX/8uXZeYnI0tHBtEFfNsHmbssmTcx4achs0evgiLkCpvG9JrIFssZVgLcWgO+Mw9gpYjcufQVW5m2bj+7c1lFirfwxYDhzcJ0khHMs5MRPpo216qaoFS3YoB9qA8ePbRZ7Ge5Hh+i+wXnhhRR9wf8szANcmpEkW+pY3fW8/Th2",{"$f":"IF(K4=0,J4,K4)","v":"https://adcr.naver.com/adcr?x=zWErwGFCV4XKt057OucSFv///w==k0zSoBpfZFrDumlk+AtQRON14FuXot0jkFq6aWux/xoTrKhOLc2qumf9BqZCoMviC4Qd/Gg0IhqPopW5WRasLiZ0r70xbsEzHqVeweVXPFJ0oYktIeTO+kjr97cVCk6b2sg/C0k4FFZcoSxqSamARAs1o0w+Jl6rt1RAoelp2XDB8zuZecBb9r+JiaQf0Kzk0gj12TgwI7PjDOOVs9UafPhfwWmPs2KJL2GT/Drpcqd6s3AmzZql3OjyvjAsb8nLT+Yhlm5So1AjXsmUzfqAWxin73Kg3H4lS+ZnYOvsGfVNsEDAqceDCWy/CjsU0P8CjbPc9wvFusaAwM37jKYLqlbjMIVNP1anxastGhqIDTeWEvPkoIQdyvgJjT77nRISCr3bKX3JtcfBOK9OtvU7npQkZXBcFsFO4RpIetLIGGKQaKLyGP/Qoak8uo+Mx/z1TSR8qQw2KRhfmw1usiWiNUekTpgNOW68dXExbsr/3nbx636mYwB55KoThqdqrzjrPSa5NpQi/AUT1A7Lx2WNPIg/CJkZbDxqnpIjAlph221IoyiqC0/AdFk4eHnenKperyN6TmmHQi5X9gZr9iAKhbttYoQE1nYKH9K7TNxOyWnRAlRiSPJ1rcu3KLjgZNvxeSTdqJKR/y05Qq0K9IV2E35x+FIytJqFZKQ1a6be3YUxAdp5+3kMBYRGGdV395RpAo4D9mS52AKZb2qPWhTgH7hX/8uXZeYnI0tHBtEFfNsHmbssmTcx4achs0evgiLkCpvG9JrIFssZVgLcWgO+Mw9gpYjcufQVW5m2bj+7c1lFirfwxYDhzcJ0khHMs5MRPpo216qaoFS3YoB9qA8ePbRZ7Ge5Hh+i+wXnhhRR9wf8szANcmpEkW+pY3fW8/Th2"},"신학기,독서실,초등학교","포인트 8,910원","^2970^2970^^^0^0",{"$f":"IFERROR(MID(O4,2,SEARCH(\"^\",MID(O4,2,LEN(O4)-1))-1),0)","v":"2970"},null,"스토어 찜! 최대20%할인 + 추가할인쿠폰"," "," "," ","2021-01-22",null,"시디즈 S500ACF 링고 학생용의자 고정형 + 발받침대",152000,0,null,13056,null,1,null,null,null,{"$f":"IF(AG4=0,AF4,AG4)","v":0},null,null,"^^^^^0^0",{"$f":"IFERROR(MID(AK4,2,SEARCH(\"^\",MID(AK4,2,LEN(AK4)-1))-1),0)","v":""},"책상용의자|고정형의자|키즈용|발받침대포함|좌판교체|의자높낮이조절|오발시스템|발수|1인용|일체형|합성가죽|합성가죽|44cm|우레탄",null,931," "," ","2015-12-24",null,"h형 1인용 책상 원목 컴퓨터 학생 입식 사무실 테이블",30000,6,null,72,null,1,"더체어컴퍼니","https://smartstore.naver.com/main/products/2489595512",null,{"$f":"IF(BC4=0,BB4,BC4)","v":"https://smartstore.naver.com/main/products/2489595512"},"L자형책상,철제책상,고등학생책상,공부책상,가정용책상",null,"^300^300^^^0^0",{"$f":"IFERROR(MID(BG4,2,SEARCH(\"^\",MID(BG4,2,LEN(BG4)-1))-1),0)","v":"300"},null,null,9," "," ","2018-03-26"]
[2,"니스툴그로우 초등학생 높이 각도조절 책상 의자",899000,0,null,9,null,12,"더월",null,"https://adcr.naver.com/adcr?x=9f3bLr+qJbnRcmX4gmXkJP///w==kui9hvqEbn7dDSLsJZiTwYXBen8yG66E8u13YkNvnresUoihCBgsGzcZtDY24n/tvjITQBOnER1rGWmgwP2EZ9lTMxnVcNBmx+WaasgzFrTJVoOHOPqEH78BepmKr8m5+wwy7SjJs9y/13pTkFlWBBj9RlSkrnLHh/N/iW+2ta1xdmQRSt25Zu9RdA1djGiDyd4LkZs0EzqzBcKrj1+X7+rllRDLm29TIXW8LHAf7gVdwbJayfiG2HvC4nQfyTU5xSib+mOSfZ6tPsQXsoroPJpggP0JwmqGL7kWBVJav3wHvRA6Ay7ZKmo+w/YMgotnd8J03llplDTxxacoJ0QDEAgyw1zTl31SnDT4gXMWnhfjHo97nGVnNecPjsyc+TdHI5xlw6Bcq958tg4M7PRtBchvNiVDEp4Y6WLhvttJPzgxxZ04Vw2Aj5ojoJ7j61uyBj2CHHMXqwCmm8BL0X7mJmP1bIe+1hR1ktW85vFGXgntDalQcbc4FdpQhWEcKitnt8d4Q/mS2YrfVsU9y3eZTa324Zb01g2af2F6EFFUQUMBzrlu/yK1NpRN34shlA84FojeXYSbKWnp/2AopJlQAVVONnteRlMVy5xCkHmtbiKQZR5X+S4qLzPl9yDR1bbBKn4UnPaH5cwStmozZQK9d+JnuMjoDxquWoI6qkJ84kCYd22RcKbz4TdF/63Lov62WXsuugFAPg+7vL7Ij9jmz689lLXZRyrvqvmg84MSOBI5swO2OnHGAy7vLaARn04X6Ovw4lt17NfTyBFstBR4DuGwkYMXt/OSffQKz+6Eipx2kYYvhcgn05v3YS7HDtizvovOjEAHJY5I4Yf7Rt6/Zug==",{"$f":"IF(K5=0,J5,K5)","v":"https://adcr.naver.com/adcr?x=9f3bLr+qJbnRcmX4gmXkJP///w==kui9hvqEbn7dDSLsJZiTwYXBen8yG66E8u13YkNvnresUoihCBgsGzcZtDY24n/tvjITQBOnER1rGWmgwP2EZ9lTMxnVcNBmx+WaasgzFrTJVoOHOPqEH78BepmKr8m5+wwy7SjJs9y/13pTkFlWBBj9RlSkrnLHh/N/iW+2ta1xdmQRSt25Zu9RdA1djGiDyd4LkZs0EzqzBcKrj1+X7+rllRDLm29TIXW8LHAf7gVdwbJayfiG2HvC4nQfyTU5xSib+mOSfZ6tPsQXsoroPJpggP0JwmqGL7kWBVJav3wHvRA6Ay7ZKmo+w/YMgotnd8J03llplDTxxacoJ0QDEAgyw1zTl31SnDT4gXMWnhfjHo97nGVnNecPjsyc+TdHI5xlw6Bcq958tg4M7PRtBchvNiVDEp4Y6WLhvttJPzgxxZ04Vw2Aj5ojoJ7j61uyBj2CHHMXqwCmm8BL0X7mJmP1bIe+1hR1ktW85vFGXgntDalQcbc4FdpQhWEcKitnt8d4Q/mS2YrfVsU9y3eZTa324Zb01g2af2F6EFFUQUMBzrlu/yK1NpRN34shlA84FojeXYSbKWnp/2AopJlQAVVONnteRlMVy5xCkHmtbiKQZR5X+S4qLzPl9yDR1bbBKn4UnPaH5cwStmozZQK9d+JnuMjoDxquWoI6qkJ84kCYd22RcKbz4TdF/63Lov62WXsuugFAPg+7vL7Ij9jmz689lLXZRyrvqvmg84MSOBI5swO2OnHGAy7vLaARn04X6Ovw4lt17NfTyBFstBR4DuGwkYMXt/OSffQKz+6Eipx2kYYvhcgn05v3YS7HDtizvovOjEAHJY5I4Yf7Rt6/Zug=="},"책상","포인트 26,970원","^^^^^0^0",{"$f":"IFERROR(MID(O5,2,SEARCH(\"^\",MID(O5,2,LEN(O5)-1))-1),0)","v":""},null,null," "," "," ","2020-09-17",null,"시니프 어린이 로보 컴퓨터 초등학생의자",68200,4048,null,8944,null,2,"시니프","https://smartstore.naver.com/main/products/3677998601",null,{"$f":"IF(AG5=0,AF5,AG5)","v":"https://smartstore.naver.com/main/products/3677998601"},"학생의자,컴퓨터의자,공부의자,초등학생의자,회전의자,아이의자,초등학생책상의자,책상의자",null,"^882^882^^^0^0",{"$f":"IFERROR(MID(AK5,2,SEARCH(\"^\",MID(AK5,2,LEN(AK5)-1))-1),0)","v":"882"},"책상용의자|학생, 성인용|손잡이포함|의자높낮이조절|오발시스템|회전식",null,1721," "," ","2018-11-14",null,"[리퍼가구] 원목책상 수박 과일책상(CJ015-1)[S/N : 0929-16]",30000,0,null,0,null,2,"햇살맑은집","http://hscafe.co.kr/product/detail.html?product_no=2871&cate_no=95&display_group=1&cafe_mkt=naver_ks&mkt_in=Y&ghost_mall_id=naver&ref=naver_open",null,{"$f":"IF(BC5=0,BB5,BC5)","v":"http://hscafe.co.kr/product/detail.html?product_no=2871&cate_no=95&display_group=1&cafe_mkt=naver_ks&mkt_in=Y&ghost_mall_id=naver&ref=naver_open"},"유아책상,아이책상,아기책상,찻상,공부상",null,"^^^^^0^0",{"$f":"IFERROR(MID(BG5,2,SEARCH(\"^\",MID(BG5,2,LEN(BG5)-1))-1),0)","v":""},null,null," "," "," ","2020-10-24"]
[3,"오피스보이 AP 웨이브 일자사무실책상 국산몰딩",80300,0,null,0,null,15,"오피스보이",null,"https://adcr.naver.com/adcr?x=kbM35UXmGbb3e+9bzxmNqP///w==kuZN5bG26GvsN7r6OvAvmSL2eYiteD3S8q03f7RFGc6Vsk9gRu0oLIAe/32uQ0/iWxOt4YKeC3wQusLGlLRDD5kWhpZ2jDzoEzAGNr5VH50X3DsOLk+tkPhYIpZE563i02vq1ScFU9MPPBgzbSJd59fkmVWHBzsoIFZauQoMfo5LsayicKxisp7ZERI6wpb57goZ2JmeOd/66N3RB5KT9IqL/yKJtt3ObkXOhUHcncB3x/PiIFqIZ01fOv/9usWJ4F91ysqkK2laYiw4TLyu1wv9c+VTh7w0ARgMYQitRmlmI3G7YmoF+Fk4Oq24idXpGfq5kSfpfbj2iab5lkpo3bzyo542Q0/ohYs96snjqSsaf1rewIkkj8JHHo/8xEuykadm0LeeEwZC9nnSIhhFeSsmgsEpLQd1gMahP71oVyqcJKojroQ4VUmHTXr7UcQSU/2YcIA/0l1doR0hL0SK8Tk72NyD3SIOz17qvYS6mch6MFdUAzfMqzcj+v9guBsqkpenM2IMRHcw0FBnvGolO48M9X0g5sfaE1eh7j0pCGNqbzmQ3pmwYZ5nneh1Fdk1eRNOl4kslfCGHnwya4v3Y4weLCQeeb9A6ohaX+BrAxaXlI8HZvN6EBQiwX1ikm/MLWMSON5AxZ3EEx04K1/nt8vIluCSBQh5sWh7lEmQgkxfWAS83dgwrdjDDNN/KT519X5JanusJl+r1rxEsRTi8NiVYF3Y3RPB96w9DY9idqhz2+/Pi89jRJ90b18iLlKTMqnvBq7Ql0rPYx7jJUjHDXpTzQ6vXX9p3eesq99c9KQDoWTVUpGLIA8J2DiJaxBfG5/PhD6vSU+5K5yiVDuBW0ZM2jA6NDGTLLKzGydwPnE7Pl7oYXAYEBlwjkUIvhEaTqEA2EcNho8JE13Rad7KsrA==",{"$f":"IF(K6=0,J6,K6)","v":"https://adcr.naver.com/adcr?x=kbM35UXmGbb3e+9bzxmNqP///w==kuZN5bG26GvsN7r6OvAvmSL2eYiteD3S8q03f7RFGc6Vsk9gRu0oLIAe/32uQ0/iWxOt4YKeC3wQusLGlLRDD5kWhpZ2jDzoEzAGNr5VH50X3DsOLk+tkPhYIpZE563i02vq1ScFU9MPPBgzbSJd59fkmVWHBzsoIFZauQoMfo5LsayicKxisp7ZERI6wpb57goZ2JmeOd/66N3RB5KT9IqL/yKJtt3ObkXOhUHcncB3x/PiIFqIZ01fOv/9usWJ4F91ysqkK2laYiw4TLyu1wv9c+VTh7w0ARgMYQitRmlmI3G7YmoF+Fk4Oq24idXpGfq5kSfpfbj2iab5lkpo3bzyo542Q0/ohYs96snjqSsaf1rewIkkj8JHHo/8xEuykadm0LeeEwZC9nnSIhhFeSsmgsEpLQd1gMahP71oVyqcJKojroQ4VUmHTXr7UcQSU/2YcIA/0l1doR0hL0SK8Tk72NyD3SIOz17qvYS6mch6MFdUAzfMqzcj+v9guBsqkpenM2IMRHcw0FBnvGolO48M9X0g5sfaE1eh7j0pCGNqbzmQ3pmwYZ5nneh1Fdk1eRNOl4kslfCGHnwya4v3Y4weLCQeeb9A6ohaX+BrAxaXlI8HZvN6EBQiwX1ikm/MLWMSON5AxZ3EEx04K1/nt8vIluCSBQh5sWh7lEmQgkxfWAS83dgwrdjDDNN/KT519X5JanusJl+r1rxEsRTi8NiVYF3Y3RPB96w9DY9idqhz2+/Pi89jRJ90b18iLlKTMqnvBq7Ql0rPYx7jJUjHDXpTzQ6vXX9p3eesq99c9KQDoWTVUpGLIA8J2DiJaxBfG5/PhD6vSU+5K5yiVDuBW0ZM2jA6NDGTLLKzGydwPnE7Pl7oYXAYEBlwjkUIvhEaTqEA2EcNho8JE13Rad7KsrA=="},null,"포인트 2,409원","^^^^^0^0",{"$f":"IFERROR(MID(O6,2,SEARCH(\"^\",MID(O6,2,LEN(O6)-1))-1),0)","v":""},null,"30년 사무용가구 전문. 이전 확장 교체 오픈 빠른문의"," "," "," ","2017-08-22",null,"시디즈 S500ACF 링고 고정형 학생용의자+발받침(SNA509ACF)",159000,6263,null,7766,null,3,"시디즈의자","https://shopping.naver.com/outlink/itemdetail/3703743177",null,{"$f":"IF(AG6=0,AF6,AG6)","v":"https://shopping.naver.com/outlink/itemdetail/3703743177"},"초등학생,초등학생의자,학생의자,공부의자",null,"^7950^7950^^^0^0",{"$f":"IFERROR(MID(AK6,2,SEARCH(\"^\",MID(AK6,2,LEN(AK6)-1))-1),0)","v":"7950"},"책상용의자|학생, 성인용|메시",null,532," "," ","2018-12-02",null,"[꿈꾸는요셉]책상 유리 모음 GL",30000,0,null,10,null,3,"꿈꾸는요셉","http://dreamsjoseph.com/product/detail.html?product_no=2723&cate_no=44&display_group=1&cafe_mkt=naver_ks&mkt_in=Y&ghost_mall_id=naver&ref=naver_open",null,{"$f":"IF(BC6=0,BB6,BC6)","v":"http://dreamsjoseph.com/product/detail.html?product_no=2723&cate_no=44&display_group=1&cafe_mkt=naver_ks&mkt_in=Y&ghost_mall_id=naver&ref=naver_open"},"책상",null,"^^^^^0^0",{"$f":"IFERROR(MID(BG6,2,SEARCH(\"^\",MID(BG6,2,LEN(BG6)-1))-1),0)","v":""},null,null," "," "," ","2019-02-07"]
[4,"[루나랩 키즈] 어린이 초등학생 바른자세 책상, 학생 공부 높이 각도 조절",269000,2862,null,2125,null,1,"루나랩 키즈","https://smartstore.naver.com/main/products/4810787049",null,{"$f":"IF(K7=0,J7,K7)","v":"https://smartstore.naver.com/main/products/4810787049"},"초등학생의자,초등학생책상,아이책상,초등책상,책상",null,"^3190^3190^^^0^0",{"$f":"IFERROR(MID(O7,2,SEARCH(\"^\",MID(O7,2,LEN(O7)-1))-1),0)","v":"3190"},"전면책상|E0(친환경)|책상단품|각도조절|높이조절|가방걸이|태블릿 거치대|철재|합성목재|플라스틱|1190mm",null,6542," "," ","2020-03-28",null,"시디즈 S500ACF 링고 고정형 학생용의자+발받침(SNA509ACF)",159000,6263,null,7766,null,4,"시디즈의자","https://smartstore.naver.com/main/products/325093734",null,{"$f":"IF(AG7=0,AF7,AG7)","v":"https://smartstore.naver.com/main/products/325093734"},"초등학생,초등학생의자,공부의자,책상의자,학생의자,컴퓨터의자",null,"^7950^7950^^^0^0",{"$f":"IFERROR(MID(AK7,2,SEARCH(\"^\",MID(AK7,2,LEN(AK7)-1))-1),0)","v":"7950"},"책상용의자|학생, 성인용|메시",null,2284," "," ","2015-08-31",null,"이케아 이케아 MAMMUT 어린이 테이블 원형 블루",30010,0,null,0,null,4,"G마켓","http://www.gmarket.co.kr/challenge/neo_jaehu/jaehu_goods_gate.asp?goodscode=1942238400&GoodsSale=Y&jaehuid=200001169",null,{"$f":"IF(BC7=0,BB7,BC7)","v":"http://www.gmarket.co.kr/challenge/neo_jaehu/jaehu_goods_gate.asp?goodscode=1942238400&GoodsSale=Y&jaehuid=200001169"},null,null,"^^^^^0^0",{"$f":"IFERROR(MID(BG7,2,SEARCH(\"^\",MID(BG7,2,LEN(BG7)-1))-1),0)","v":""},null,null," "," "," ","2020-12-17"]
[5,"[데스커] 신학기 책상세트",319000,8270,null,7360,null,2,"데스커","https://shopping.naver.com/outlink/itemdetail/4176880138",null,{"$f":"IF(K8=0,J8,K8)","v":"https://shopping.naver.com/outlink/itemdetail/4176880138"},"깔끔한스타일,고등학생책상,초등학생책상,중학생책상,심플한책상,감각적디자인,책상,책상세트,공부책상",null,"^15950^15950^^^0^0",{"$f":"IFERROR(MID(O8,2,SEARCH(\"^\",MID(O8,2,LEN(O8)-1))-1),0)","v":"15950"},"일자형책상|서재형",null,7785," "," ","2019-04-30",null,"일룸 [일룸]신학기 맞이 학생가구! 인기 책상/의자/침대",599000,0,null,7408,null,5,"롯데홈쇼핑","http://www.lotteimall.com/coop/affilGate.lotte?chl_no=141370&chl_dtl_no=2540914&returnUrl=/goods/viewGoodsDetail.lotte?goods_no=1299447487",null,{"$f":"IF(AG8=0,AF8,AG8)","v":"http://www.lotteimall.com/coop/affilGate.lotte?chl_no=141370&chl_dtl_no=2540914&returnUrl=/goods/viewGoodsDetail.lotte?goods_no=1299447487"},null,null,"^^^^^0^0",{"$f":"IFERROR(MID(AK8,2,SEARCH(\"^\",MID(AK8,2,LEN(AK8)-1))-1),0)","v":""},null,null,15," "," ","2018-03-07",null,"이케아 이케아 MAMMUT 어린이 테이블 원형 블루",30010,0,null,0,null,5,"G마켓","http://www.gmarket.co.kr/challenge/neo_jaehu/jaehu_goods_gate.asp?goodscode=1942238526&GoodsSale=Y&jaehuid=200001169",null,{"$f":"IF(BC8=0,BB8,BC8)","v":"http://www.gmarket.co.kr/challenge/neo_jaehu/jaehu_goods_gate.asp?goodscode=1942238526&GoodsSale=Y&jaehuid=200001169"},null,null,"^^^^^0^0",{"$f":"IFERROR(MID(BG8,2,SEARCH(\"^\",MID(BG8,2,LEN(BG8)-1))-1),0)","v":""},null,null,1," "," ","2020-11-20"]
[]
[{"$f":"+_xlfn.ENCODEURL((B1))","v":"%EC%96%B4%EB%A6%B0%EC%9D%B4%20%EC%B1%85%EC%83%81"},"키워드",{"$f":"HLOOKUP(\"*\"&B10&\"*\",$B$11:$G$14,4,FALSE)","v":{"$error":"#N/A"}}]
["https://search.shopping.naver.com/search/all.nhn?pagingIndex=1&pagingSize=1&viewType=list&sort=rel&frm=NVSHATC&query=%EC%96%B4%EB%A6%B0%EC%9D%B4%20%EC%B1%85%EC%83%81","카테고리더보기","브랜드더보기","책상부가기능","책상종류","가격","배송/혜택/색상","배송/혜택/색상"]
["https://search.shopping.naver.com/search/all.nhn?pagingIndex=1&pagingSize=1&viewType=list&sort=rel&frm=NVSHATC&query=%EC%96%B4%EB%A6%B0%EC%9D%B4%20%EC%B1%85%EC%83%81"]
["https://search.naver.com/search.naver?query=%EC%96%B4%EB%A6%B0%EC%9D%B4%20%EC%B1%85%EC%83%81","유아책상","어린이 의자","어린이책상의자","어린이책상세트","책상","이케아 어린이 책상","시디즈 어린이 의자","원목어린이책상","제롬 모션데스크","일룸 제롬"]
[null,1,2,3,4,5,6,7,8,9,10]
[]
[{"$f":"+B12&\"  \"&C12&\"  \"&D12&\"  \"&E12&\"  \"&F12&\"  \"&G12&\"  \"&H12&\"  \"&I12&\"  \"&J12&\"  \"&K12","v":"                  "}]
[{"$f":"+L12&\"  \"&M12&\"  \"&N12&\"  \"&O12&\"  \"&P12&\"  \"&Q12&\"  \"&R12&\"  \"&S12&\"  \"&T12&\"  \"&U12","v":"                  "}]
[{"$f":"+B13&\"  \"&C13&\"  \"&D13&\"  \"&E13&\"  \"&F13&\"  \"&G13&\"  \"&H13&\"  \"&I13&\"  \"&J13&\"  \"&K13","v":"유아책상  어린이 의자  어린이책상의자  어린이책상세트  책상  이케아 어린이 책상  시디즈 어린이 의자  원목어린이책상  제롬 모션데스크  일룸 제롬"}]
[]
[]
[]
[]
[]
[]
[]
[]
[]
[]
["랭킹","상품명","상호명","가격","구매건수","리뷰수","ADURL","MallURL","Cr_URL","URL",null,"Down Score","UP Score","UP Score","Ave Score","Rank"]
[1,"[리바트하움] 신학기 초등학생 초등학교책상세트","한국오피스",297000,13,1,"https://adcr.naver.com/adcr?x=f4xYOi2ElJz3LyEK4E1Lr////w==kIKzdNDlijwiMvbQTS2rC4MqWJjYrlEDRYhwk4+HQundJi/GR0UOEFycTHfo8+ldhdQniiZZ3XV5/qDIX7L1Pj8x6MO2sD27Nt8Png4EbPIluUE7ZCLMtGhYrvgp7Qh6kWAv2MkgjNkbzk+aKUKEUPRuYuNFo0kfRc7S6jWndxw4TOSKWsLd+Dv4VrqayqYqM3eCoNa7j0nPZEL4xHH1iUpy3tPXdM8I/1dbNuDZ6ovxCLaCgJLljBO1hgI3W0+VUHhvSNaicplaMuQA34xARLFTRj7iQYToIwP3Xnjro43iR+mUIH8f+4UNm9W7n58/nnJphlDl2JgNayCzib53t3/4fgzyJvYhxWjJf1qVzqOmZE43eUvoI6NHWdL90cYqE+g44z3SsucYIL8pWajagq+Rp2Fn7EiN23YgGZe4V1XDyARQ2lj74z2y/EFdeR0VDGO2NFUjFm/KkylrvDoHdQP4W2m18Ve8SIDeLDGkxHE8OC/fhDenzoLuLqWth/JNMAsmfKBynV/HHS3VivP7KTRVyZ8YaBZ14kBEnR3ygZT5S0Sg+Fl0ZZwegry1+Yn3CXwywR+BOdDv7cHZDW2kZPjAw754FPmyja2H/C9e09lM0MUxrlJnmedrFlmswH872FCXG47Mknc003HyYYsVzBcN3RPW9bDed76lP5GP0pZt6oyfsoTXvMf1iiyE0HKdXNU2M138kPwtjeiAUZeN0FviubxRTNG8RfAI7GJno79ulWATKWOirdJfqnmeHQuPlEbPPikbY1wEl0B2//pNz7zQbSKese4Hbgb/M7OGaaGfCcJk5I2JJ8YcaCQlmZvC02wSTVNWfOxrXQBei+G47G94ho5xH9TCMmhCv7PGPudkjrnCG3058Grhu57GAs1E6",null,null,{"$f":"IF(G30=0,H30,IF(AND(G30=0,H30=0),I30,G30))","v":"https://adcr.naver.com/adcr?x=f4xYOi2ElJz3LyEK4E1Lr////w==kIKzdNDlijwiMvbQTS2rC4MqWJjYrlEDRYhwk4+HQundJi/GR0UOEFycTHfo8+ldhdQniiZZ3XV5/qDIX7L1Pj8x6MO2sD27Nt8Png4EbPIluUE7ZCLMtGhYrvgp7Qh6kWAv2MkgjNkbzk+aKUKEUPRuYuNFo0kfRc7S6jWndxw4TOSKWsLd+Dv4VrqayqYqM3eCoNa7j0nPZEL4xHH1iUpy3tPXdM8I/1dbNuDZ6ovxCLaCgJLljBO1hgI3W0+VUHhvSNaicplaMuQA34xARLFTRj7iQYToIwP3Xnjro43iR+mUIH8f+4UNm9W7n58/nnJphlDl2JgNayCzib53t3/4fgzyJvYhxWjJf1qVzqOmZE43eUvoI6NHWdL90cYqE+g44z3SsucYIL8pWajagq+Rp2Fn7EiN23YgGZe4V1XDyARQ2lj74z2y/EFdeR0VDGO2NFUjFm/KkylrvDoHdQP4W2m18Ve8SIDeLDGkxHE8OC/fhDenzoLuLqWth/JNMAsmfKBynV/HHS3VivP7KTRVyZ8YaBZ14kBEnR3ygZT5S0Sg+Fl0ZZwegry1+Yn3CXwywR+BOdDv7cHZDW2kZPjAw754FPmyja2H/C9e09lM0MUxrlJnmedrFlmswH872FCXG47Mknc003HyYYsVzBcN3RPW9bDed76lP5GP0pZt6oyfsoTXvMf1iiyE0HKdXNU2M138kPwtjeiAUZeN0FviubxRTNG8RfAI7GJno79ulWATKWOirdJfqnmeHQuPlEbPPikbY1wEl0B2//pNz7zQbSKese4Hbgb/M7OGaaGfCcJk5I2JJ8YcaCQlmZvC02wSTVNWfOxrXQBei+G47G94ho5xH9TCMmhCv7PGPudkjrnCG3058Grhu57GAs1E6"},null,{"$f":"+_xlfn.RANK.AVG(Summary!I13,Summary!$I$13:$I$91,1)","v":23},{"$f":"+_xlfn.RANK.AVG(Summary!J13,Summary!$J$13:$J$91,0)","v":18},{"$f":"+_xlfn.RANK.AVG(Summary!K13,Summary!$K$13:$K$91,0)","v":38.5},{"$f":"+AVERAGE(L30:N30)","v":26.5},{"$f":"+_xlfn.RANK.AVG(O30,$O$30:$O$73,1)","v":32}]
[2,"니스툴그로우 초등학생 높이 각도조절 책상 의자","더월",899000,0,9,"https://adcr.naver.com/adcr?x=1TiBCaCwQ9sg1AcklNfS0////w==k/QC53UX/AjyUTBajV0l5jodncwXoDzdrGO+0ndTzGRxpD+DFKTTPz5TLgPU43ogFEMxKZ17V5GphxOsd5I4Xkk6Ld8Qtb6w9Q9p1awm80A9BqZ9/xz2KtfI5DakaGvPWJty8/tlSBPoqwf5DPq8y2qDkZIizdJ0g5OBxsW0Tmo68xin59PbRjYoPCEGAIxjNBk+FP2zvyXp5OEUb8sBIC6vhxGqD2w5zf8wYpCKM7SBegWEX7Juenyd6WEVttc9vHTk9zCIepvvE5qxN6l5C3zPNukc1gOQ1gJukWwzRoV8F9MG/alY21457Aiod/K72524EidXA7XMXTohjVZlkkPV7s4iZclWS2qoHkV9V9GeA13GOPmM4L0+H3d4lMmJYxbgN4j+UTJN88ASmcIyMK5ADdD7BT2FkLCMaqD3SWEmvHI0c25ikbffUTtGRidAickQLxj97izcToY8mxtjdec8cS4vypGJ0bSEL/8bUE8e8YeOU8GeutcoLGwzjR6wopUns0DSfrvk3D67ZWLAhnGVDZZExLwLy1/iHLuZ5bPVQNDQBMPFiVD6DiRGwEyhaNBsFZyOQW6RB0NP5D3j+sxYiP/CSfvUhmZ7JPzbnLVzsNJEUS+6jFenjRKg9acIWY8mmUdug9aXE0D2+yTa2YnUiyFwPRc2TFr0P4wG14PLmI15KsCzJfucwx6WzDElzydKNeQaLAloYbLSsCEWSjueBA0m+76GjAO2yrqJKj6YqAkDbrR94IlVFnh4nMiNBU+u5Jzq1SbgXs+AfBA/vwQ2rSjG2um+hZKfQK7scDK9isj/PZeOzxWyz3mqSPmav3h3Lfq5w4A6Xoi1Ioa2QZw==",null,null,{"$f":"IF(G31=0,H31,IF(AND(G31=0,H31=0),I31,G31))","v":"https://adcr.naver.com/adcr?x=1TiBCaCwQ9sg1AcklNfS0////w==k/QC53UX/AjyUTBajV0l5jodncwXoDzdrGO+0ndTzGRxpD+DFKTTPz5TLgPU43ogFEMxKZ17V5GphxOsd5I4Xkk6Ld8Qtb6w9Q9p1awm80A9BqZ9/xz2KtfI5DakaGvPWJty8/tlSBPoqwf5DPq8y2qDkZIizdJ0g5OBxsW0Tmo68xin59PbRjYoPCEGAIxjNBk+FP2zvyXp5OEUb8sBIC6vhxGqD2w5zf8wYpCKM7SBegWEX7Juenyd6WEVttc9vHTk9zCIepvvE5qxN6l5C3zPNukc1gOQ1gJukWwzRoV8F9MG/alY21457Aiod/K72524EidXA7XMXTohjVZlkkPV7s4iZclWS2qoHkV9V9GeA13GOPmM4L0+H3d4lMmJYxbgN4j+UTJN88ASmcIyMK5ADdD7BT2FkLCMaqD3SWEmvHI0c25ikbffUTtGRidAickQLxj97izcToY8mxtjdec8cS4vypGJ0bSEL/8bUE8e8YeOU8GeutcoLGwzjR6wopUns0DSfrvk3D67ZWLAhnGVDZZExLwLy1/iHLuZ5bPVQNDQBMPFiVD6DiRGwEyhaNBsFZyOQW6RB0NP5D3j+sxYiP/CSfvUhmZ7JPzbnLVzsNJEUS+6jFenjRKg9acIWY8mmUdug9aXE0D2+yTa2YnUiyFwPRc2TFr0P4wG14PLmI15KsCzJfucwx6WzDElzydKNeQaLAloYbLSsCEWSjueBA0m+76GjAO2yrqJKj6YqAkDbrR94IlVFnh4nMiNBU+u5Jzq1SbgXs+AfBA/vwQ2rSjG2um+hZKfQK7scDK9isj/PZeOzxWyz3mqSPmav3h3Lfq5w4A6Xoi1Ioa2QZw=="},null,{"$f":"+_xlfn.RANK.AVG(Summary!I15,Summary!$I$13:$I$91,1)","v":37},{"$f":"+_xlfn.RANK.AVG(Summary!J15,Summary!$J$13:$J$91,0)","v":29.5},{"$f":"+_xlfn.RANK.AVG(Summary!K15,Summary!$K$13:$K$91,0)","v":36},34.166666666666664,40]
[3,"오피스보이 AP 웨이브 일자사무실책상 국산몰딩","오피스보이",80300,0,0,"https://adcr.naver.com/adcr?x=rIUOSrdlF8pkDqJ5QKweXv///w==kCUbhAFWT3a7lg1GPSq33GVuSM5I69oCJA+8aRLZwcSlr8+6nDB/Gjsh9Asc7wWvzzjoAQx68vDGHIeIN10rQ9krNh/cqVSYOkhJ/O+DdzlBPA292Wtms17zPgMkBG9g4rFmKqtwgds8AcEtHtas2acDP9tZ5y4g68Vi62fz4NyrQjlr3SuEAfoTCnfCjgdbxxKEJLsi9z2t5gf+4PUmOkKBfWJD+0mw6XLtV6IiYCauwu5v8Cr+SOYdbtIBTgjjqFHLcr2ds1gqgGR1ZB4BLFLiJnj3fVYNrk0yxO9jTkpPHdkGiYiCD/qRABLQORE9vOzv8psLbTANw3t4eq1Mwk3nJXJP+EwLnbG08dxHLD1GTMP9qD+ecKlOE+cDu81o5TmAQjVh9odleaGdrY3zycWlaUyks0P1H40P/L6pqf9fJMAbLGygWpGFtUULAS0BjNtD8EV3qMr6LB6V40wG/xGLMNMbFOfG+RUQLsLn4OEZi3OA+3s1UJTKRXAYmRsKV94AykbPaTaRKZ+AgNwt5Gj91uR0xGqiSagB1cx3AWZAP8zCZDOrALJw44W7COJI0+/hlD1Q4PxeKuibOj0XjLiEmIW+LG9ThajTLZEvNv28fPYYGebygPebNZ75rBrLa9t3yZIMFPj92ruft0i3QhPSh0Z1/feJC1wUefKcoI/NjATVDnNVgQOmpOY2ox/VdRX1tr2D84ZZNc9/fSdtYnB6LvjzZJ//eCJA5TCVyi0K955JlE3GlL4cLk0Oy0ShMpPTX172S89m5+d3E67obepndSapwu/VNc9nI4+bjMkyGQwDWuSiDP9H6ItwdSmdp1vTG4mTvt8zfbFdJ40h3uB/519m2o0wCLeqyqtjWZimsWWePO7gRQKzZZ+RKZBzBKscF05G3kPscL6BgeopCXA==",null,null,{"$f":"IF(G32=0,H32,IF(AND(G32=0,H32=0),I32,G32))","v":"https://adcr.naver.com/adcr?x=rIUOSrdlF8pkDqJ5QKweXv///w==kCUbhAFWT3a7lg1GPSq33GVuSM5I69oCJA+8aRLZwcSlr8+6nDB/Gjsh9Asc7wWvzzjoAQx68vDGHIeIN10rQ9krNh/cqVSYOkhJ/O+DdzlBPA292Wtms17zPgMkBG9g4rFmKqtwgds8AcEtHtas2acDP9tZ5y4g68Vi62fz4NyrQjlr3SuEAfoTCnfCjgdbxxKEJLsi9z2t5gf+4PUmOkKBfWJD+0mw6XLtV6IiYCauwu5v8Cr+SOYdbtIBTgjjqFHLcr2ds1gqgGR1ZB4BLFLiJnj3fVYNrk0yxO9jTkpPHdkGiYiCD/qRABLQORE9vOzv8psLbTANw3t4eq1Mwk3nJXJP+EwLnbG08dxHLD1GTMP9qD+ecKlOE+cDu81o5TmAQjVh9odleaGdrY3zycWlaUyks0P1H40P/L6pqf9fJMAbLGygWpGFtUULAS0BjNtD8EV3qMr6LB6V40wG/xGLMNMbFOfG+RUQLsLn4OEZi3OA+3s1UJTKRXAYmRsKV94AykbPaTaRKZ+AgNwt5Gj91uR0xGqiSagB1cx3AWZAP8zCZDOrALJw44W7COJI0+/hlD1Q4PxeKuibOj0XjLiEmIW+LG9ThajTLZEvNv28fPYYGebygPebNZ75rBrLa9t3yZIMFPj92ruft0i3QhPSh0Z1/feJC1wUefKcoI/NjATVDnNVgQOmpOY2ox/VdRX1tr2D84ZZNc9/fSdtYnB6LvjzZJ//eCJA5TCVyi0K955JlE3GlL4cLk0Oy0ShMpPTX172S89m5+d3E67obepndSapwu/VNc9nI4+bjMkyGQwDWuSiDP9H6ItwdSmdp1vTG4mTvt8zfbFdJ40h3uB/519m2o0wCLeqyqtjWZimsWWePO7gRQKzZZ+RKZBzBKscF05G3kPscL6BgeopCXA=="},null,{"$f":"+_xlfn.RANK.AVG(Summary!I17,Summary!$I$13:$I$91,1)","v":6},{"$f":"+_xlfn.RANK.AVG(Summary!J17,Summary!$J$13:$J$91,0)","v":29.5},{"$f":"+_xlfn.RANK.AVG(Summary!K17,Summary!$K$13:$K$91,0)","v":40},25.166666666666668,29]
[4,"[루나랩 키즈] 어린이 초등학생 바른자세 책상, 학생 공부 높이 각도 조절","루나랩 키즈",269000,2862,2125,null,"https://cr.shopping.naver.com/adcr.nhn?x=x2kNTPqDmvdQDSkeX6Lko%2F%2F%2F%2Fw%3D%3DsxaNthOg39OXTNLQRztFcRDiBFbz7istiH5Q5%2BlhcCdJJtAyFw1aYn46AJKNp9asDJfOq%2B8kXphMVLADfTFLfPIYuectimB7Bk5rqlJCo1vuiO9cZ9iLBq8rClqnxrHHyb6qQFTvGZCOG08lHer4ShicX2AUq8VPh3PK%2Fo8l8aTkQ30gwb0ZAWnfX3Zzr1ayR7MWf3lL%2BT6KnlQ4G%2F4R8S%2FXx03f2aKzuCqh9Lbo9RkCDivgLUT8vYh1TsqkpNDO5gGwmPNX%2Fe%2BXkuZ30duRQYj%2FN1gL%2FBgCKENDMCz1nm%2F2A6jQS3oGU7wdcCl8vG9GffkhWXGFAd8BQRD9on%2FE6yH3ERyFkjtvUjCWoeUuIcI%2B42jpfULYV%2Bgdc4g4%2F4MhMjB5%2BwQwTWqlzZqCmwHkzLztoVapYFr3N5nc94C5Y6t%2Bmncy%2BDMu%2FRYPd2VeVfLv%2BXVjaIeefxVy%2FHx0Jb22ACqPNEWKRaj9d3iBGZDGjRT%2BxMxHtgoWTGnD7lSahcS0k%2F23j%2FzT9xhaba2%2FAmmq0uvURckR9vI7ihME%2FiNm5%2FBHBOhLDgz8xW9OSMX6erws3WkgAWoaYSn42YdmeqBXrBaI1RAGyHarAdu10GQU26dxM5fAu3zgOjVPPV6wKRnyposRxGLei5RKlfzSg0g9fUM2OqH9l6YII5ugOGfB4CYY%3D&nvMid=82355309715&catId=50001332","https://m.smartstore.naver.com/main/products/4810787049",{"$f":"IF(G33=0,H33,IF(AND(G33=0,H33=0),I33,G33))","v":"https://cr.shopping.naver.com/adcr.nhn?x=x2kNTPqDmvdQDSkeX6Lko%2F%2F%2F%2Fw%3D%3DsxaNthOg39OXTNLQRztFcRDiBFbz7istiH5Q5%2BlhcCdJJtAyFw1aYn46AJKNp9asDJfOq%2B8kXphMVLADfTFLfPIYuectimB7Bk5rqlJCo1vuiO9cZ9iLBq8rClqnxrHHyb6qQFTvGZCOG08lHer4ShicX2AUq8VPh3PK%2Fo8l8aTkQ30gwb0ZAWnfX3Zzr1ayR7MWf3lL%2BT6KnlQ4G%2F4R8S%2FXx03f2aKzuCqh9Lbo9RkCDivgLUT8vYh1TsqkpNDO5gGwmPNX%2Fe%2BXkuZ30duRQYj%2FN1gL%2FBgCKENDMCz1nm%2F2A6jQS3oGU7wdcCl8vG9GffkhWXGFAd8BQRD9on%2FE6yH3ERyFkjtvUjCWoeUuIcI%2B42jpfULYV%2Bgdc4g4%2F4MhMjB5%2BwQwTWqlzZqCmwHkzLztoVapYFr3N5nc94C5Y6t%2Bmncy%2BDMu%2FRYPd2VeVfLv%2BXVjaIeefxVy%2FHx0Jb22ACqPNEWKRaj9d3iBGZDGjRT%2BxMxHtgoWTGnD7lSahcS0k%2F23j%2FzT9xhaba2%2FAmmq0uvURckR9vI7ihME%2FiNm5%2FBHBOhLDgz8xW9OSMX6erws3WkgAWoaYSn42YdmeqBXrBaI1RAGyHarAdu10GQU26dxM5fAu3zgOjVPPV6wKRnyposRxGLei5RKlfzSg0g9fUM2OqH9l6YII5ugOGfB4CYY%3D&nvMid=82355309715&catId=50001332"},null,{"$f":"+_xlfn.RANK.AVG(Summary!I19,Summary!$I$13:$I$91,1)","v":21},{"$f":"+_xlfn.RANK.AVG(Summary!J19,Summary!$J$13:$J$91,0)","v":3.5},{"$f":"+_xlfn.RANK.AVG(Summary!K19,Summary!$K$13:$K$91,0)","v":5},9.8333333333333339,4]
[5,"[데스커] 신학기 책상세트","데스커",319000,8270,7360,null,"https://cr.shopping.naver.com/adcr.nhn?x=T%2BYsv%2B6nfOmZTI3tc4se6P%2F%2F%2Fw%3D%3DsTa2eYJ%2BnS0lPjxSlKLkXPpz0HzL8bi9lIOMLBO6o%2F9b%2BV2Z1R9fh6msUn3l%2FMjx5YIH0rdCLRjN21MRSM87BlsVOJCWNASczc92uy6OQ6zw9Jl2wDM%2FAWKfycVx%2FkE3IfBqS3mXuWwE3MZp%2BCjkIC0F5gBhH%2BnmOX8UGWW7yzetgn7XTimrGFHJWu%2FAwEqSTRRXKS89%2BuqrJDxk0G3dc3MqfYelfJ43OhlZ05oNYKHW8AEwZaYPuUSOdMWVl2rRKVV3pn6Znl%2B9MAtsEE%2BZ8ouacYsA2T1ONC2M4R1%2F3Eb%2FYm5gmzATy6YqOgwjgqZ69%2FZNp%2B4eHbfBrsUARTGcTpqp2UIUlyIA5IF5YG%2FASKaHyFQR1YT0KqYZgmp8mCLJ3FZchQwqvmVRRObyR8d3FAbjZg9KsQK0YME%2BwRObRp59iwvQmmkCFuRb4%2BxL1Z3IphAaAJRpE1Lv9N94Zb0l2NsOPTPND4%2F04buusQu1ngLNaSABahphKfjZh2Z6oFesFRpGbvdCZR3w87jfUTO5bHzRJcvUzEPUPZuDWmje3tAF3W0aco7iswoPpNdovd8MUzY6of2Xpggjm6A4Z8HgJhg%3D%3D&nvMid=81721401519&catId=50001332","https://m.shopping.naver.com/outlink/itemdetail/4176880138",{"$f":"IF(G34=0,H34,IF(AND(G34=0,H34=0),I34,G34))","v":"https://cr.shopping.naver.com/adcr.nhn?x=T%2BYsv%2B6nfOmZTI3tc4se6P%2F%2F%2Fw%3D%3DsTa2eYJ%2BnS0lPjxSlKLkXPpz0HzL8bi9lIOMLBO6o%2F9b%2BV2Z1R9fh6msUn3l%2FMjx5YIH0rdCLRjN21MRSM87BlsVOJCWNASczc92uy6OQ6zw9Jl2wDM%2FAWKfycVx%2FkE3IfBqS3mXuWwE3MZp%2BCjkIC0F5gBhH%2BnmOX8UGWW7yzetgn7XTimrGFHJWu%2FAwEqSTRRXKS89%2BuqrJDxk0G3dc3MqfYelfJ43OhlZ05oNYKHW8AEwZaYPuUSOdMWVl2rRKVV3pn6Znl%2B9MAtsEE%2BZ8ouacYsA2T1ONC2M4R1%2F3Eb%2FYm5gmzATy6YqOgwjgqZ69%2FZNp%2B4eHbfBrsUARTGcTpqp2UIUlyIA5IF5YG%2FASKaHyFQR1YT0KqYZgmp8mCLJ3FZchQwqvmVRRObyR8d3FAbjZg9KsQK0YME%2BwRObRp59iwvQmmkCFuRb4%2BxL1Z3IphAaAJRpE1Lv9N94Zb0l2NsOPTPND4%2F04buusQu1ngLNaSABahphKfjZh2Z6oFesFRpGbvdCZR3w87jfUTO5bHzRJcvUzEPUPZuDWmje3tAF3W0aco7iswoPpNdovd8MUzY6of2Xpggjm6A4Z8HgJhg%3D%3D&nvMid=81721401519&catId=50001332"},null,{"$f":"+_xlfn.RANK.AVG(Summary!I21,Summary!$I$13:$I$91,1)","v":26.5},{"$f":"+_xlfn.RANK.AVG(Summary!J21,Summary!$J$13:$J$91,0)","v":1.5},{"$f":"+_xlfn.RANK.AVG(Summary!K21,Summary!$K$13:$K$91,0)","v":1.5},9.8333333333333339,4]
[6,"일룸 링키플러스 1200폭 일반형 책상",null,150000,0,1478,null,"https://cr.shopping.naver.com/adcr.nhn?x=8W849N0TGljw4mHL6OTBPv%2F%2F%2Fw%3D%3DsWiF50z%2FevEYkVb6Ev3yTb7UJcGr7HDmhHf09EbkiKbBJtAyFw1aYn46AJKNp9asDv4B4pcaZmKAg0YPOB%2BSLQcI7%2BuK2jJPVAg1lqADtSW%2BiO9cZ9iLBq8rClqnxrHHyb6qQFTvGZCOG08lHer4ShtyGaSr%2B0dRu37W7MMIB4NFk9Io6iZoAfEBQfsbkhBMBWIfHKOyTRrxCn%2BY4jmmBrg52xeG7g%2FiI4Cj%2FtuCbI2H%2BGZlqeppNdVK2bKs2glgCN1CzfoTmgVhJuqiNatZgI5oC7oFHpSLbDFBBIk9qUb4gVc9gll0tM8AA6hcp67HBhmeWtJmvw8M90EK%2Bzy5a1yVdN3LpKf%2FbKuiZi7z1XJR%2BGLglYs0FIP2PHYEUBBYA%2B8NrCqUr%2BsVN8d0B1ahrDFd%2BqILAG09hjAR1K3qLYkAn0XLC72L%2BOmDgNH7sGhphpm%2BsC%2BCnrwrLPps%2Fn5v%2FErDzn3c5H6virFSgnW5KKdo8DBn8rKKNx6ZKnWPsUWhTHG3B4r2yOQ775TvsBQBxlpW2Xgcw4pgcdqcJqx7ryR60%2FTftdhXxzbsbwt%2ByMl5bb0sGv2OqvLLbdyQwJzUw8U%2FAJcUmJF2ix%2Feizcr9afVxYx6qZDNJmmxhRc19UOn2y1banPRMqe%2FPfOrSawOfLgN%2BQsjK6V0FLd%2Fybx7qcubNSE3OzZUT76KyqzckASmm&nvMid=16473467418&catId=50001332",null,{"$f":"IF(G35=0,H35,IF(AND(G35=0,H35=0),I35,G35))","v":"https://cr.shopping.naver.com/adcr.nhn?x=8W849N0TGljw4mHL6OTBPv%2F%2F%2Fw%3D%3DsWiF50z%2FevEYkVb6Ev3yTb7UJcGr7HDmhHf09EbkiKbBJtAyFw1aYn46AJKNp9asDv4B4pcaZmKAg0YPOB%2BSLQcI7%2BuK2jJPVAg1lqADtSW%2BiO9cZ9iLBq8rClqnxrHHyb6qQFTvGZCOG08lHer4ShtyGaSr%2B0dRu37W7MMIB4NFk9Io6iZoAfEBQfsbkhBMBWIfHKOyTRrxCn%2BY4jmmBrg52xeG7g%2FiI4Cj%2FtuCbI2H%2BGZlqeppNdVK2bKs2glgCN1CzfoTmgVhJuqiNatZgI5oC7oFHpSLbDFBBIk9qUb4gVc9gll0tM8AA6hcp67HBhmeWtJmvw8M90EK%2Bzy5a1yVdN3LpKf%2FbKuiZi7z1XJR%2BGLglYs0FIP2PHYEUBBYA%2B8NrCqUr%2BsVN8d0B1ahrDFd%2BqILAG09hjAR1K3qLYkAn0XLC72L%2BOmDgNH7sGhphpm%2BsC%2BCnrwrLPps%2Fn5v%2FErDzn3c5H6virFSgnW5KKdo8DBn8rKKNx6ZKnWPsUWhTHG3B4r2yOQ775TvsBQBxlpW2Xgcw4pgcdqcJqx7ryR60%2FTftdhXxzbsbwt%2ByMl5bb0sGv2OqvLLbdyQwJzUw8U%2FAJcUmJF2ix%2Feizcr9afVxYx6qZDNJmmxhRc19UOn2y1banPRMqe%2FPfOrSawOfLgN%2BQsjK6V0FLd%2Fybx7qcubNSE3OzZUT76KyqzckASmm&nvMid=16473467418&catId=50001332"},null,{"$f":"+_xlfn.RANK.AVG(Summary!I23,Summary!$I$13:$I$91,1)","v":11},{"$f":"+_xlfn.RANK.AVG(Summary!J23,Summary!$J$13:$J$91,0)","v":29.5},{"$f":"+_xlfn.RANK.AVG(Summary!K23,Summary!$K$13:$K$91,0)","v":7},15.833333333333334,14]
[7,"초등학생 책상 어린이 각도조절 초등","리빙유피",143000,365,659,null,"https://cr.shopping.naver.com/adcr.nhn?x=E9A3UMNlZ2RRxHQsI0Ycq%2F%2F%2F%2Fw%3D%3DsB%2BkIS0VwQEYWBSaUCQzUq3j4d8NrU1Mc3e8nLmgMPYNJtAyFw1aYn46AJKNp9asDfO2lXT8xr8wBcY0JaLkBFwGS0ZLhNzfsGP1Ns%2FaI5w%2BiO9cZ9iLBq8rClqnxrHHyb6qQFTvGZCOG08lHer4ShicX2AUq8VPh3PK%2Fo8l8aTkQ30gwb0ZAWnfX3Zzr1ayRaA%2FRALXsk1U8lmT3qsR%2BcGCkvRTux6TVg6x1pIByP9iDivgLUT8vYh1TsqkpNDO5gGwmPNX%2Fe%2BXkuZ30duRQYj%2FN1gL%2FBgCKENDMCz1nm%2F3%2B5agdt6wp%2F14STLcJIvMZ790F5VmzzLA%2Fdkzm12pYSKp2UIUlyIA5IF5YG%2FASKaGbYLilWCw%2FBKzycVa2wACJFCJLeTNMiIpdd72TMnUFR4FnA%2FexuPCVuRQU7oqk0RNSCIagrl3DpM5odrb0tiVIsT3bxIgAj5Y9Up03zEjqWL1QSJnQDl%2BUbP%2Ba42dibQkDgdceG33aoH8zFnOCAIFhFzcnvZN2pG12XEuR%2F3JR3taWGE1wtAom4HCez%2FJeRx565hfz78Z4mVFHNhz55SofoJ6agp0fGJSGjGGoLmd5KM2OqH9l6YII5ugOGfB4CYY%3D&nvMid=82279148456&catId=50001332","https://m.smartstore.naver.com/main/products/4734626992",{"$f":"IF(G36=0,H36,IF(AND(G36=0,H36=0),I36,G36))","v":"https://cr.shopping.naver.com/adcr.nhn?x=E9A3UMNlZ2RRxHQsI0Ycq%2F%2F%2F%2Fw%3D%3DsB%2BkIS0VwQEYWBSaUCQzUq3j4d8NrU1Mc3e8nLmgMPYNJtAyFw1aYn46AJKNp9asDfO2lXT8xr8wBcY0JaLkBFwGS0ZLhNzfsGP1Ns%2FaI5w%2BiO9cZ9iLBq8rClqnxrHHyb6qQFTvGZCOG08lHer4ShicX2AUq8VPh3PK%2Fo8l8aTkQ30gwb0ZAWnfX3Zzr1ayRaA%2FRALXsk1U8lmT3qsR%2BcGCkvRTux6TVg6x1pIByP9iDivgLUT8vYh1TsqkpNDO5gGwmPNX%2Fe%2BXkuZ30duRQYj%2FN1gL%2FBgCKENDMCz1nm%2F3%2B5agdt6wp%2F14STLcJIvMZ790F5VmzzLA%2Fdkzm12pYSKp2UIUlyIA5IF5YG%2FASKaGbYLilWCw%2FBKzycVa2wACJFCJLeTNMiIpdd72TMnUFR4FnA%2FexuPCVuRQU7oqk0RNSCIagrl3DpM5odrb0tiVIsT3bxIgAj5Y9Up03zEjqWL1QSJnQDl%2BUbP%2Ba42dibQkDgdceG33aoH8zFnOCAIFhFzcnvZN2pG12XEuR%2F3JR3taWGE1wtAom4HCez%2FJeRx565hfz78Z4mVFHNhz55SofoJ6agp0fGJSGjGGoLmd5KM2OqH9l6YII5ugOGfB4CYY%3D&nvMid=82279148456&catId=50001332"},null,{"$f":"+_xlfn.RANK.AVG(Summary!I25,Summary!$I$13:$I$91,1)","v":10},{"$f":"+_xlfn.RANK.AVG(Summary!J25,Summary!$J$13:$J$91,0)","v":7},{"$f":"+_xlfn.RANK.AVG(Summary!K25,Summary!$K$13:$K$91,0)","v":13},10,6]
[8,"한샘 하이 높이 각도 조절 책상 1200",null,299450,0,808,null,"https://cr.shopping.naver.com/adcr.nhn?x=dbepRNlJm6UTGHLdyAtAmf%2F%2F%2Fw%3D%3DsPGMzh5dhVBFuKDJW%2Fj1dBGkMXO4sEy0I7K58%2BpO7syT%2BV2Z1R9fh6msUn3l%2FMjx5y%2FipMUrBiOX27%2B8TVakhEV1qHYLIBB4klqyUFVJrM7E9Jl2wDM%2FAWKfycVx%2FkE3IfBqS3mXuWwE3MZp%2BCjkIC0gAn8lD2%2BxrgblrBqYwPdWug%2B9sjA7rHdeMLkY%2BwIMUpjqsU3REKMjN06my%2BmryH%2FV2raiCF7aFk4I1%2BRMpbA46%2FEXhZgbhtRjphLcAni%2FciitGqoWNKiHOCPjKnfgRA8uxJYlMD%2BCjtqS%2FXLNFGbVthMLLkE5u%2BEmsBzTOOCHE334rL%2BbR36BhYe0R%2FrUmjgBSTS1sRv49oBHxm%2Bxq6HgTt9KtWaRPcIx9SePWEFnyUZNJpAbl95syRuwd2PRBMxZ6uFodlyZ9bfk20%2BE%2B0r3YG1CCr%2BsWAjEmskdg5gFY3BFDJPmINGVd22UpeKU8sgVGZUvoZxj1hH3O6IMa5s%2FkiLngQbgtXEQD%2Bf5aLDxtfEHx9PnfCWU1mNk8NF3%2Fyg1UVvFNLj3ggqaetEGxN4ttpDpSwkGGegSUHVI1krRLPAcP1l2fQoJFKUhsGqKIdWJxyHBE3CYnzhPLG%2BOCDMW1n%2FqZuY76AKrmCI%2FAfoGo1qdArC%2B0gIx3OV65P5I9dMcgIRCk8vtGb7Z%2FKGMSEdE%3D&nvMid=13486454830&catId=50001332",null,{"$f":"IF(G37=0,H37,IF(AND(G37=0,H37=0),I37,G37))","v":"https://cr.shopping.naver.com/adcr.nhn?x=dbepRNlJm6UTGHLdyAtAmf%2F%2F%2Fw%3D%3DsPGMzh5dhVBFuKDJW%2Fj1dBGkMXO4sEy0I7K58%2BpO7syT%2BV2Z1R9fh6msUn3l%2FMjx5y%2FipMUrBiOX27%2B8TVakhEV1qHYLIBB4klqyUFVJrM7E9Jl2wDM%2FAWKfycVx%2FkE3IfBqS3mXuWwE3MZp%2BCjkIC0gAn8lD2%2BxrgblrBqYwPdWug%2B9sjA7rHdeMLkY%2BwIMUpjqsU3REKMjN06my%2BmryH%2FV2raiCF7aFk4I1%2BRMpbA46%2FEXhZgbhtRjphLcAni%2FciitGqoWNKiHOCPjKnfgRA8uxJYlMD%2BCjtqS%2FXLNFGbVthMLLkE5u%2BEmsBzTOOCHE334rL%2BbR36BhYe0R%2FrUmjgBSTS1sRv49oBHxm%2Bxq6HgTt9KtWaRPcIx9SePWEFnyUZNJpAbl95syRuwd2PRBMxZ6uFodlyZ9bfk20%2BE%2B0r3YG1CCr%2BsWAjEmskdg5gFY3BFDJPmINGVd22UpeKU8sgVGZUvoZxj1hH3O6IMa5s%2FkiLngQbgtXEQD%2Bf5aLDxtfEHx9PnfCWU1mNk8NF3%2Fyg1UVvFNLj3ggqaetEGxN4ttpDpSwkGGegSUHVI1krRLPAcP1l2fQoJFKUhsGqKIdWJxyHBE3CYnzhPLG%2BOCDMW1n%2FqZuY76AKrmCI%2FAfoGo1qdArC%2B0gIx3OV65P5I9dMcgIRCk8vtGb7Z%2FKGMSEdE%3D&nvMid=13486454830&catId=50001332"},null,{"$f":"+_xlfn.RANK.AVG(Summary!I27,Summary!$I$13:$I$91,1)","v":25},{"$f":"+_xlfn.RANK.AVG(Summary!J27,Summary!$J$13:$J$91,0)","v":29.5},{"$f":"+_xlfn.RANK.AVG(Summary!K27,Summary!$K$13:$K$91,0)","v":11},21.833333333333332,23]
[9,"[데스커] 신학기 책상세트","데스커",319000,8270,7360,null,"https://cr.shopping.naver.com/adcr.nhn?x=wLUdVzDlaOjIJ7L65dHNtf%2F%2F%2Fw%3D%3DsO%2FQKyn2Cdv1LTOvpVihdCxG%2BzuD0wjlpwdmZMduf1ZFJtAyFw1aYn46AJKNp9asDJp8Iuip%2FAoCBjiOhdImPG3Jq1vHI4ktGRP%2BsF2UWEJyiO9cZ9iLBq8rClqnxrHHyb6qQFTvGZCOG08lHer4ShicX2AUq8VPh3PK%2Fo8l8aTkQ30gwb0ZAWnfX3Zzr1ayRdSbIo6nUYalQY5YiPN0Au8WL7tXRfx8vkBbmed%2BJFD6DivgLUT8vYh1TsqkpNDO5gGwmPNX%2Fe%2BXkuZ30duRQYj%2FN1gL%2FBgCKENDMCz1nm%2F3K3aCCrpniqkrq4us%2F1L1j%2FZNp%2B4eHbfBrsUARTGcTpqp2UIUlyIA5IF5YG%2FASKaH%2BcGli5xpqRmvnv8VxMB%2BSFZchQwqvmVRRObyR8d3FAbjZg9KsQK0YME%2BwRObRp59iwvQmmkCFuRb4%2BxL1Z3IphAaAJRpE1Lv9N94Zb0l2NnyyKFK8UFEOLgLDP4p%2FlnxaSABahphKfjZh2Z6oFesFfcqucCbCYBKqb51c7mPZxV4%2BgnwGukJlCGrQ8rKhRdls9VwffG%2FWJmn19nc8aQfJzY6of2Xpggjm6A4Z8HgJhg%3D%3D&nvMid=81689168293&catId=50001332","https://m.smartstore.naver.com/main/products/4144647046",{"$f":"IF(G38=0,H38,IF(AND(G38=0,H38=0),I38,G38))","v":"https://cr.shopping.naver.com/adcr.nhn?x=wLUdVzDlaOjIJ7L65dHNtf%2F%2F%2Fw%3D%3DsO%2FQKyn2Cdv1LTOvpVihdCxG%2BzuD0wjlpwdmZMduf1ZFJtAyFw1aYn46AJKNp9asDJp8Iuip%2FAoCBjiOhdImPG3Jq1vHI4ktGRP%2BsF2UWEJyiO9cZ9iLBq8rClqnxrHHyb6qQFTvGZCOG08lHer4ShicX2AUq8VPh3PK%2Fo8l8aTkQ30gwb0ZAWnfX3Zzr1ayRdSbIo6nUYalQY5YiPN0Au8WL7tXRfx8vkBbmed%2BJFD6DivgLUT8vYh1TsqkpNDO5gGwmPNX%2Fe%2BXkuZ30duRQYj%2FN1gL%2FBgCKENDMCz1nm%2F3K3aCCrpniqkrq4us%2F1L1j%2FZNp%2B4eHbfBrsUARTGcTpqp2UIUlyIA5IF5YG%2FASKaH%2BcGli5xpqRmvnv8VxMB%2BSFZchQwqvmVRRObyR8d3FAbjZg9KsQK0YME%2BwRObRp59iwvQmmkCFuRb4%2BxL1Z3IphAaAJRpE1Lv9N94Zb0l2NnyyKFK8UFEOLgLDP4p%2FlnxaSABahphKfjZh2Z6oFesFfcqucCbCYBKqb51c7mPZxV4%2BgnwGukJlCGrQ8rKhRdls9VwffG%2FWJmn19nc8aQfJzY6of2Xpggjm6A4Z8HgJhg%3D%3D&nvMid=81689168293&catId=50001332"},null,{"$f":"+_xlfn.RANK.AVG(Summary!I29,Summary!$I$13:$I$91,1)","v":26.5},{"$f":"+_xlfn.RANK.AVG(Summary!J29,Summary!$J$13:$J$91,0)","v":1.5},{"$f":"+_xlfn.RANK.AVG(Summary!K29,Summary!$K$13:$K$91,0)","v":1.5},9.8333333333333339,4]
[10,"스터디업 데스크 스텐다드 그레이 어린이 아동 초등학생 높이 각도조절책상","엑세스엠",249000,295,150,null,"https://cr.shopping.naver.com/adcr.nhn?x=xbfufbcWSwYWkUM%2FiyRCUv%2F%2F%2Fw%3D%3Dsd8F4z4C3EbZu4E%2FxwYZ0Oinx0UPi64PLDtJB7Y9OkVtJtAyFw1aYn46AJKNp9asD3a32DfcEDjZTPUmIWdPX3UeYwRAZpv29HYhavP07IrWiO9cZ9iLBq8rClqnxrHHyb6qQFTvGZCOG08lHer4ShicX2AUq8VPh3PK%2Fo8l8aTkQ30gwb0ZAWnfX3Zzr1ayRC3yud6gw7M%2BQQ4j2%2BjgdrIb%2FODXbs6xNbSXCyRKkBn%2BDivgLUT8vYh1TsqkpNDO5gGwmPNX%2Fe%2BXkuZ30duRQYj%2FN1gL%2FBgCKENDMCz1nm%2F1u7dHwgiOmVleJ5cAdVQiiU%2FlxIfG4%2FSaO4ySZ39yo5qp2UIUlyIA5IF5YG%2FASKaE6YRfuBrT9byvNraox0DFRFCJLeTNMiIpdd72TMnUFR1yCplwTtkgfNzm8S8fVzEWHme1uYro09q9J5WFIGcL%2BGEcs%2F2mCmSnf8K1AUPxZThKI%2FLjzwcJq%2BwBvZ9xY%2Fj6XTllgCNJaCYsNRET32xAdX2rBRYntleLhav5vp8oK0GML36UoRlbzgdaQNvPWfi40%2BGZNYoeEN44gNBUFYB8pKbkWsHDsa3eeK1do7lNHs8sShCurMyqxNAsiC5ngoRG9j2QOU8MqxjltXb2i6vIrg0M04KVkcldo2g9jjS0TC1aFndIwdNwuWmKtx1HNSCrUkiyUGZ3FpPHvE7X48%2Bhb&nvMid=80946629310&catId=50001332","https://m.smartstore.naver.com/main/products/3402112227",{"$f":"IF(G39=0,H39,IF(AND(G39=0,H39=0),I39,G39))","v":"https://cr.shopping.naver.com/adcr.nhn?x=xbfufbcWSwYWkUM%2FiyRCUv%2F%2F%2Fw%3D%3Dsd8F4z4C3EbZu4E%2FxwYZ0Oinx0UPi64PLDtJB7Y9OkVtJtAyFw1aYn46AJKNp9asD3a32DfcEDjZTPUmIWdPX3UeYwRAZpv29HYhavP07IrWiO9cZ9iLBq8rClqnxrHHyb6qQFTvGZCOG08lHer4ShicX2AUq8VPh3PK%2Fo8l8aTkQ30gwb0ZAWnfX3Zzr1ayRC3yud6gw7M%2BQQ4j2%2BjgdrIb%2FODXbs6xNbSXCyRKkBn%2BDivgLUT8vYh1TsqkpNDO5gGwmPNX%2Fe%2BXkuZ30duRQYj%2FN1gL%2FBgCKENDMCz1nm%2F1u7dHwgiOmVleJ5cAdVQiiU%2FlxIfG4%2FSaO4ySZ39yo5qp2UIUlyIA5IF5YG%2FASKaE6YRfuBrT9byvNraox0DFRFCJLeTNMiIpdd72TMnUFR1yCplwTtkgfNzm8S8fVzEWHme1uYro09q9J5WFIGcL%2BGEcs%2F2mCmSnf8K1AUPxZThKI%2FLjzwcJq%2BwBvZ9xY%2Fj6XTllgCNJaCYsNRET32xAdX2rBRYntleLhav5vp8oK0GML36UoRlbzgdaQNvPWfi40%2BGZNYoeEN44gNBUFYB8pKbkWsHDsa3eeK1do7lNHs8sShCurMyqxNAsiC5ngoRG9j2QOU8MqxjltXb2i6vIrg0M04KVkcldo2g9jjS0TC1aFndIwdNwuWmKtx1HNSCrUkiyUGZ3FpPHvE7X48%2Bhb&nvMid=80946629310&catId=50001332"},null,{"$f":"+_xlfn.RANK.AVG(Summary!I31,Summary!$I$13:$I$91,1)","v":15.5},{"$f":"+_xlfn.RANK.AVG(Summary!J31,Summary!$J$13:$J$91,0)","v":8},{"$f":"+_xlfn.RANK.AVG(Summary!K31,Summary!$K$13:$K$91,0)","v":23},15.5,13]
[11,"컴프프로 퍼펙트1200 책상",null,566790,0,20,null,"https://cr.shopping.naver.com/adcr.nhn?x=lb6Y4D6q%2BIP%2FLDD84CQbwP%2F%2F%2Fw%3D%3Ds35wz%2BZIQid3o6YEcSxLKNS%2BzttOBDH%2FhOQ7Bh0xfmydJtAyFw1aYn46AJKNp9asDtiiOBNn2CSJDm6U6e%2FrL733OucZvni%2BBmHaflOS0USWiO9cZ9iLBq8rClqnxrHHyb6qQFTvGZCOG08lHer4ShtyGaSr%2B0dRu37W7MMIB4NFk9Io6iZoAfEBQfsbkhBMBWRVODS1%2FTH624AOPKXsBGyNjHweUB3GednbYmFiDsS7%2BGZlqeppNdVK2bKs2glgCN1CzfoTmgVhJuqiNatZgI5oC7oFHpSLbDFBBIk9qUb4gVc9gll0tM8AA6hcp67HBhmeWtJmvw8M90EK%2Bzy5a1yVdN3LpKf%2FbKuiZi7z1XJQ5nTnefroPuYtGFuuC8fx710X17Oq%2BZVVgvWYFnlYKj1d%2BqILAG09hjAR1K3qLYkCn2bUryOyY87yss%2FP3NIJx4AVvRTST6T1OuSkPCjEaSrnlIxB87hhcMDebdXhJjs2oWrBew3v34XdfqmBlszUo%2FNRuxlUrfa2SBj%2FJRbB6jrwbsvO5FFNogLRNusqJOdkd8ScHLiqM6VqdaV6qZThwYnHIcETcJifOE8sb44IMxbTrFtoJbVgvXhFg%2B3wrOPaaUhE%2BSwjqXRI1MOl6uQihxyAhEKTy%2B0Zvtn8oYxIR0Q%3D%3D&nvMid=16990874227&catId=50001332",null,{"$f":"IF(G40=0,H40,IF(AND(G40=0,H40=0),I40,G40))","v":"https://cr.shopping.naver.com/adcr.nhn?x=lb6Y4D6q%2BIP%2FLDD84CQbwP%2F%2F%2Fw%3D%3Ds35wz%2BZIQid3o6YEcSxLKNS%2BzttOBDH%2FhOQ7Bh0xfmydJtAyFw1aYn46AJKNp9asDtiiOBNn2CSJDm6U6e%2FrL733OucZvni%2BBmHaflOS0USWiO9cZ9iLBq8rClqnxrHHyb6qQFTvGZCOG08lHer4ShtyGaSr%2B0dRu37W7MMIB4NFk9Io6iZoAfEBQfsbkhBMBWRVODS1%2FTH624AOPKXsBGyNjHweUB3GednbYmFiDsS7%2BGZlqeppNdVK2bKs2glgCN1CzfoTmgVhJuqiNatZgI5oC7oFHpSLbDFBBIk9qUb4gVc9gll0tM8AA6hcp67HBhmeWtJmvw8M90EK%2Bzy5a1yVdN3LpKf%2FbKuiZi7z1XJQ5nTnefroPuYtGFuuC8fx710X17Oq%2BZVVgvWYFnlYKj1d%2BqILAG09hjAR1K3qLYkCn2bUryOyY87yss%2FP3NIJx4AVvRTST6T1OuSkPCjEaSrnlIxB87hhcMDebdXhJjs2oWrBew3v34XdfqmBlszUo%2FNRuxlUrfa2SBj%2FJRbB6jrwbsvO5FFNogLRNusqJOdkd8ScHLiqM6VqdaV6qZThwYnHIcETcJifOE8sb44IMxbTrFtoJbVgvXhFg%2B3wrOPaaUhE%2BSwjqXRI1MOl6uQihxyAhEKTy%2B0Zvtn8oYxIR0Q%3D%3D&nvMid=16990874227&catId=50001332"},null,{"$f":"+_xlfn.RANK.AVG(Summary!I33,Summary!$I$13:$I$91,1)","v":33},{"$f":"+_xlfn.RANK.AVG(Summary!J33,Summary!$J$13:$J$91,0)","v":29.5},{"$f":"+_xlfn.RANK.AVG(Summary!K33,Summary!$K$13:$K$91,0)","v":34},32.166666666666664,37]
[12,"마카롱 2인용 트윈 각도조절 쌍둥이 초등학생 책상 세트","힐링가구",580000,83,139,null,"https://cr.shopping.naver.com/adcr.nhn?x=GrTfRH9cHWL%2FyN3%2FECVBNv%2F%2F%2Fw%3D%3Ds7eyCvfMwXhtfeRmG6A%2BkhVP3twoaHOHC3H9O%2FgP2Rx5JtAyFw1aYn46AJKNp9asDTIykBLfLujxfLPQcc5z9z4e5dDp9Bc3mvvc%2BR6ycjPyiO9cZ9iLBq8rClqnxrHHyb6qQFTvGZCOG08lHer4ShicX2AUq8VPh3PK%2Fo8l8aTkQ30gwb0ZAWnfX3Zzr1ayRrvaWs1GPfC4xb8KlC5c%2FEaHboiiC2Qxlof11gv9jn9uDivgLUT8vYh1TsqkpNDO5gGwmPNX%2Fe%2BXkuZ30duRQYj%2FN1gL%2FBgCKENDMCz1nm%2F1JlCZQJZZoqy7pJpEnOzHQIbR3UcpJlnmkKpsqwcrjl6p2UIUlyIA5IF5YG%2FASKaFSemn1NVp3ePd94pdF22tDRFadIoK8rzHqu58MsZGpJ92QaBwOw0npb%2FoTWggnzCxn5i5fLzoxFET%2Fm99RnGxlLIsQVs0qZlOQ7F6m8qSxnYFnA%2FexuPCVuRQU7oqk0RPAXACRW2093leEXbqiyMM9Bp0MGyPaaw%2F%2Bpz%2BFYP7R3yvIPGaov2povOrfeQkqSK57yRI57RgpI74QzeqJc%2FF0IAK9PSciGYKIXKLWdlpAffOEznZHUvhocdol0Y%2FSf6%2BOv71FWkGY2pirP5U8g%2BNLQdAiJdwXirBRdnaxfvrBbw%3D%3D&nvMid=80617207684&catId=50001332","https://m.smartstore.naver.com/main/products/3119463436",{"$f":"IF(G41=0,H41,IF(AND(G41=0,H41=0),I41,G41))","v":"https://cr.shopping.naver.com/adcr.nhn?x=GrTfRH9cHWL%2FyN3%2FECVBNv%2F%2F%2Fw%3D%3Ds7eyCvfMwXhtfeRmG6A%2BkhVP3twoaHOHC3H9O%2FgP2Rx5JtAyFw1aYn46AJKNp9asDTIykBLfLujxfLPQcc5z9z4e5dDp9Bc3mvvc%2BR6ycjPyiO9cZ9iLBq8rClqnxrHHyb6qQFTvGZCOG08lHer4ShicX2AUq8VPh3PK%2Fo8l8aTkQ30gwb0ZAWnfX3Zzr1ayRrvaWs1GPfC4xb8KlC5c%2FEaHboiiC2Qxlof11gv9jn9uDivgLUT8vYh1TsqkpNDO5gGwmPNX%2Fe%2BXkuZ30duRQYj%2FN1gL%2FBgCKENDMCz1nm%2F1JlCZQJZZoqy7pJpEnOzHQIbR3UcpJlnmkKpsqwcrjl6p2UIUlyIA5IF5YG%2FASKaFSemn1NVp3ePd94pdF22tDRFadIoK8rzHqu58MsZGpJ92QaBwOw0npb%2FoTWggnzCxn5i5fLzoxFET%2Fm99RnGxlLIsQVs0qZlOQ7F6m8qSxnYFnA%2FexuPCVuRQU7oqk0RPAXACRW2093leEXbqiyMM9Bp0MGyPaaw%2F%2Bpz%2BFYP7R3yvIPGaov2povOrfeQkqSK57yRI57RgpI74QzeqJc%2FF0IAK9PSciGYKIXKLWdlpAffOEznZHUvhocdol0Y%2FSf6%2BOv71FWkGY2pirP5U8g%2BNLQdAiJdwXirBRdnaxfvrBbw%3D%3D&nvMid=80617207684&catId=50001332"},null,{"$f":"+_xlfn.RANK.AVG(Summary!I35,Summary!$I$13:$I$91,1)","v":34},{"$f":"+_xlfn.RANK.AVG(Summary!J35,Summary!$J$13:$J$91,0)","v":12},{"$f":"+_xlfn.RANK.AVG(Summary!K35,Summary!$K$13:$K$91,0)","v":24},23.333333333333332,26]
[13,"[위드그로우]스마트2.0 어린이 바른자세 높이각도조절 초등학생 책상 1200(그레이)","하로스토어",299000,159,85,null,"https://cr.shopping.naver.com/adcr.nhn?x=UBrTPa3xLPbbqwudHzLrYf%2F%2F%2Fw%3D%3DsdTm8WZmkEHZyb1yWQosyhm0n6CR%2BWXkdxun5xLLiTnVJtAyFw1aYn46AJKNp9asDkGHh9WxldsQvxD1qeh8I3zgJcXYn%2BBugKFA9dtj3OsGiO9cZ9iLBq8rClqnxrHHyb6qQFTvGZCOG08lHer4ShicX2AUq8VPh3PK%2Fo8l8aTkQ30gwb0ZAWnfX3Zzr1ayReBzLin%2FCBLBqqUGmrPOG92C5jrQl32hyTAnThpWr18SDivgLUT8vYh1TsqkpNDO5gGwmPNX%2Fe%2BXkuZ30duRQYj%2FN1gL%2FBgCKENDMCz1nm%2F3R7FC1k94%2FmInZc71iZIqTmzevvbZ8gnhjWO5Yd6RAL6p2UIUlyIA5IF5YG%2FASKaHqRLm6srjmjY00TNDp513CFZchQwqvmVRRObyR8d3FAUqDvPVgX5EKM%2FP9YVnOnq7vzDOZkSAXYxg7yUER1tbxWIU4RVCXnaknwTRrIqCa7VwxsYVXLdG2z3ehX%2B%2F34hoPv%2FN4wqnBtLZGBuXCudmlogveIV3UpBEu1ZeW%2FYF%2FEmcHEHieaRf%2F%2ByJXU0GkkiHYCV8k5XEyQvzRIBYlv4FLQmA1gIazz9lusRqkwEZssZAJTisD2oQhMmHfRPpWpo4G6mEtMrkkK0Kl024yNdBQohPT6XZNPN0O5Jedm1iZwIl1w%2BgTYi1zPfkBaeK5VdmCqA6%2BrrPkSkQjk3bFq%2FUy&nvMid=80411596933&catId=50001332","https://m.smartstore.naver.com/main/products/2913852955",{"$f":"IF(G42=0,H42,IF(AND(G42=0,H42=0),I42,G42))","v":"https://cr.shopping.naver.com/adcr.nhn?x=UBrTPa3xLPbbqwudHzLrYf%2F%2F%2Fw%3D%3DsdTm8WZmkEHZyb1yWQosyhm0n6CR%2BWXkdxun5xLLiTnVJtAyFw1aYn46AJKNp9asDkGHh9WxldsQvxD1qeh8I3zgJcXYn%2BBugKFA9dtj3OsGiO9cZ9iLBq8rClqnxrHHyb6qQFTvGZCOG08lHer4ShicX2AUq8VPh3PK%2Fo8l8aTkQ30gwb0ZAWnfX3Zzr1ayReBzLin%2FCBLBqqUGmrPOG92C5jrQl32hyTAnThpWr18SDivgLUT8vYh1TsqkpNDO5gGwmPNX%2Fe%2BXkuZ30duRQYj%2FN1gL%2FBgCKENDMCz1nm%2F3R7FC1k94%2FmInZc71iZIqTmzevvbZ8gnhjWO5Yd6RAL6p2UIUlyIA5IF5YG%2FASKaHqRLm6srjmjY00TNDp513CFZchQwqvmVRRObyR8d3FAUqDvPVgX5EKM%2FP9YVnOnq7vzDOZkSAXYxg7yUER1tbxWIU4RVCXnaknwTRrIqCa7VwxsYVXLdG2z3ehX%2B%2F34hoPv%2FN4wqnBtLZGBuXCudmlogveIV3UpBEu1ZeW%2FYF%2FEmcHEHieaRf%2F%2ByJXU0GkkiHYCV8k5XEyQvzRIBYlv4FLQmA1gIazz9lusRqkwEZssZAJTisD2oQhMmHfRPpWpo4G6mEtMrkkK0Kl024yNdBQohPT6XZNPN0O5Jedm1iZwIl1w%2BgTYi1zPfkBaeK5VdmCqA6%2BrrPkSkQjk3bFq%2FUy&nvMid=80411596933&catId=50001332"},null,{"$f":"+_xlfn.RANK.AVG(Summary!I37,Summary!$I$13:$I$91,1)","v":24},{"$f":"+_xlfn.RANK.AVG(Summary!J37,Summary!$J$13:$J$91,0)","v":9},{"$f":"+_xlfn.RANK.AVG(Summary!K37,Summary!$K$13:$K$91,0)","v":28},20.333333333333332,18.5]
[14,"신학기입학기념 행사 BTS 초등학생 키즈 어린이 책상 세트 구성 E0등급","가구컴퍼스",75500,1127,1250,null,"https://cr.shopping.naver.com/adcr.nhn?x=synvqWyJeOGSP78l2WY7tf%2F%2F%2Fw%3D%3Dsyd95%2BAlDFrkMU4VcCHukmiw1af4iRWycfOahf95DLrNJtAyFw1aYn46AJKNp9asD6DGuFh5liOcRdjD70BwDA1KOxf8FkoN%2BUUmEs83usCWiO9cZ9iLBq8rClqnxrHHyb6qQFTvGZCOG08lHer4ShicX2AUq8VPh3PK%2Fo8l8aTkQ30gwb0ZAWnfX3Zzr1ayRdWaCUBd5%2FoJ84gzLnzL0a7NYk%2F3p6V0MjME5x00e1MCDivgLUT8vYh1TsqkpNDO5gGwmPNX%2Fe%2BXkuZ30duRQYj%2FN1gL%2FBgCKENDMCz1nm%2F0Wo8OpUwtPWrN42jwEeuZ%2BIjJuNFJJc9koM3L46c6ZBap2UIUlyIA5IF5YG%2FASKaE%2BGI%2FoUgiHrt2a6OF25BVIFCJLeTNMiIpdd72TMnUFRytXt0peIZ4yW%2F3k7InvoF7ZAfkZattztyVFBC8Na7WHkhwv51bKSSmh6v%2FCRp6fawNoOHiSKtmsNuzRjKaPx8w4bOZGeQDdlJ3mecO%2BuUQI%2B2FAGlqub4FD8ecPXc%2BPAZAaGox1TbaYZ9s3scrD1pEKRssznCph5mvcbAefsKftkAlOKwPahCEyYd9E%2BlamjgTiCDmrYCYw9t64iuLf2M0vUayEt1DnOaYKL%2Bi6qKgKTl4WrvCxnNG8oa%2BrqlJxkYKoDr6us%2BRKRCOTdsWr9TI%3D&nvMid=82208103255&catId=50001332","https://m.smartstore.naver.com/main/products/4663582624",{"$f":"IF(G43=0,H43,IF(AND(G43=0,H43=0),I43,G43))","v":"https://cr.shopping.naver.com/adcr.nhn?x=synvqWyJeOGSP78l2WY7tf%2F%2F%2Fw%3D%3Dsyd95%2BAlDFrkMU4VcCHukmiw1af4iRWycfOahf95DLrNJtAyFw1aYn46AJKNp9asD6DGuFh5liOcRdjD70BwDA1KOxf8FkoN%2BUUmEs83usCWiO9cZ9iLBq8rClqnxrHHyb6qQFTvGZCOG08lHer4ShicX2AUq8VPh3PK%2Fo8l8aTkQ30gwb0ZAWnfX3Zzr1ayRdWaCUBd5%2FoJ84gzLnzL0a7NYk%2F3p6V0MjME5x00e1MCDivgLUT8vYh1TsqkpNDO5gGwmPNX%2Fe%2BXkuZ30duRQYj%2FN1gL%2FBgCKENDMCz1nm%2F0Wo8OpUwtPWrN42jwEeuZ%2BIjJuNFJJc9koM3L46c6ZBap2UIUlyIA5IF5YG%2FASKaE%2BGI%2FoUgiHrt2a6OF25BVIFCJLeTNMiIpdd72TMnUFRytXt0peIZ4yW%2F3k7InvoF7ZAfkZattztyVFBC8Na7WHkhwv51bKSSmh6v%2FCRp6fawNoOHiSKtmsNuzRjKaPx8w4bOZGeQDdlJ3mecO%2BuUQI%2B2FAGlqub4FD8ecPXc%2BPAZAaGox1TbaYZ9s3scrD1pEKRssznCph5mvcbAefsKftkAlOKwPahCEyYd9E%2BlamjgTiCDmrYCYw9t64iuLf2M0vUayEt1DnOaYKL%2Bi6qKgKTl4WrvCxnNG8oa%2BrqlJxkYKoDr6us%2BRKRCOTdsWr9TI%3D&nvMid=82208103255&catId=50001332"},null,{"$f":"+_xlfn.RANK.AVG(Summary!I39,Summary!$I$13:$I$91,1)","v":4},{"$f":"+_xlfn.RANK.AVG(Summary!J39,Summary!$J$13:$J$91,0)","v":5},{"$f":"+_xlfn.RANK.AVG(Summary!K39,Summary!$K$13:$K$91,0)","v":9},6,1]
[15,"리바트 뚜뚜 높이조절 아이 책상",null,66900,0,707,null,"https://cr.shopping.naver.com/adcr.nhn?x=TyHb3855LNeOjcrBYi4MUv%2F%2F%2Fw%3D%3DsqcQItkmn2X%2FsqEmLH4qXK%2FPshjOIUF2yAgnoHfkwDRTD8KTAmf4KWGP7K8A663CAwFUVYY4pR%2FJLVKomt4mcQj0lauKhw5Foz5059Ft7dYeL8yT9vZuDvo2djJMqXDsCb7MfLQKIdjCgfcUPwbcJp0ls1M9xucXxkPPt7QTmSRFr6kdrp7BvT8OlwZ7P37YyYc4PRJhHChjAdO7I%2Fve7XhOv3H8oQoga1m8Esygj8rnYlO%2Fk4kxCoWN1gk8LWSU%2BRbfNFVivhP8U%2BTROBimK%2BwWrj3yhjv32odB%2BAe4KRcC4culXwc2z5U0bwq8AvoHHA5ijqTU6jnRNRTh%2BkUVsAgez%2FY8eSma9aMvarLWce5t3C1uwxRA7WjuJUp52qrfBIqR44qYXRSe5t7Ll2jTKgGQim0uSGV45GygZvcFQrpAhqUGi7eNPASJqHFD%2FmHIc1AugLKT7c%2BHB%2F6TSd5aHRkqxorqzO%2BBGjlflcLUedbIVj7k%2Fv%2F5xEI9IfJz8vhCYCjgJ6E78E4KELJQULHtbgfzUbsZVK32tkgY%2FyUWweo6KqmhhH8ojviOTuqJQsyclXUY2b1S3Sz3M4iSo08JBKBGk4XMJtozo5T3u6g%2BJ%2BOsJVk9jJdBRgmVP6yRgzMNo6ZPdrMI7ek5ePlD97VAlfscgIRCk8vtGb7Z%2FKGMSEdE%3D&nvMid=17203450963&catId=50001332",null,{"$f":"IF(G44=0,H44,IF(AND(G44=0,H44=0),I44,G44))","v":"https://cr.shopping.naver.com/adcr.nhn?x=TyHb3855LNeOjcrBYi4MUv%2F%2F%2Fw%3D%3DsqcQItkmn2X%2FsqEmLH4qXK%2FPshjOIUF2yAgnoHfkwDRTD8KTAmf4KWGP7K8A663CAwFUVYY4pR%2FJLVKomt4mcQj0lauKhw5Foz5059Ft7dYeL8yT9vZuDvo2djJMqXDsCb7MfLQKIdjCgfcUPwbcJp0ls1M9xucXxkPPt7QTmSRFr6kdrp7BvT8OlwZ7P37YyYc4PRJhHChjAdO7I%2Fve7XhOv3H8oQoga1m8Esygj8rnYlO%2Fk4kxCoWN1gk8LWSU%2BRbfNFVivhP8U%2BTROBimK%2BwWrj3yhjv32odB%2BAe4KRcC4culXwc2z5U0bwq8AvoHHA5ijqTU6jnRNRTh%2BkUVsAgez%2FY8eSma9aMvarLWce5t3C1uwxRA7WjuJUp52qrfBIqR44qYXRSe5t7Ll2jTKgGQim0uSGV45GygZvcFQrpAhqUGi7eNPASJqHFD%2FmHIc1AugLKT7c%2BHB%2F6TSd5aHRkqxorqzO%2BBGjlflcLUedbIVj7k%2Fv%2F5xEI9IfJz8vhCYCjgJ6E78E4KELJQULHtbgfzUbsZVK32tkgY%2FyUWweo6KqmhhH8ojviOTuqJQsyclXUY2b1S3Sz3M4iSo08JBKBGk4XMJtozo5T3u6g%2BJ%2BOsJVk9jJdBRgmVP6yRgzMNo6ZPdrMI7ek5ePlD97VAlfscgIRCk8vtGb7Z%2FKGMSEdE%3D&nvMid=17203450963&catId=50001332"},null,{"$f":"+_xlfn.RANK.AVG(Summary!I41,Summary!$I$13:$I$91,1)","v":2},{"$f":"+_xlfn.RANK.AVG(Summary!J41,Summary!$J$13:$J$91,0)","v":29.5},{"$f":"+_xlfn.RANK.AVG(Summary!K41,Summary!$K$13:$K$91,0)","v":12},14.5,11]
[16,"일룸 로이모노 1200폭 5단 책상세트 D600",null,499000,0,257,null,"https://cr.shopping.naver.com/adcr.nhn?x=3Ksrux%2BT0exkR%2B1FJFOPLv%2F%2F%2Fw%3D%3DskLB%2FkhFvfoHv6QyUznm1vDxjQ5cNV0WHbwijveTmpbJJtAyFw1aYn46AJKNp9asDY2Al5kmLK18R4DHyBMOgnhxW%2FUCyCDvqLiCYsPBi8LyiO9cZ9iLBq8rClqnxrHHyb6qQFTvGZCOG08lHer4ShtyGaSr%2B0dRu37W7MMIB4NFk9Io6iZoAfEBQfsbkhBMBnHx%2Bsp%2BBmakVcIQVRfOq6f4Nb7hKbXszYj1XY7ycEDr%2BGZlqeppNdVK2bKs2glgCN1CzfoTmgVhJuqiNatZgI5oC7oFHpSLbDFBBIk9qUb4gVc9gll0tM8AA6hcp67HBhmeWtJmvw8M90EK%2Bzy5a1yVdN3LpKf%2FbKuiZi7z1XJRT3RP9neQbhmwf1pOCnS0UNnd5JL5F8kHvhNVyZhiYI1d%2BqILAG09hjAR1K3qLYkD%2B9h%2FPqMhzu5SDNvFHTrimjaR%2FOHVoHfLalzD0o1X59bDzn3c5H6virFSgnW5KKdpwDL0XWKx8C70VRvzQnrx0GuU09XJq%2FuFt2zCAlPuHDoS4irNABbDV09GK5SUFeP41QscUpgLt%2BxYDey0WS19WDIVfwR9g%2BB7vFaDczfOlP8NqaKb5OR8crY265r4LmMQJ0QcP8dXyGlNIguLkkE09SEGSh5%2BUv8X8Zb%2Fg4YiHYhVqr7qDIonrMPuUrmnB%2BEhB0CIl3BeKsFF2drF%2B%2BsFv&nvMid=21444976945&catId=50001332",null,{"$f":"IF(G45=0,H45,IF(AND(G45=0,H45=0),I45,G45))","v":"https://cr.shopping.naver.com/adcr.nhn?x=3Ksrux%2BT0exkR%2B1FJFOPLv%2F%2F%2Fw%3D%3DskLB%2FkhFvfoHv6QyUznm1vDxjQ5cNV0WHbwijveTmpbJJtAyFw1aYn46AJKNp9asDY2Al5kmLK18R4DHyBMOgnhxW%2FUCyCDvqLiCYsPBi8LyiO9cZ9iLBq8rClqnxrHHyb6qQFTvGZCOG08lHer4ShtyGaSr%2B0dRu37W7MMIB4NFk9Io6iZoAfEBQfsbkhBMBnHx%2Bsp%2BBmakVcIQVRfOq6f4Nb7hKbXszYj1XY7ycEDr%2BGZlqeppNdVK2bKs2glgCN1CzfoTmgVhJuqiNatZgI5oC7oFHpSLbDFBBIk9qUb4gVc9gll0tM8AA6hcp67HBhmeWtJmvw8M90EK%2Bzy5a1yVdN3LpKf%2FbKuiZi7z1XJRT3RP9neQbhmwf1pOCnS0UNnd5JL5F8kHvhNVyZhiYI1d%2BqILAG09hjAR1K3qLYkD%2B9h%2FPqMhzu5SDNvFHTrimjaR%2FOHVoHfLalzD0o1X59bDzn3c5H6virFSgnW5KKdpwDL0XWKx8C70VRvzQnrx0GuU09XJq%2FuFt2zCAlPuHDoS4irNABbDV09GK5SUFeP41QscUpgLt%2BxYDey0WS19WDIVfwR9g%2BB7vFaDczfOlP8NqaKb5OR8crY265r4LmMQJ0QcP8dXyGlNIguLkkE09SEGSh5%2BUv8X8Zb%2Fg4YiHYhVqr7qDIonrMPuUrmnB%2BEhB0CIl3BeKsFF2drF%2B%2BsFv&nvMid=21444976945&catId=50001332"},null,{"$f":"+_xlfn.RANK.AVG(Summary!I43,Summary!$I$13:$I$91,1)","v":32},{"$f":"+_xlfn.RANK.AVG(Summary!J43,Summary!$J$13:$J$91,0)","v":29.5},{"$f":"+_xlfn.RANK.AVG(Summary!K43,Summary!$K$13:$K$91,0)","v":15},25.5,30]
[17,"한샘 티오 그로우 각도조절 책상세트 5단 120x75cm",null,354580,0,44,null,"https://cr.shopping.naver.com/adcr.nhn?x=iuCE3TtUKgaiVmPlBdDCEP%2F%2F%2Fw%3D%3DskVeoq0%2B%2Blt%2F%2F40xdEUUW0Ccdwn60NnkNCcLhbH9S%2F51JtAyFw1aYn46AJKNp9asDCfX9%2FYEM5xogdxBVAnzNPCIG7y0shqpozaOnNtrQNe%2BiO9cZ9iLBq8rClqnxrHHyb6qQFTvGZCOG08lHer4ShtyGaSr%2B0dRu37W7MMIB4NFk9Io6iZoAfEBQfsbkhBMBI6hOGTtVCTRJWvkBwGMvGVjHfzDcckQ5yZrN0sMep3v%2BGZlqeppNdVK2bKs2glgCN1CzfoTmgVhJuqiNatZgI5oC7oFHpSLbDFBBIk9qUb4gVc9gll0tM8AA6hcp67HBhmeWtJmvw8M90EK%2Bzy5a1yVdN3LpKf%2FbKuiZi7z1XJQueyUP2lqQ2N5bGNZONZWTxjXeIzg%2FDMViFEg2cFMMeFd%2BqILAG09hjAR1K3qLYkBViFaZwDc%2BOnoa3KJ0MHRDjCsOZx59V526coHV5SphjbnlIxB87hhcMDebdXhJjs0Q1tPg8lTGnaHEtBW8W0nhY4JDVu4pKYGoIfkJIKI%2Fe9oToQjhQLwZ8JM7Kv3d7xH4naMEIt31NNRlf6HFrv2CikIMBsq3QF%2Ff7mcMVCkTKjUJ%2B%2BGyKcLPNp%2BTPdbX1LxPwCXFJiRdosf3os3K%2FWn1I%2BYBImAe8zzXbpz%2Fv0RdGShblhm9eWwY8cHAFRlwYGADfkLIyuldBS3f8m8e6nLmzUhNzs2VE%2B%2Bisqs3JAEppg%3D%3D&nvMid=25499184522&catId=50001332",null,{"$f":"IF(G46=0,H46,IF(AND(G46=0,H46=0),I46,G46))","v":"https://cr.shopping.naver.com/adcr.nhn?x=iuCE3TtUKgaiVmPlBdDCEP%2F%2F%2Fw%3D%3DskVeoq0%2B%2Blt%2F%2F40xdEUUW0Ccdwn60NnkNCcLhbH9S%2F51JtAyFw1aYn46AJKNp9asDCfX9%2FYEM5xogdxBVAnzNPCIG7y0shqpozaOnNtrQNe%2BiO9cZ9iLBq8rClqnxrHHyb6qQFTvGZCOG08lHer4ShtyGaSr%2B0dRu37W7MMIB4NFk9Io6iZoAfEBQfsbkhBMBI6hOGTtVCTRJWvkBwGMvGVjHfzDcckQ5yZrN0sMep3v%2BGZlqeppNdVK2bKs2glgCN1CzfoTmgVhJuqiNatZgI5oC7oFHpSLbDFBBIk9qUb4gVc9gll0tM8AA6hcp67HBhmeWtJmvw8M90EK%2Bzy5a1yVdN3LpKf%2FbKuiZi7z1XJQueyUP2lqQ2N5bGNZONZWTxjXeIzg%2FDMViFEg2cFMMeFd%2BqILAG09hjAR1K3qLYkBViFaZwDc%2BOnoa3KJ0MHRDjCsOZx59V526coHV5SphjbnlIxB87hhcMDebdXhJjs0Q1tPg8lTGnaHEtBW8W0nhY4JDVu4pKYGoIfkJIKI%2Fe9oToQjhQLwZ8JM7Kv3d7xH4naMEIt31NNRlf6HFrv2CikIMBsq3QF%2Ff7mcMVCkTKjUJ%2B%2BGyKcLPNp%2BTPdbX1LxPwCXFJiRdosf3os3K%2FWn1I%2BYBImAe8zzXbpz%2Fv0RdGShblhm9eWwY8cHAFRlwYGADfkLIyuldBS3f8m8e6nLmzUhNzs2VE%2B%2Bisqs3JAEppg%3D%3D&nvMid=25499184522&catId=50001332"},null,{"$f":"+_xlfn.RANK.AVG(Summary!I45,Summary!$I$13:$I$91,1)","v":29},{"$f":"+_xlfn.RANK.AVG(Summary!J45,Summary!$J$13:$J$91,0)","v":29.5},{"$f":"+_xlfn.RANK.AVG(Summary!K45,Summary!$K$13:$K$91,0)","v":30.5},29.666666666666668,34]
[18,"한샘 티오 그로우 일반책상세트 5단 120x60cm",null,249010,0,101,null,"https://cr.shopping.naver.com/adcr.nhn?x=ZvceTVMAJ%2FqT05zHAq6Gwv%2F%2F%2Fw%3D%3DsrTg%2BGdmln2Aetofzl5yeqelDlq65lZJOy4PSdIp90Gz%2BV2Z1R9fh6msUn3l%2FMjx5DlOqC8kkOPFNxH%2BlE%2FNseV3GfJeQxqBk1%2FhcfXoGOIg9Jl2wDM%2FAWKfycVx%2FkE3IfBqS3mXuWwE3MZp%2BCjkIC0gAn8lD2%2BxrgblrBqYwPdWug%2B9sjA7rHdeMLkY%2BwIMUdjq%2Fx9jt8AXZ%2FQofmr5lRvV2raiCF7aFk4I1%2BRMpbA46%2FEXhZgbhtRjphLcAni%2FciitGqoWNKiHOCPjKnfgRA8uxJYlMD%2BCjtqS%2FXLNFGbVthMLLkE5u%2BEmsBzTOOCHE334rL%2BbR36BhYe0R%2FrUmjgBSTS1sRv49oBHxm%2Bxq6Hi6S%2FwPoKkreza3uQBlpWqfoQHrDYAVWuTkbm3nCvgwCBZ6uFodlyZ9bfk20%2BE%2B0r3XlO6NevZskm176dk0dup7sv4Pv0kWpdQcKGzAgoBrl79Hz8IJRdREyarvw3bqYZ2xwEj2aZJSWLEz9R3XSLooJfIJEFecdZlXM%2FhZhu9OJiXUY1SyMH7R6eeiKTr7%2BBgtyoSE6KxzK06m1%2BHQP34CovZl%2FoCH0G%2BzRME%2FcjbTgjgeO6NZby4HCBXYQEbGTFh7N0%2BKs0gSFTdhwMrBXaDkLcRe2cgZnJxS4finui%2B4rGijwpQmbmtVGwSSELRsfikOEsHC78VBLnFZh%2FnDobeN&nvMid=24892934522&catId=50001332",null,{"$f":"IF(G47=0,H47,IF(AND(G47=0,H47=0),I47,G47))","v":"https://cr.shopping.naver.com/adcr.nhn?x=ZvceTVMAJ%2FqT05zHAq6Gwv%2F%2F%2Fw%3D%3DsrTg%2BGdmln2Aetofzl5yeqelDlq65lZJOy4PSdIp90Gz%2BV2Z1R9fh6msUn3l%2FMjx5DlOqC8kkOPFNxH%2BlE%2FNseV3GfJeQxqBk1%2FhcfXoGOIg9Jl2wDM%2FAWKfycVx%2FkE3IfBqS3mXuWwE3MZp%2BCjkIC0gAn8lD2%2BxrgblrBqYwPdWug%2B9sjA7rHdeMLkY%2BwIMUdjq%2Fx9jt8AXZ%2FQofmr5lRvV2raiCF7aFk4I1%2BRMpbA46%2FEXhZgbhtRjphLcAni%2FciitGqoWNKiHOCPjKnfgRA8uxJYlMD%2BCjtqS%2FXLNFGbVthMLLkE5u%2BEmsBzTOOCHE334rL%2BbR36BhYe0R%2FrUmjgBSTS1sRv49oBHxm%2Bxq6Hi6S%2FwPoKkreza3uQBlpWqfoQHrDYAVWuTkbm3nCvgwCBZ6uFodlyZ9bfk20%2BE%2B0r3XlO6NevZskm176dk0dup7sv4Pv0kWpdQcKGzAgoBrl79Hz8IJRdREyarvw3bqYZ2xwEj2aZJSWLEz9R3XSLooJfIJEFecdZlXM%2FhZhu9OJiXUY1SyMH7R6eeiKTr7%2BBgtyoSE6KxzK06m1%2BHQP34CovZl%2FoCH0G%2BzRME%2FcjbTgjgeO6NZby4HCBXYQEbGTFh7N0%2BKs0gSFTdhwMrBXaDkLcRe2cgZnJxS4finui%2B4rGijwpQmbmtVGwSSELRsfikOEsHC78VBLnFZh%2FnDobeN&nvMid=24892934522&catId=50001332"},null,{"$f":"+_xlfn.RANK.AVG(Summary!I47,Summary!$I$13:$I$91,1)","v":17},{"$f":"+_xlfn.RANK.AVG(Summary!J47,Summary!$J$13:$J$91,0)","v":29.5},{"$f":"+_xlfn.RANK.AVG(Summary!K47,Summary!$K$13:$K$91,0)","v":26},24.166666666666668,27]
[19,"엠리빙 폴라리스 높이조절 어린이책상 각도조절 초등학생책상 유아 의자","엠리빙",135000,136,182,null,"https://cr.shopping.naver.com/adcr.nhn?x=16O5J%2BafJjBPIf3FhUCJ0%2F%2F%2F%2Fw%3D%3DsYY15gba9BNDWZjxamfZKSEUF%2F%2F8I8dQznNXe9wfpDctJtAyFw1aYn46AJKNp9asDjOYqy6oE%2BAMlx%2FQukw2owyj1JNIO7PPoctmfdu3n0lSiO9cZ9iLBq8rClqnxrHHyb6qQFTvGZCOG08lHer4ShicX2AUq8VPh3PK%2Fo8l8aTkQ30gwb0ZAWnfX3Zzr1ayR7ZRqz%2BpeGY0IX8kcPsA%2F05wLtDDIzFG%2B3NT%2BIynbT4KDivgLUT8vYh1TsqkpNDO5gGwmPNX%2Fe%2BXkuZ30duRQYj%2FN1gL%2FBgCKENDMCz1nm%2F3PU%2FUw528XHiMQ%2BDfJcmFroAwLxgF1SQkKjohCeO3vH6p2UIUlyIA5IF5YG%2FASKaHCZH3gFUQ06isgVWmgYxgMFCJLeTNMiIpdd72TMnUFR2yR3oAuCd4wwxFfqQXo9TwovkugsFozMR4pM62LI4mTMUNCw9fzoGn7Td80f6BbJM3uX1vBrXTfgJ8JPeerek7hWF2X4Or2ZPm8EeyHG7p3OEBNkZmvShx8nX5hzfjpqr1QSJnQDl%2BUbP%2Ba42dibQktxcP2m%2BWigrJoNAKF%2Bk8IFzcnvZN2pG12XEuR%2F3JR3nHPMbn74YIsiJ2M5p%2FTKeZW4LUmfkhm1ebgZW2I%2BK%2FU8hUemt4GsIrtAqRtCPV0EccgIRCk8vtGb7Z%2FKGMSEdE%3D&nvMid=81571504896&catId=50001332","https://m.smartstore.naver.com/main/products/4026984296",{"$f":"IF(G48=0,H48,IF(AND(G48=0,H48=0),I48,G48))","v":"https://cr.shopping.naver.com/adcr.nhn?x=16O5J%2BafJjBPIf3FhUCJ0%2F%2F%2F%2Fw%3D%3DsYY15gba9BNDWZjxamfZKSEUF%2F%2F8I8dQznNXe9wfpDctJtAyFw1aYn46AJKNp9asDjOYqy6oE%2BAMlx%2FQukw2owyj1JNIO7PPoctmfdu3n0lSiO9cZ9iLBq8rClqnxrHHyb6qQFTvGZCOG08lHer4ShicX2AUq8VPh3PK%2Fo8l8aTkQ30gwb0ZAWnfX3Zzr1ayR7ZRqz%2BpeGY0IX8kcPsA%2F05wLtDDIzFG%2B3NT%2BIynbT4KDivgLUT8vYh1TsqkpNDO5gGwmPNX%2Fe%2BXkuZ30duRQYj%2FN1gL%2FBgCKENDMCz1nm%2F3PU%2FUw528XHiMQ%2BDfJcmFroAwLxgF1SQkKjohCeO3vH6p2UIUlyIA5IF5YG%2FASKaHCZH3gFUQ06isgVWmgYxgMFCJLeTNMiIpdd72TMnUFR2yR3oAuCd4wwxFfqQXo9TwovkugsFozMR4pM62LI4mTMUNCw9fzoGn7Td80f6BbJM3uX1vBrXTfgJ8JPeerek7hWF2X4Or2ZPm8EeyHG7p3OEBNkZmvShx8nX5hzfjpqr1QSJnQDl%2BUbP%2Ba42dibQktxcP2m%2BWigrJoNAKF%2Bk8IFzcnvZN2pG12XEuR%2F3JR3nHPMbn74YIsiJ2M5p%2FTKeZW4LUmfkhm1ebgZW2I%2BK%2FU8hUemt4GsIrtAqRtCPV0EccgIRCk8vtGb7Z%2FKGMSEdE%3D&nvMid=81571504896&catId=50001332"},null,{"$f":"+_xlfn.RANK.AVG(Summary!I49,Summary!$I$13:$I$91,1)","v":8},{"$f":"+_xlfn.RANK.AVG(Summary!J49,Summary!$J$13:$J$91,0)","v":11},{"$f":"+_xlfn.RANK.AVG(Summary!K49,Summary!$K$13:$K$91,0)","v":18},12.333333333333334,8]
[20,"일룸 팅클팝 피넛형 그로잉책상 1200폭",null,169000,0,3854,null,"https://cr.shopping.naver.com/adcr.nhn?x=aKdfWtbCjamUQ%2BXK8C8ER%2F%2F%2F%2Fw%3D%3Dsm2R%2FA4LZwzPg8RQbCiIqArfP1C0mi5GDpOtLPeilW%2B7D8KTAmf4KWGP7K8A663CAOY5rgxGOuapP2UXhYCmkAmSMUT%2Byu%2Bb6980Mebrq2l2L8yT9vZuDvo2djJMqXDsCb7MfLQKIdjCgfcUPwbcJp0ls1M9xucXxkPPt7QTmSRFr6kdrp7BvT8OlwZ7P37Yy%2FdEDEPZJxtqmUeIpHFTqYRbEQEqzgDLwbF3VZinapFjYlO%2Fk4kxCoWN1gk8LWSU%2BRbfNFVivhP8U%2BTROBimK%2BwWrj3yhjv32odB%2BAe4KRcC4culXwc2z5U0bwq8AvoHHA5ijqTU6jnRNRTh%2BkUVsAgez%2FY8eSma9aMvarLWce5sxxW%2BLDcNVaB%2FSVceQuOlNQm2QdRCuez7DdNRakVnnf2Qim0uSGV45GygZvcFQrpBhsewnbBDpksgAZQj0UQeyLOpj%2FF8CCWmvyVxFSeJnTkqxorqzO%2BBGjlflcLUedbJfcIeAdBmnG%2BnmBn3CaGECT0L%2FlNlqz3qUr7EtmAfZMFRcl3Dj2qdbAoJNdkBKBZotyoSE6KxzK06m1%2BHQP34CG%2FjF4Vh%2Fw07hxU549tGoIZSU9PpDXq%2FsJekB3QSltxF7N0%2BKs0gSFTdhwMrBXaDkogOhXr3An%2FSiZcLAIAmRVcNjPdXHntf4Q9XL25ZnSwMOEsHC78VBLnFZh%2FnDobeN&nvMid=12540776489&catId=50001332",null,{"$f":"IF(G49=0,H49,IF(AND(G49=0,H49=0),I49,G49))","v":"https://cr.shopping.naver.com/adcr.nhn?x=aKdfWtbCjamUQ%2BXK8C8ER%2F%2F%2F%2Fw%3D%3Dsm2R%2FA4LZwzPg8RQbCiIqArfP1C0mi5GDpOtLPeilW%2B7D8KTAmf4KWGP7K8A663CAOY5rgxGOuapP2UXhYCmkAmSMUT%2Byu%2Bb6980Mebrq2l2L8yT9vZuDvo2djJMqXDsCb7MfLQKIdjCgfcUPwbcJp0ls1M9xucXxkPPt7QTmSRFr6kdrp7BvT8OlwZ7P37Yy%2FdEDEPZJxtqmUeIpHFTqYRbEQEqzgDLwbF3VZinapFjYlO%2Fk4kxCoWN1gk8LWSU%2BRbfNFVivhP8U%2BTROBimK%2BwWrj3yhjv32odB%2BAe4KRcC4culXwc2z5U0bwq8AvoHHA5ijqTU6jnRNRTh%2BkUVsAgez%2FY8eSma9aMvarLWce5sxxW%2BLDcNVaB%2FSVceQuOlNQm2QdRCuez7DdNRakVnnf2Qim0uSGV45GygZvcFQrpBhsewnbBDpksgAZQj0UQeyLOpj%2FF8CCWmvyVxFSeJnTkqxorqzO%2BBGjlflcLUedbJfcIeAdBmnG%2BnmBn3CaGECT0L%2FlNlqz3qUr7EtmAfZMFRcl3Dj2qdbAoJNdkBKBZotyoSE6KxzK06m1%2BHQP34CG%2FjF4Vh%2Fw07hxU549tGoIZSU9PpDXq%2FsJekB3QSltxF7N0%2BKs0gSFTdhwMrBXaDkogOhXr3An%2FSiZcLAIAmRVcNjPdXHntf4Q9XL25ZnSwMOEsHC78VBLnFZh%2FnDobeN&nvMid=12540776489&catId=50001332"},null,{"$f":"+_xlfn.RANK.AVG(Summary!I51,Summary!$I$13:$I$91,1)","v":12},{"$f":"+_xlfn.RANK.AVG(Summary!J51,Summary!$J$13:$J$91,0)","v":29.5},{"$f":"+_xlfn.RANK.AVG(Summary!K51,Summary!$K$13:$K$91,0)","v":3},14.833333333333334,12]
[21,"일룸 링키플러스 1200폭 측판형 책상",null,265000,0,171,null,"https://cr.shopping.naver.com/adcr.nhn?x=GXq4rgaHjG55275pKc5aHP%2F%2F%2Fw%3D%3DsU7NrAGmzyiFsrbaLr9hb%2BPLaFquPTKr%2Bgl4bX1f7qBVJtAyFw1aYn46AJKNp9asDfH9Da7MRwNIXVlpg9wKU0asd91nVJdaUcWP8zLK0g26iO9cZ9iLBq8rClqnxrHHyb6qQFTvGZCOG08lHer4ShtyGaSr%2B0dRu37W7MMIB4NFk9Io6iZoAfEBQfsbkhBMBXT3%2F9Yj9PXJOTRmNmCvpdg2ahDbDoYYUmdt6G4fDib3%2BGZlqeppNdVK2bKs2glgCN1CzfoTmgVhJuqiNatZgI5oC7oFHpSLbDFBBIk9qUb4gVc9gll0tM8AA6hcp67HBhmeWtJmvw8M90EK%2Bzy5a1yVdN3LpKf%2FbKuiZi7z1XJRprU6kuKX993Dq76qrqcgFI23of79A0gJf9PL%2BjlCbtFd%2BqILAG09hjAR1K3qLYkDSI5kL%2FlP4YARRldIQbLUdBtIJFKeW%2Fi8YACQWVzsv4LDzn3c5H6virFSgnW5KKdo8DBn8rKKNx6ZKnWPsUWhTkYz%2BXgCbdn9qBoRUclpUgZW2Xgcw4pgcdqcJqx7ryR60%2FTftdhXxzbsbwt%2ByMl5bSqk9qUVkUpLCoAjUw%2BrBLU%2FAJcUmJF2ix%2Feizcr9afX0eVd%2FlfZEl7UdbRgrp46jYxDFniO56mZJDcTXqbd5%2BG9TZjqEQTAbFzUBl8432wvhVEAf6wwM5tqtSh0bB5Hx&nvMid=16359706412&catId=50001332",null,{"$f":"IF(G50=0,H50,IF(AND(G50=0,H50=0),I50,G50))","v":"https://cr.shopping.naver.com/adcr.nhn?x=GXq4rgaHjG55275pKc5aHP%2F%2F%2Fw%3D%3DsU7NrAGmzyiFsrbaLr9hb%2BPLaFquPTKr%2Bgl4bX1f7qBVJtAyFw1aYn46AJKNp9asDfH9Da7MRwNIXVlpg9wKU0asd91nVJdaUcWP8zLK0g26iO9cZ9iLBq8rClqnxrHHyb6qQFTvGZCOG08lHer4ShtyGaSr%2B0dRu37W7MMIB4NFk9Io6iZoAfEBQfsbkhBMBXT3%2F9Yj9PXJOTRmNmCvpdg2ahDbDoYYUmdt6G4fDib3%2BGZlqeppNdVK2bKs2glgCN1CzfoTmgVhJuqiNatZgI5oC7oFHpSLbDFBBIk9qUb4gVc9gll0tM8AA6hcp67HBhmeWtJmvw8M90EK%2Bzy5a1yVdN3LpKf%2FbKuiZi7z1XJRprU6kuKX993Dq76qrqcgFI23of79A0gJf9PL%2BjlCbtFd%2BqILAG09hjAR1K3qLYkDSI5kL%2FlP4YARRldIQbLUdBtIJFKeW%2Fi8YACQWVzsv4LDzn3c5H6virFSgnW5KKdo8DBn8rKKNx6ZKnWPsUWhTkYz%2BXgCbdn9qBoRUclpUgZW2Xgcw4pgcdqcJqx7ryR60%2FTftdhXxzbsbwt%2ByMl5bSqk9qUVkUpLCoAjUw%2BrBLU%2FAJcUmJF2ix%2Feizcr9afX0eVd%2FlfZEl7UdbRgrp46jYxDFniO56mZJDcTXqbd5%2BG9TZjqEQTAbFzUBl8432wvhVEAf6wwM5tqtSh0bB5Hx&nvMid=16359706412&catId=50001332"},null,{"$f":"+_xlfn.RANK.AVG(Summary!I53,Summary!$I$13:$I$91,1)","v":18},{"$f":"+_xlfn.RANK.AVG(Summary!J53,Summary!$J$13:$J$91,0)","v":29.5},{"$f":"+_xlfn.RANK.AVG(Summary!K53,Summary!$K$13:$K$91,0)","v":20},22.5,24.5]
[22,"일룸 팅클팝 피넛형 좌식책상 800폭",null,99000,0,2554,null,"https://cr.shopping.naver.com/adcr.nhn?x=aqmy9Mpx3aVS0V9Ax%2BI4mv%2F%2F%2Fw%3D%3DsM33rKiiraH4RlzsY3sdiVLpiN3hmK0xI%2FGCyfUgpiHr%2BV2Z1R9fh6msUn3l%2FMjx5HpQ2HFT9GnLeb8Wcx2MYf7YLOe%2FRhnt%2FI71Jiv6iKjc9Jl2wDM%2FAWKfycVx%2FkE3IfBqS3mXuWwE3MZp%2BCjkIC0gAn8lD2%2BxrgblrBqYwPdWug%2B9sjA7rHdeMLkY%2BwIMUrOs8Sb%2FNoOfo7JsYXyip%2BPV2raiCF7aFk4I1%2BRMpbA46%2FEXhZgbhtRjphLcAni%2FciitGqoWNKiHOCPjKnfgRA8uxJYlMD%2BCjtqS%2FXLNFGbVthMLLkE5u%2BEmsBzTOOCHE334rL%2BbR36BhYe0R%2FrUmjgBSTS1sRv49oBHxm%2Bxq6HgpN38QG8x%2FKX9%2BqYDZEATXvq2I49a5YxAMb04uW71rGxZ6uFodlyZ9bfk20%2BE%2B0r03OkDkfo0laYpJ8gu708uU3BFDJPmINGVd22UpeKU8siEwzGsWR%2FaLP6Ny91NnBKprcTSKiM8hDFFrjH0ODLDb48Iuo979LmyMJhoqK1iQJETtzbOQFHfO12kGrfSznmgyak2E0q8aud%2FUT%2FOTarnVaJ8aZ5hOp6WFe0bI20AtXRGk4XMJtozo5T3u6g%2BJ%2BOsWT8seMtHFbmmsUTbjVNS%2FMSxsVModCNdDPZOMpw6kVccgIRCk8vtGb7Z%2FKGMSEdE%3D&nvMid=20335766140&catId=50001332",null,{"$f":"IF(G51=0,H51,IF(AND(G51=0,H51=0),I51,G51))","v":"https://cr.shopping.naver.com/adcr.nhn?x=aqmy9Mpx3aVS0V9Ax%2BI4mv%2F%2F%2Fw%3D%3DsM33rKiiraH4RlzsY3sdiVLpiN3hmK0xI%2FGCyfUgpiHr%2BV2Z1R9fh6msUn3l%2FMjx5HpQ2HFT9GnLeb8Wcx2MYf7YLOe%2FRhnt%2FI71Jiv6iKjc9Jl2wDM%2FAWKfycVx%2FkE3IfBqS3mXuWwE3MZp%2BCjkIC0gAn8lD2%2BxrgblrBqYwPdWug%2B9sjA7rHdeMLkY%2BwIMUrOs8Sb%2FNoOfo7JsYXyip%2BPV2raiCF7aFk4I1%2BRMpbA46%2FEXhZgbhtRjphLcAni%2FciitGqoWNKiHOCPjKnfgRA8uxJYlMD%2BCjtqS%2FXLNFGbVthMLLkE5u%2BEmsBzTOOCHE334rL%2BbR36BhYe0R%2FrUmjgBSTS1sRv49oBHxm%2Bxq6HgpN38QG8x%2FKX9%2BqYDZEATXvq2I49a5YxAMb04uW71rGxZ6uFodlyZ9bfk20%2BE%2B0r03OkDkfo0laYpJ8gu708uU3BFDJPmINGVd22UpeKU8siEwzGsWR%2FaLP6Ny91NnBKprcTSKiM8hDFFrjH0ODLDb48Iuo979LmyMJhoqK1iQJETtzbOQFHfO12kGrfSznmgyak2E0q8aud%2FUT%2FOTarnVaJ8aZ5hOp6WFe0bI20AtXRGk4XMJtozo5T3u6g%2BJ%2BOsWT8seMtHFbmmsUTbjVNS%2FMSxsVModCNdDPZOMpw6kVccgIRCk8vtGb7Z%2FKGMSEdE%3D&nvMid=20335766140&catId=50001332"},null,{"$f":"+_xlfn.RANK.AVG(Summary!I55,Summary!$I$13:$I$91,1)","v":7},{"$f":"+_xlfn.RANK.AVG(Summary!J55,Summary!$J$13:$J$91,0)","v":29.5},{"$f":"+_xlfn.RANK.AVG(Summary!K55,Summary!$K$13:$K$91,0)","v":4},13.5,9]
[23,"일룸 링키플러스 스마트데스크 각도조절 책상",null,389000,0,1444,null,"https://cr.shopping.naver.com/adcr.nhn?x=UB75QYvO2nxeMpxFfP08Tv%2F%2F%2Fw%3D%3DseIhAth5%2BSjpbxPx39dEnjdxEZUg41g2QafQegi6zCKTD8KTAmf4KWGP7K8A663CAvo%2BbjQe1Zeskm0zTC7HJWMvJWi6xtA038ld7OdTJhSuL8yT9vZuDvo2djJMqXDsCb7MfLQKIdjCgfcUPwbcJp0ls1M9xucXxkPPt7QTmSRFr6kdrp7BvT8OlwZ7P37YyG3tMoPkIUj7VbonWzxR2wVIMuWF0dA3IKcL3GoD5yofYlO%2Fk4kxCoWN1gk8LWSU%2BRbfNFVivhP8U%2BTROBimK%2BwWrj3yhjv32odB%2BAe4KRcC4culXwc2z5U0bwq8AvoHHA5ijqTU6jnRNRTh%2BkUVsAgez%2FY8eSma9aMvarLWce5t3C1uwxRA7WjuJUp52qrfBWIzbNSZH7x6%2Fns429Jc7o2Qim0uSGV45GygZvcFQrpCvUfaPU7Gf1h%2B9AYR6savQjXnFNqmIfBayRvkjWXGu8UqxorqzO%2BBGjlflcLUedbLyBRns8I6Elawcm%2B2x%2Ff20IsAGBbmc1D3ezjzgRhIo%2Bq8tI1ok9jDg%2BRxCtAMW5ogP7MbF%2FW%2BZ4ZLnM9xaFE%2BUscGCjcrKfNKybCDz5roPoLQQStLHr3O%2FEsRR8sXemNTvW2q1ZBpuV%2F%2FvtKUgTGHnkn7xgeG48dKQxjP9IcKVkhIbfP0Tl96K4E4qYXMlvQTzp644WWpjEZbfG2bPvrGxDVCYCaeglF2rgr1u2OQIzQ%3D%3D&nvMid=12360654835&catId=50001332",null,{"$f":"IF(G52=0,H52,IF(AND(G52=0,H52=0),I52,G52))","v":"https://cr.shopping.naver.com/adcr.nhn?x=UB75QYvO2nxeMpxFfP08Tv%2F%2F%2Fw%3D%3DseIhAth5%2BSjpbxPx39dEnjdxEZUg41g2QafQegi6zCKTD8KTAmf4KWGP7K8A663CAvo%2BbjQe1Zeskm0zTC7HJWMvJWi6xtA038ld7OdTJhSuL8yT9vZuDvo2djJMqXDsCb7MfLQKIdjCgfcUPwbcJp0ls1M9xucXxkPPt7QTmSRFr6kdrp7BvT8OlwZ7P37YyG3tMoPkIUj7VbonWzxR2wVIMuWF0dA3IKcL3GoD5yofYlO%2Fk4kxCoWN1gk8LWSU%2BRbfNFVivhP8U%2BTROBimK%2BwWrj3yhjv32odB%2BAe4KRcC4culXwc2z5U0bwq8AvoHHA5ijqTU6jnRNRTh%2BkUVsAgez%2FY8eSma9aMvarLWce5t3C1uwxRA7WjuJUp52qrfBWIzbNSZH7x6%2Fns429Jc7o2Qim0uSGV45GygZvcFQrpCvUfaPU7Gf1h%2B9AYR6savQjXnFNqmIfBayRvkjWXGu8UqxorqzO%2BBGjlflcLUedbLyBRns8I6Elawcm%2B2x%2Ff20IsAGBbmc1D3ezjzgRhIo%2Bq8tI1ok9jDg%2BRxCtAMW5ogP7MbF%2FW%2BZ4ZLnM9xaFE%2BUscGCjcrKfNKybCDz5roPoLQQStLHr3O%2FEsRR8sXemNTvW2q1ZBpuV%2F%2FvtKUgTGHnkn7xgeG48dKQxjP9IcKVkhIbfP0Tl96K4E4qYXMlvQTzp644WWpjEZbfG2bPvrGxDVCYCaeglF2rgr1u2OQIzQ%3D%3D&nvMid=12360654835&catId=50001332"},null,{"$f":"+_xlfn.RANK.AVG(Summary!I57,Summary!$I$13:$I$91,1)","v":30},{"$f":"+_xlfn.RANK.AVG(Summary!J57,Summary!$J$13:$J$91,0)","v":29.5},{"$f":"+_xlfn.RANK.AVG(Summary!K57,Summary!$K$13:$K$91,0)","v":8},22.5,24.5]
[24,"루나랩 키즈 어린이 초등학생 바른자세 책상","루나랩 키즈",269000,2862,2121,"https://adcr.naver.com/adcr?x=bFMYtF0xsoxSIXW40iCAd////w==kJJIg3dNGKeb3d33qhwpL0q6XsPCYPNwgTobyfDUrEPa3PLe08vHz8ot+H0opQMlBK3AdYNwIjPDo2QrOMqhpmYOe5tO14Wncvr7WbxHr4ddMcP+2gonc70z/hsKJPyun6coV30v8dX68S5iwS+g01atVTjULT88bCkXm8qOlU8c6WnjoWmq7RWxpdoAoSfmuUOara82pwipJM7JJTJ5vk3MXexdQl9WLfoVGUWquX3oqVqoIvtbEz8k+CXyTr6UT6D1csoWytAKQ2MnMNunewDdXfUHmO3PgoejpLQZYeIoWZmpTULRBHaZUwJ+Neo0N9EXDLUueOYtcqLPcw/ef4LFGrP+cY8AIX2fJmpRMA9I3D6y5dNkEpbW/Gk8v6uOwmPjeNDJvcMMGOzTvozmATnzpHBQe3aYZSqGOBmSPeqdb5YyGVNeVO8nz5hZ1z5B+J2dmEqiuR5OtXO9lPc043cI744upKfJvbNQmKFyEu1J8ZelYF8AWAN1GiTi8PgoZw3InwvzWohkQWVCLLvxKQ4umqfgWKk4YvAUlCA3FedC3vtN9xwTX0gfenLwPLVBlFqRVZ7/UQ9p9sL88wNCmNlPF6Di/hyGgudMboWCGM61gauXm4UBQ4tk0dFJ59uJ1pZBopSZY6l4eIfhL+tE49fD0j1FUW6vYjjiJG1+TjLteJc5ojpD3295OMlbR69X2deTny/91QvdB4ubbJ5X2AJ6jM29wfbN3RQWPPUppPSklDB6RI+l1DDq6axoRIHcmOHeM4Wnaw2EQ5vrGTBrcABljwM7YqUrtOv5qAsCwCqfmTlud/4pqKwoBvyWdopQq96lwMCnujqkpQ6vLbO6IZvfXcdiYM2PY4P3xylE2bL6j9d9JAGZrzYh0V85/kXt2fAx2SBOOHULOOE1vF1D4aQ==",null,null,{"$f":"IF(G53=0,H53,IF(AND(G53=0,H53=0),I53,G53))","v":"https://adcr.naver.com/adcr?x=bFMYtF0xsoxSIXW40iCAd////w==kJJIg3dNGKeb3d33qhwpL0q6XsPCYPNwgTobyfDUrEPa3PLe08vHz8ot+H0opQMlBK3AdYNwIjPDo2QrOMqhpmYOe5tO14Wncvr7WbxHr4ddMcP+2gonc70z/hsKJPyun6coV30v8dX68S5iwS+g01atVTjULT88bCkXm8qOlU8c6WnjoWmq7RWxpdoAoSfmuUOara82pwipJM7JJTJ5vk3MXexdQl9WLfoVGUWquX3oqVqoIvtbEz8k+CXyTr6UT6D1csoWytAKQ2MnMNunewDdXfUHmO3PgoejpLQZYeIoWZmpTULRBHaZUwJ+Neo0N9EXDLUueOYtcqLPcw/ef4LFGrP+cY8AIX2fJmpRMA9I3D6y5dNkEpbW/Gk8v6uOwmPjeNDJvcMMGOzTvozmATnzpHBQe3aYZSqGOBmSPeqdb5YyGVNeVO8nz5hZ1z5B+J2dmEqiuR5OtXO9lPc043cI744upKfJvbNQmKFyEu1J8ZelYF8AWAN1GiTi8PgoZw3InwvzWohkQWVCLLvxKQ4umqfgWKk4YvAUlCA3FedC3vtN9xwTX0gfenLwPLVBlFqRVZ7/UQ9p9sL88wNCmNlPF6Di/hyGgudMboWCGM61gauXm4UBQ4tk0dFJ59uJ1pZBopSZY6l4eIfhL+tE49fD0j1FUW6vYjjiJG1+TjLteJc5ojpD3295OMlbR69X2deTny/91QvdB4ubbJ5X2AJ6jM29wfbN3RQWPPUppPSklDB6RI+l1DDq6axoRIHcmOHeM4Wnaw2EQ5vrGTBrcABljwM7YqUrtOv5qAsCwCqfmTlud/4pqKwoBvyWdopQq96lwMCnujqkpQ6vLbO6IZvfXcdiYM2PY4P3xylE2bL6j9d9JAGZrzYh0V85/kXt2fAx2SBOOHULOOE1vF1D4aQ=="},null,{"$f":"+_xlfn.RANK.AVG(Summary!I59,Summary!$I$13:$I$91,1)","v":21},{"$f":"+_xlfn.RANK.AVG(Summary!J59,Summary!$J$13:$J$91,0)","v":3.5},{"$f":"+_xlfn.RANK.AVG(Summary!K59,Summary!$K$13:$K$91,0)","v":6},10.166666666666666,7]
[25,"니스툴그로우 높이각도조절 초등학생책상 책장세트","더월",1148000,0,69,"https://adcr.naver.com/adcr?x=EWLuG3Kl9PZ5R8p2Ym6b7P///w==k/DgiLSzXfBFnNSISc9WBcNNHFIg4JCoaVHatAGm7T2o1eWbGzL+elghZbP11uxVI7OHFm1iU3MEklxZrrtVFVv4TJA2iRsDoeMbKYIcwL2WQeFg02d5PijVjFECXMd8ET2oaSlycLhMYe+EWMaSkE3pidzwfHEigFOKA2k/dyJm4NLeWUvv5zNrT2EqRzAxBm6HbgfO2DpdNyDZ2MopvQHyOuG3HJr65/fQzKwTYxrPcchFmfMIVOlPGWtTS0aR0QBzEuSTc8/02dRNylIXLLjiSVRISIToNvzih06f4N+XfUHK8GGRgn2yuerD1C7g9Kh6BlhX4S4TH6XTRx1kG698C+8VtRzHr5whAXkoIQFkUxBT9dU+f7Y1qugBO6Y9l6Jh3tBmm307YUwQB01yUZM/fTiFkDcWjC5DLxE4nJ7AKH4z+3j4iINRWhakyZJxw/a1kShjql3762TXsIktHg78lfnHvmhO+pSSnb0PaBb5OukHnDWYu+6327HMwxRFqZrKmCzDI36rF8zwCvCpCmolsAU7IEAxFV2nxl+dHqtHbI2H7D9YhqGl5iu8J9UcBARvSZvgJRLIbHhmzAOMLiOR8uKeBmJ8RJX6j6Q8g0W/YvuXN31/C2k7A3Ri8r9n7QX2Ma2mNbzIo07lv7Qpif0mspfaY5FdivchaTLtxnb45K2SVtkEOXmLJhA8W4CbGIEIUAlYeRnAZnchVZrfHvNVlrv/kiqpzhbEHHdn/MGcgrolb5TDCGzQZryE1v+oXwzNT9QAJx+Awd5eW2Kz722hT7Ww6tmnfdVbWy1wbGcFYtVjeZ92p50tJ4sS2rx6clBkuXtDyDOnHS57Ab8eVxw==",null,null,{"$f":"IF(G54=0,H54,IF(AND(G54=0,H54=0),I54,G54))","v":"https://adcr.naver.com/adcr?x=EWLuG3Kl9PZ5R8p2Ym6b7P///w==k/DgiLSzXfBFnNSISc9WBcNNHFIg4JCoaVHatAGm7T2o1eWbGzL+elghZbP11uxVI7OHFm1iU3MEklxZrrtVFVv4TJA2iRsDoeMbKYIcwL2WQeFg02d5PijVjFECXMd8ET2oaSlycLhMYe+EWMaSkE3pidzwfHEigFOKA2k/dyJm4NLeWUvv5zNrT2EqRzAxBm6HbgfO2DpdNyDZ2MopvQHyOuG3HJr65/fQzKwTYxrPcchFmfMIVOlPGWtTS0aR0QBzEuSTc8/02dRNylIXLLjiSVRISIToNvzih06f4N+XfUHK8GGRgn2yuerD1C7g9Kh6BlhX4S4TH6XTRx1kG698C+8VtRzHr5whAXkoIQFkUxBT9dU+f7Y1qugBO6Y9l6Jh3tBmm307YUwQB01yUZM/fTiFkDcWjC5DLxE4nJ7AKH4z+3j4iINRWhakyZJxw/a1kShjql3762TXsIktHg78lfnHvmhO+pSSnb0PaBb5OukHnDWYu+6327HMwxRFqZrKmCzDI36rF8zwCvCpCmolsAU7IEAxFV2nxl+dHqtHbI2H7D9YhqGl5iu8J9UcBARvSZvgJRLIbHhmzAOMLiOR8uKeBmJ8RJX6j6Q8g0W/YvuXN31/C2k7A3Ri8r9n7QX2Ma2mNbzIo07lv7Qpif0mspfaY5FdivchaTLtxnb45K2SVtkEOXmLJhA8W4CbGIEIUAlYeRnAZnchVZrfHvNVlrv/kiqpzhbEHHdn/MGcgrolb5TDCGzQZryE1v+oXwzNT9QAJx+Awd5eW2Kz722hT7Ww6tmnfdVbWy1wbGcFYtVjeZ92p50tJ4sS2rx6clBkuXtDyDOnHS57Ab8eVxw=="},null,{"$f":"+_xlfn.RANK.AVG(Summary!I61,Summary!$I$13:$I$91,1)","v":39},{"$f":"+_xlfn.RANK.AVG(Summary!J61,Summary!$J$13:$J$91,0)","v":29.5},{"$f":"+_xlfn.RANK.AVG(Summary!K61,Summary!$K$13:$K$91,0)","v":29},32.5,38]
[26,"이안비즈 높이 각도 조절 브레이니 어린이책상","이안비즈",138000,61,172,"https://adcr.naver.com/adcr?x=wVANLGL37RxsJDyJUXxYmP///w==kif+hFqo6XcicbtOsZLmLVXYfQukRWCArw2AlDA+Ku1/YWRNd3J20H9mjKlqd8KLFvgb8lvEgyPmYNAIcAxSLq28l7Wa/TABJD+J31Br/1jRjNRPwGxVNJNrLIeqKYTWEhufggbgJaPQ9FR+OVHpVLYxGk1VYNqPzBOA661kmivG6vRtSUGAHfztsOy97m4H+ztalsZ6Ns3F3rjZ6CW1hp1P31scj6hWT9wUwZtVj95TET25KtIXs35soS6oQcEEQ0FYIDetTFi96ZXcb4XaIjg5oPcdGsyNYYSHxis9w2XbYwLGtDJ6OT3ZQAooxP/KFpE8qXb0OWTTsV+8ziakqn0g3+U+EgCjwYbZDLf5gNoLjNC3CZ/nRaxutWcYTxahF6PrhrpP8vL22L/GiT9WIo1GAl3jLWqWhu+O6ELseWeP4WGjg+sjcRgOS4i/aekD2ZsvjmMj4BCOgAAQY8ArwoEnHjcs8iqXfuJMANJTvUICDqu1+xQ6dtSfQVPtK8vfsEFNtK0Tszv8z2+fpjrXrdd2HWjc5x7DM5Tny/gdIANkheQ41UDL5khPZqjY/Ctovx7zhJ1ZvU6qbHDGurb2mNBokvIcsZlagxPLov7BHQZoATFjBp/V5kSLQRNGAe8PQ0rAfF/VdrL9Fql5/WFl/aNI6gEOtQFweiJTsfljDgvxISzwWYt1H282yf2fk8K0x+ZsdDWVcZzC/802o9PNMSn5pm1KvM4HXuxMBNvixJZfwQA2u2Dm/BUucpJ7N0zKviPBlv2PG5QFzO9E4FauvwLE0BKfSJx85Zbs6QUyTqs7lbAt7lqGn1yPC5bioqw7b",null,null,{"$f":"IF(G55=0,H55,IF(AND(G55=0,H55=0),I55,G55))","v":"https://adcr.naver.com/adcr?x=wVANLGL37RxsJDyJUXxYmP///w==kif+hFqo6XcicbtOsZLmLVXYfQukRWCArw2AlDA+Ku1/YWRNd3J20H9mjKlqd8KLFvgb8lvEgyPmYNAIcAxSLq28l7Wa/TABJD+J31Br/1jRjNRPwGxVNJNrLIeqKYTWEhufggbgJaPQ9FR+OVHpVLYxGk1VYNqPzBOA661kmivG6vRtSUGAHfztsOy97m4H+ztalsZ6Ns3F3rjZ6CW1hp1P31scj6hWT9wUwZtVj95TET25KtIXs35soS6oQcEEQ0FYIDetTFi96ZXcb4XaIjg5oPcdGsyNYYSHxis9w2XbYwLGtDJ6OT3ZQAooxP/KFpE8qXb0OWTTsV+8ziakqn0g3+U+EgCjwYbZDLf5gNoLjNC3CZ/nRaxutWcYTxahF6PrhrpP8vL22L/GiT9WIo1GAl3jLWqWhu+O6ELseWeP4WGjg+sjcRgOS4i/aekD2ZsvjmMj4BCOgAAQY8ArwoEnHjcs8iqXfuJMANJTvUICDqu1+xQ6dtSfQVPtK8vfsEFNtK0Tszv8z2+fpjrXrdd2HWjc5x7DM5Tny/gdIANkheQ41UDL5khPZqjY/Ctovx7zhJ1ZvU6qbHDGurb2mNBokvIcsZlagxPLov7BHQZoATFjBp/V5kSLQRNGAe8PQ0rAfF/VdrL9Fql5/WFl/aNI6gEOtQFweiJTsfljDgvxISzwWYt1H282yf2fk8K0x+ZsdDWVcZzC/802o9PNMSn5pm1KvM4HXuxMBNvixJZfwQA2u2Dm/BUucpJ7N0zKviPBlv2PG5QFzO9E4FauvwLE0BKfSJx85Zbs6QUyTqs7lbAt7lqGn1yPC5bioqw7b"},null,{"$f":"+_xlfn.RANK.AVG(Summary!I63,Summary!$I$13:$I$91,1)","v":9},{"$f":"+_xlfn.RANK.AVG(Summary!J63,Summary!$J$13:$J$91,0)","v":14},{"$f":"+_xlfn.RANK.AVG(Summary!K63,Summary!$K$13:$K$91,0)","v":19},14,10]
[27,"스터디업 데스크 스텐다드 핑크 높이 각도조절 어린이 아동 초등학생 책상","엑세스엠",249000,52,20,null,"https://cr.shopping.naver.com/adcr.nhn?x=%2BvvFWkZ7SsT2rMcY%2BX6fR%2F%2F%2F%2Fw%3D%3Ds1aKQss8Lqi1mMI6ScYuVbRJt5SYju89OvIZ64EE8k39JtAyFw1aYn46AJKNp9asDyMfdcYOoKUv5jwajhiM%2FVNgH%2FaBwmNmgFx3El37pMzWiO9cZ9iLBq8rClqnxrHHyb6qQFTvGZCOG08lHer4ShicX2AUq8VPh3PK%2Fo8l8aTkQ30gwb0ZAWnfX3Zzr1ayRhn3%2B24npXeIiG%2BwrY%2Bo0wUUU3BKdaXGxOfu03m0ix%2BmDivgLUT8vYh1TsqkpNDO5gGwmPNX%2Fe%2BXkuZ30duRQYj%2FN1gL%2FBgCKENDMCz1nm%2F0pbtT4C25jsc1uGvFnrNvsU%2FlxIfG4%2FSaO4ySZ39yo5qp2UIUlyIA5IF5YG%2FASKaEHaic1HT6O7IT3wqwuivlaFCJLeTNMiIpdd72TMnUFR1yCplwTtkgfNzm8S8fVzEWHme1uYro09q9J5WFIGcL%2BFPTtcNRC9WEPhn%2BfNt02Bc54%2F7y6Uk7%2FpWbhHzaKc3hnUzoFE4j7h0t69I6A4HLjgWcD97G48JW5FBTuiqTRE%2BPzIs9w9SL07adRVW6xpOh93laikoFyOh0nljw5iJeLB%2Bmfa%2FOkdnpK8P2n%2Fz6HBGS44KJRuRKGAejJgeR78bL3ud421fJ1RbHOWrWZoGcJ%2B93xyaZZx7g32w0zGUayU1dznR4EhPC6BI08fc6TT2xWkbDrUFJ2hBG8QaB8WVzn&nvMid=82677703530&catId=50001332","https://m.smartstore.naver.com/main/products/5133182818",{"$f":"IF(G56=0,H56,IF(AND(G56=0,H56=0),I56,G56))","v":"https://cr.shopping.naver.com/adcr.nhn?x=%2BvvFWkZ7SsT2rMcY%2BX6fR%2F%2F%2F%2Fw%3D%3Ds1aKQss8Lqi1mMI6ScYuVbRJt5SYju89OvIZ64EE8k39JtAyFw1aYn46AJKNp9asDyMfdcYOoKUv5jwajhiM%2FVNgH%2FaBwmNmgFx3El37pMzWiO9cZ9iLBq8rClqnxrHHyb6qQFTvGZCOG08lHer4ShicX2AUq8VPh3PK%2Fo8l8aTkQ30gwb0ZAWnfX3Zzr1ayRhn3%2B24npXeIiG%2BwrY%2Bo0wUUU3BKdaXGxOfu03m0ix%2BmDivgLUT8vYh1TsqkpNDO5gGwmPNX%2Fe%2BXkuZ30duRQYj%2FN1gL%2FBgCKENDMCz1nm%2F0pbtT4C25jsc1uGvFnrNvsU%2FlxIfG4%2FSaO4ySZ39yo5qp2UIUlyIA5IF5YG%2FASKaEHaic1HT6O7IT3wqwuivlaFCJLeTNMiIpdd72TMnUFR1yCplwTtkgfNzm8S8fVzEWHme1uYro09q9J5WFIGcL%2BFPTtcNRC9WEPhn%2BfNt02Bc54%2F7y6Uk7%2FpWbhHzaKc3hnUzoFE4j7h0t69I6A4HLjgWcD97G48JW5FBTuiqTRE%2BPzIs9w9SL07adRVW6xpOh93laikoFyOh0nljw5iJeLB%2Bmfa%2FOkdnpK8P2n%2Fz6HBGS44KJRuRKGAejJgeR78bL3ud421fJ1RbHOWrWZoGcJ%2B93xyaZZx7g32w0zGUayU1dznR4EhPC6BI08fc6TT2xWkbDrUFJ2hBG8QaB8WVzn&nvMid=82677703530&catId=50001332"},null,{"$f":"+_xlfn.RANK.AVG(Summary!I65,Summary!$I$13:$I$91,1)","v":15.5},{"$f":"+_xlfn.RANK.AVG(Summary!J65,Summary!$J$13:$J$91,0)","v":15},{"$f":"+_xlfn.RANK.AVG(Summary!K65,Summary!$K$13:$K$91,0)","v":34},21.5,21.5]
[28,"[일룸] 제롬 키즈 모션데스크","iloom일룸",999000,31,5,null,"https://cr.shopping.naver.com/adcr.nhn?x=uc6uBQnjcWk5y49gn28Gdf%2F%2F%2Fw%3D%3Ds%2FmE5EDwTOA9OL0AeDg16E0yQnWQR0XFajuPQcih241xJtAyFw1aYn46AJKNp9asDI4hZNYkPdg7gk6P26f42EtsLPgZPdEBxQoR1%2BIt7rGOiO9cZ9iLBq8rClqnxrHHyb6qQFTvGZCOG08lHer4ShicX2AUq8VPh3PK%2Fo8l8aTkQ30gwb0ZAWnfX3Zzr1ayRjzoNPiObjM71j2adFV6x2gdS8NtJWn4dCAHfYcCdS7CDivgLUT8vYh1TsqkpNDO5gGwmPNX%2Fe%2BXkuZ30duRQYj%2FN1gL%2FBgCKENDMCz1nm%2F1Y2iO3niURuDpMD0sgIYXyyuAE3Y0IRwxRtjKIv4y4HKp2UIUlyIA5IF5YG%2FASKaHXlGU5eaHFefYhi4EmfTXnFZchQwqvmVRRObyR8d3FAQYZD3NsaUykzIcCWXfe%2BWsm5M9HiSFECNHfJip98JnrI3XU8KAWM9VJgeY%2FK4%2BqLdflXrX3sfTYArlNqJZhyc89nMd8hbCfykbKUKEUszJne5v%2BFhfyeKOZuhu%2Bp9UaWDRtOvLqzXExy60ltdpHXske83H99IPw68OMpgof%2FvZ2b1NmOoRBMBsXNQGXzjfbC%2BFUQB%2FrDAzm2q1KHRsHkfE%3D&nvMid=82743982460&catId=50001332","https://m.smartstore.naver.com/main/products/5199460837",{"$f":"IF(G57=0,H57,IF(AND(G57=0,H57=0),I57,G57))","v":"https://cr.shopping.naver.com/adcr.nhn?x=uc6uBQnjcWk5y49gn28Gdf%2F%2F%2Fw%3D%3Ds%2FmE5EDwTOA9OL0AeDg16E0yQnWQR0XFajuPQcih241xJtAyFw1aYn46AJKNp9asDI4hZNYkPdg7gk6P26f42EtsLPgZPdEBxQoR1%2BIt7rGOiO9cZ9iLBq8rClqnxrHHyb6qQFTvGZCOG08lHer4ShicX2AUq8VPh3PK%2Fo8l8aTkQ30gwb0ZAWnfX3Zzr1ayRjzoNPiObjM71j2adFV6x2gdS8NtJWn4dCAHfYcCdS7CDivgLUT8vYh1TsqkpNDO5gGwmPNX%2Fe%2BXkuZ30duRQYj%2FN1gL%2FBgCKENDMCz1nm%2F1Y2iO3niURuDpMD0sgIYXyyuAE3Y0IRwxRtjKIv4y4HKp2UIUlyIA5IF5YG%2FASKaHXlGU5eaHFefYhi4EmfTXnFZchQwqvmVRRObyR8d3FAQYZD3NsaUykzIcCWXfe%2BWsm5M9HiSFECNHfJip98JnrI3XU8KAWM9VJgeY%2FK4%2BqLdflXrX3sfTYArlNqJZhyc89nMd8hbCfykbKUKEUszJne5v%2BFhfyeKOZuhu%2Bp9UaWDRtOvLqzXExy60ltdpHXske83H99IPw68OMpgof%2FvZ2b1NmOoRBMBsXNQGXzjfbC%2BFUQB%2FrDAzm2q1KHRsHkfE%3D&nvMid=82743982460&catId=50001332"},null,{"$f":"+_xlfn.RANK.AVG(Summary!I67,Summary!$I$13:$I$91,1)","v":38},{"$f":"+_xlfn.RANK.AVG(Summary!J67,Summary!$J$13:$J$91,0)","v":16},{"$f":"+_xlfn.RANK.AVG(Summary!K67,Summary!$K$13:$K$91,0)","v":37},30.333333333333332,35]
[29,"이케아 FLISAT 플리사트 어린이책상 3단 높이조절책상",null,58500,0,44,null,"https://cr.shopping.naver.com/adcr.nhn?x=kQXfdSpTuKBnyv0lsHgjAv%2F%2F%2Fw%3D%3DsQjYZhnGN7M6mUMtprzrJ8%2FyZQkjtNWf67O%2Br06%2BlyQTD8KTAmf4KWGP7K8A663CAxVwN1dByzSdvgpJHgyR7CO%2Fn5DwLlcZ6UM26YSLLZy2L8yT9vZuDvo2djJMqXDsCb7MfLQKIdjCgfcUPwbcJp0ls1M9xucXxkPPt7QTmSRFr6kdrp7BvT8OlwZ7P37YyF8xiXv%2BoxEFx3sLcVWe%2FEtkai0Z5EmMxLIw5q8SqvA%2FYlO%2Fk4kxCoWN1gk8LWSU%2BRbfNFVivhP8U%2BTROBimK%2BwWrj3yhjv32odB%2BAe4KRcC4culXwc2z5U0bwq8AvoHHA5ijqTU6jnRNRTh%2BkUVsAgez%2FY8eSma9aMvarLWce5sxxW%2BLDcNVaB%2FSVceQuOlNSWA3bP8MfFp62deyRVFst2Qim0uSGV45GygZvcFQrpAhqUGi7eNPASJqHFD%2FmHIcotu1pAq3lrfEQHHBvxHUNkqxorqzO%2BBGjlflcLUedbLccwA5NFvIAyD1AAfmhbi%2BW2BsD8Er6YAsJSRBtKytbEDDwC0dw%2FTwtMBWX%2BMQ5iXwjtkzTbr5TvmkDITlKuLYLcqEhOiscytOptfh0D9%2BAmCo3JriutBjttb%2ByRIeeA68O5AYR2cZ6dvZF6eIkJf5oAxwLFFfQ4E19tKPQYKk1v2pjn2nwCULTo8NtrxekGKH5EFxgWGd5tBalCZqvhuUHRyPBWbUFRhWScTsgQynPg%3D%3D&nvMid=17204700279&catId=50001332",null,{"$f":"IF(G58=0,H58,IF(AND(G58=0,H58=0),I58,G58))","v":"https://cr.shopping.naver.com/adcr.nhn?x=kQXfdSpTuKBnyv0lsHgjAv%2F%2F%2Fw%3D%3DsQjYZhnGN7M6mUMtprzrJ8%2FyZQkjtNWf67O%2Br06%2BlyQTD8KTAmf4KWGP7K8A663CAxVwN1dByzSdvgpJHgyR7CO%2Fn5DwLlcZ6UM26YSLLZy2L8yT9vZuDvo2djJMqXDsCb7MfLQKIdjCgfcUPwbcJp0ls1M9xucXxkPPt7QTmSRFr6kdrp7BvT8OlwZ7P37YyF8xiXv%2BoxEFx3sLcVWe%2FEtkai0Z5EmMxLIw5q8SqvA%2FYlO%2Fk4kxCoWN1gk8LWSU%2BRbfNFVivhP8U%2BTROBimK%2BwWrj3yhjv32odB%2BAe4KRcC4culXwc2z5U0bwq8AvoHHA5ijqTU6jnRNRTh%2BkUVsAgez%2FY8eSma9aMvarLWce5sxxW%2BLDcNVaB%2FSVceQuOlNSWA3bP8MfFp62deyRVFst2Qim0uSGV45GygZvcFQrpAhqUGi7eNPASJqHFD%2FmHIcotu1pAq3lrfEQHHBvxHUNkqxorqzO%2BBGjlflcLUedbLccwA5NFvIAyD1AAfmhbi%2BW2BsD8Er6YAsJSRBtKytbEDDwC0dw%2FTwtMBWX%2BMQ5iXwjtkzTbr5TvmkDITlKuLYLcqEhOiscytOptfh0D9%2BAmCo3JriutBjttb%2ByRIeeA68O5AYR2cZ6dvZF6eIkJf5oAxwLFFfQ4E19tKPQYKk1v2pjn2nwCULTo8NtrxekGKH5EFxgWGd5tBalCZqvhuUHRyPBWbUFRhWScTsgQynPg%3D%3D&nvMid=17204700279&catId=50001332"},null,{"$f":"+_xlfn.RANK.AVG(Summary!I69,Summary!$I$13:$I$91,1)","v":1},{"$f":"+_xlfn.RANK.AVG(Summary!J69,Summary!$J$13:$J$91,0)","v":29.5},{"$f":"+_xlfn.RANK.AVG(Summary!K69,Summary!$K$13:$K$91,0)","v":30.5},20.333333333333332,18.5]
[30,"[위드그로우]컴포트 어린이 바른자세 초등학생 책상 지니의자 세트","하로스토어",338000,70,20,null,"https://cr.shopping.naver.com/adcr.nhn?x=B5uJY0ogr1ExnPIFfT4Nnv%2F%2F%2Fw%3D%3DspIVq63dAhVwh6TMdVxPXm7kDBzNbBVzR78Ro3zuDAnpJtAyFw1aYn46AJKNp9asD7A6UxN1SeGwAtR9ZbdX8v4w55xHmqxgfb9ZKL5iEJTqiO9cZ9iLBq8rClqnxrHHyb6qQFTvGZCOG08lHer4ShicX2AUq8VPh3PK%2Fo8l8aTkQ30gwb0ZAWnfX3Zzr1ayRwvGVm1GCdij7COFQ3pf5I4PqHzRMnwWy1Z0GkthA%2BHyDivgLUT8vYh1TsqkpNDO5gGwmPNX%2Fe%2BXkuZ30duRQYj%2FN1gL%2FBgCKENDMCz1nm%2F0FDtm2pWKhF0PTQycWvBa9mzevvbZ8gnhjWO5Yd6RAL6p2UIUlyIA5IF5YG%2FASKaGGjhRAYvElwfe%2By%2BQz8AwLFZchQwqvmVRRObyR8d3FAUqDvPVgX5EKM%2FP9YVnOnq4ccoewceSRr4PACowjBqmaKlUPbmqdpJg9%2F68RVfej1PDCvKyHmv1ohM1FWfKtGa9rMNLdUUcetGgyC%2BCgJA4a8mktZRmtgP0JZq92Noo3eqNTCrWjZbtHf5qDpOZvX%2Bf0GuXEYYP8RWo8reFVm6G7cg1428xUWJt9B41vQjulVSW3llNvIdfPQzAkGQEQbTJ%2FQ2re0YYA5zWU%2BHnXqL%2F9IX%2FniTLk1xnPgGRSSiFkGkHQIiXcF4qwUXZ2sX76wW8%3D&nvMid=82865631201&catId=50001332","https://m.smartstore.naver.com/main/products/5321138634",{"$f":"IF(G59=0,H59,IF(AND(G59=0,H59=0),I59,G59))","v":"https://cr.shopping.naver.com/adcr.nhn?x=B5uJY0ogr1ExnPIFfT4Nnv%2F%2F%2Fw%3D%3DspIVq63dAhVwh6TMdVxPXm7kDBzNbBVzR78Ro3zuDAnpJtAyFw1aYn46AJKNp9asD7A6UxN1SeGwAtR9ZbdX8v4w55xHmqxgfb9ZKL5iEJTqiO9cZ9iLBq8rClqnxrHHyb6qQFTvGZCOG08lHer4ShicX2AUq8VPh3PK%2Fo8l8aTkQ30gwb0ZAWnfX3Zzr1ayRwvGVm1GCdij7COFQ3pf5I4PqHzRMnwWy1Z0GkthA%2BHyDivgLUT8vYh1TsqkpNDO5gGwmPNX%2Fe%2BXkuZ30duRQYj%2FN1gL%2FBgCKENDMCz1nm%2F0FDtm2pWKhF0PTQycWvBa9mzevvbZ8gnhjWO5Yd6RAL6p2UIUlyIA5IF5YG%2FASKaGGjhRAYvElwfe%2By%2BQz8AwLFZchQwqvmVRRObyR8d3FAUqDvPVgX5EKM%2FP9YVnOnq4ccoewceSRr4PACowjBqmaKlUPbmqdpJg9%2F68RVfej1PDCvKyHmv1ohM1FWfKtGa9rMNLdUUcetGgyC%2BCgJA4a8mktZRmtgP0JZq92Noo3eqNTCrWjZbtHf5qDpOZvX%2Bf0GuXEYYP8RWo8reFVm6G7cg1428xUWJt9B41vQjulVSW3llNvIdfPQzAkGQEQbTJ%2FQ2re0YYA5zWU%2BHnXqL%2F9IX%2FniTLk1xnPgGRSSiFkGkHQIiXcF4qwUXZ2sX76wW8%3D&nvMid=82865631201&catId=50001332"},null,{"$f":"+_xlfn.RANK.AVG(Summary!I71,Summary!$I$13:$I$91,1)","v":28},{"$f":"+_xlfn.RANK.AVG(Summary!J71,Summary!$J$13:$J$91,0)","v":13},{"$f":"+_xlfn.RANK.AVG(Summary!K71,Summary!$K$13:$K$91,0)","v":34},25,28]
[31,"한샘 하이 높이 각도 조절 책상세트 5단 1200",null,490070,0,188,null,"https://cr.shopping.naver.com/adcr.nhn?x=ZH9V%2BYKEO01%2Bf2aCPeRU5f%2F%2F%2Fw%3D%3Dsex5n7kTPqYxdPio47%2FNntEz%2FY%2BEmYWT1wP35dK5fZpcO0U7iBuW5jhI3nQa2BPSOPyFMDLQgZ1QNcuSpPM4vMOFKmBN2jNgyx1fu2c2mFUdJ%2BmDaejXokPQBEaOjG2CKSRbFZoE9rkTcApB8DXr1fci30QtKP1mA7BYZPpxeJLexWvZfe2todmJfmpbNrXnq8H0GNDkmiaLDGEf3aAX2rVx12x6FjR%2Bt3FBU03GHUKfB2Em03XMO49bLEPTDsSqpJl2PL5NanwBSvSvU4lYkp9KMO7iVYl1eD%2B6cluKu9Ibxa1S4%2B1DlHYjQhLW4IUVRy%2F6MHZ6u%2F5n6uuzlUc6JNEuUiTS4CHUtVxQrWeRhExj05joNc2Y78rPg%2FkXph24cISFv7n5uAItYPm5%2BaPBVoKp2UIUlyIA5IF5YG%2FASKaG2nL8DmX0LKulnqmFC4ZcBoCF9uZFzpP1D3UyqhUgjqvhH2kBro5sb6MALYZMACJHRgW7JKFvHWEaUxZ8Ljp9Qx5GXpnzI1zARASPAcwqV%2FMYhOeAOwVLKQr4QZhOqHelWJWO7YzRyU%2B%2BKeeZexnOO0m6dh4J9FPUoMdIAuXb1bpsPJiYiaSGVCf29F4FDRKMM1ArTknUek%2FmrLPV4ep%2F45wOLdy6vbtDvAzlSqai4MKSq3jyNl8a16nxI7qB3UccdHI8FZtQVGFZJxOyBDKc%2B&nvMid=13486581916&catId=50001332",null,{"$f":"IF(G60=0,H60,IF(AND(G60=0,H60=0),I60,G60))","v":"https://cr.shopping.naver.com/adcr.nhn?x=ZH9V%2BYKEO01%2Bf2aCPeRU5f%2F%2F%2Fw%3D%3Dsex5n7kTPqYxdPio47%2FNntEz%2FY%2BEmYWT1wP35dK5fZpcO0U7iBuW5jhI3nQa2BPSOPyFMDLQgZ1QNcuSpPM4vMOFKmBN2jNgyx1fu2c2mFUdJ%2BmDaejXokPQBEaOjG2CKSRbFZoE9rkTcApB8DXr1fci30QtKP1mA7BYZPpxeJLexWvZfe2todmJfmpbNrXnq8H0GNDkmiaLDGEf3aAX2rVx12x6FjR%2Bt3FBU03GHUKfB2Em03XMO49bLEPTDsSqpJl2PL5NanwBSvSvU4lYkp9KMO7iVYl1eD%2B6cluKu9Ibxa1S4%2B1DlHYjQhLW4IUVRy%2F6MHZ6u%2F5n6uuzlUc6JNEuUiTS4CHUtVxQrWeRhExj05joNc2Y78rPg%2FkXph24cISFv7n5uAItYPm5%2BaPBVoKp2UIUlyIA5IF5YG%2FASKaG2nL8DmX0LKulnqmFC4ZcBoCF9uZFzpP1D3UyqhUgjqvhH2kBro5sb6MALYZMACJHRgW7JKFvHWEaUxZ8Ljp9Qx5GXpnzI1zARASPAcwqV%2FMYhOeAOwVLKQr4QZhOqHelWJWO7YzRyU%2B%2BKeeZexnOO0m6dh4J9FPUoMdIAuXb1bpsPJiYiaSGVCf29F4FDRKMM1ArTknUek%2FmrLPV4ep%2F45wOLdy6vbtDvAzlSqai4MKSq3jyNl8a16nxI7qB3UccdHI8FZtQVGFZJxOyBDKc%2B&nvMid=13486581916&catId=50001332"},null,{"$f":"+_xlfn.RANK.AVG(Summary!I73,Summary!$I$13:$I$91,1)","v":31},{"$f":"+_xlfn.RANK.AVG(Summary!J73,Summary!$J$13:$J$91,0)","v":29.5},{"$f":"+_xlfn.RANK.AVG(Summary!K73,Summary!$K$13:$K$91,0)","v":17},25.833333333333332,31]
[32,"일룸 로이모노 다리형 책상 1400폭 D600",null,199000,0,167,null,"https://cr.shopping.naver.com/adcr.nhn?x=enzatiDgkhIVJh%2B3UrMkRP%2F%2F%2Fw%3D%3DsXgXZ7HTBw6xvIRXC6mZFZlmPpN%2BN6RSdBJYJ5F96Zpb%2BV2Z1R9fh6msUn3l%2FMjx5jwD%2Bmh%2BeXvWoHulQYZmz0TaYpsAx14Hf90UPkDplfK89Jl2wDM%2FAWKfycVx%2FkE3IfBqS3mXuWwE3MZp%2BCjkIC0gAn8lD2%2BxrgblrBqYwPdWug%2B9sjA7rHdeMLkY%2BwIMUIrNZNUsdr2lSDmkW%2FBHs%2F%2FV2raiCF7aFk4I1%2BRMpbA46%2FEXhZgbhtRjphLcAni%2FciitGqoWNKiHOCPjKnfgRA8uxJYlMD%2BCjtqS%2FXLNFGbVthMLLkE5u%2BEmsBzTOOCHE334rL%2BbR36BhYe0R%2FrUmjgBSTS1sRv49oBHxm%2Bxq6HjYjpZjG%2BE6wzYCC28PpNQ9UhCy8%2FJNSabw9RIrpaWo6xZ6uFodlyZ9bfk20%2BE%2B0r1%2BkXGagSlRazB6f2Y87h5Hxv197fyjYSyXFrroWYEUdquFbLOOx3HxeF5JNH0XeTkHlzr6wSg9si%2BkXmmRa8KN%2B%2BdyduDBJq8XzeJjOqjlURBUIceaaTWZJekGyiL6pUJLn140ylUUZ%2BZi%2FXAwOLY9gr%2FOJVo8jAW1tFXcmRmyHq2powcAmSPQMAleJgk1kJmdpooeldLoy%2Fhbd%2BHBZoUKyHe5M7koA5bNj9X5LJ3nBQN%2BQsjK6V0FLd%2Fybx7qcubNSE3OzZUT76KyqzckASmm&nvMid=21481647695&catId=50001332",null,{"$f":"IF(G61=0,H61,IF(AND(G61=0,H61=0),I61,G61))","v":"https://cr.shopping.naver.com/adcr.nhn?x=enzatiDgkhIVJh%2B3UrMkRP%2F%2F%2Fw%3D%3DsXgXZ7HTBw6xvIRXC6mZFZlmPpN%2BN6RSdBJYJ5F96Zpb%2BV2Z1R9fh6msUn3l%2FMjx5jwD%2Bmh%2BeXvWoHulQYZmz0TaYpsAx14Hf90UPkDplfK89Jl2wDM%2FAWKfycVx%2FkE3IfBqS3mXuWwE3MZp%2BCjkIC0gAn8lD2%2BxrgblrBqYwPdWug%2B9sjA7rHdeMLkY%2BwIMUIrNZNUsdr2lSDmkW%2FBHs%2F%2FV2raiCF7aFk4I1%2BRMpbA46%2FEXhZgbhtRjphLcAni%2FciitGqoWNKiHOCPjKnfgRA8uxJYlMD%2BCjtqS%2FXLNFGbVthMLLkE5u%2BEmsBzTOOCHE334rL%2BbR36BhYe0R%2FrUmjgBSTS1sRv49oBHxm%2Bxq6HjYjpZjG%2BE6wzYCC28PpNQ9UhCy8%2FJNSabw9RIrpaWo6xZ6uFodlyZ9bfk20%2BE%2B0r1%2BkXGagSlRazB6f2Y87h5Hxv197fyjYSyXFrroWYEUdquFbLOOx3HxeF5JNH0XeTkHlzr6wSg9si%2BkXmmRa8KN%2B%2BdyduDBJq8XzeJjOqjlURBUIceaaTWZJekGyiL6pUJLn140ylUUZ%2BZi%2FXAwOLY9gr%2FOJVo8jAW1tFXcmRmyHq2powcAmSPQMAleJgk1kJmdpooeldLoy%2Fhbd%2BHBZoUKyHe5M7koA5bNj9X5LJ3nBQN%2BQsjK6V0FLd%2Fybx7qcubNSE3OzZUT76KyqzckASmm&nvMid=21481647695&catId=50001332"},null,{"$f":"+_xlfn.RANK.AVG(Summary!I75,Summary!$I$13:$I$91,1)","v":13},{"$f":"+_xlfn.RANK.AVG(Summary!J75,Summary!$J$13:$J$91,0)","v":29.5},{"$f":"+_xlfn.RANK.AVG(Summary!K75,Summary!$K$13:$K$91,0)","v":21},21.166666666666668,20]
[33,"로니 초등학생책상 남아 초등여아 초등생 여자아이 책상","블레스가구",77000,426,239,null,"https://cr.shopping.naver.com/adcr.nhn?x=7boTyRoaViIjIfRv9epLiP%2F%2F%2Fw%3D%3DskEUS8oqjKW5XOugbo4%2BN8BRgrSDfCrEScbTKzyk0ewtJtAyFw1aYn46AJKNp9asDae%2FMruxwixmJtygOUhfwlrlyGbkP5IIi2qAT3CZt%2FfaiO9cZ9iLBq8rClqnxrHHyb6qQFTvGZCOG08lHer4ShicX2AUq8VPh3PK%2Fo8l8aTkQ30gwb0ZAWnfX3Zzr1ayRmseR6M2a11XW6xeKert2VG0zIH2FLGL62hAwwGxnd%2F%2BDivgLUT8vYh1TsqkpNDO5gGwmPNX%2Fe%2BXkuZ30duRQYj%2FN1gL%2FBgCKENDMCz1nm%2F3jAVsHLS4SAhxNMQ8Kf06HjFycvU1rkxUjWYVHNaGhD6p2UIUlyIA5IF5YG%2FASKaGbUh2t7LDXIJfJJYZP9TxkRFadIoK8rzHqu58MsZGpJ78V1EwWtez52BEaVHx8fk8U%2BtRDub5BhGfSEg7zvcG5bax%2FE%2B7v%2FveqiBjHa9LspRGXF5r49MvbiNNO6C3bo9pO8dvO%2FCpAMyep73ThgEVnjglTgarkoSSdKuK0m%2BH%2FAxaU7ylmH5udFgPrstW60HtMgRMcs3KzajSOCbGpFQmoeHM07LmihecI5OExUtErgjKXey%2FRN9N0taa7brNWB%2BQzv9t7K%2FoqG2FadWhXpGCwHRyPBWbUFRhWScTsgQynPg%3D%3D&nvMid=82328867552&catId=50001332","https://m.smartstore.naver.com/main/products/4784345091",{"$f":"IF(G62=0,H62,IF(AND(G62=0,H62=0),I62,G62))","v":"https://cr.shopping.naver.com/adcr.nhn?x=7boTyRoaViIjIfRv9epLiP%2F%2F%2Fw%3D%3DskEUS8oqjKW5XOugbo4%2BN8BRgrSDfCrEScbTKzyk0ewtJtAyFw1aYn46AJKNp9asDae%2FMruxwixmJtygOUhfwlrlyGbkP5IIi2qAT3CZt%2FfaiO9cZ9iLBq8rClqnxrHHyb6qQFTvGZCOG08lHer4ShicX2AUq8VPh3PK%2Fo8l8aTkQ30gwb0ZAWnfX3Zzr1ayRmseR6M2a11XW6xeKert2VG0zIH2FLGL62hAwwGxnd%2F%2BDivgLUT8vYh1TsqkpNDO5gGwmPNX%2Fe%2BXkuZ30duRQYj%2FN1gL%2FBgCKENDMCz1nm%2F3jAVsHLS4SAhxNMQ8Kf06HjFycvU1rkxUjWYVHNaGhD6p2UIUlyIA5IF5YG%2FASKaGbUh2t7LDXIJfJJYZP9TxkRFadIoK8rzHqu58MsZGpJ78V1EwWtez52BEaVHx8fk8U%2BtRDub5BhGfSEg7zvcG5bax%2FE%2B7v%2FveqiBjHa9LspRGXF5r49MvbiNNO6C3bo9pO8dvO%2FCpAMyep73ThgEVnjglTgarkoSSdKuK0m%2BH%2FAxaU7ylmH5udFgPrstW60HtMgRMcs3KzajSOCbGpFQmoeHM07LmihecI5OExUtErgjKXey%2FRN9N0taa7brNWB%2BQzv9t7K%2FoqG2FadWhXpGCwHRyPBWbUFRhWScTsgQynPg%3D%3D&nvMid=82328867552&catId=50001332"},null,{"$f":"+_xlfn.RANK.AVG(Summary!I77,Summary!$I$13:$I$91,1)","v":5},{"$f":"+_xlfn.RANK.AVG(Summary!J77,Summary!$J$13:$J$91,0)","v":6},{"$f":"+_xlfn.RANK.AVG(Summary!K77,Summary!$K$13:$K$91,0)","v":16},9,2]
[34,"한샘 티오 일반 책상세트 5단 120cm",null,268690,0,913,null,"https://cr.shopping.naver.com/adcr.nhn?x=2EdVbeRpSzaNycD394GoAP%2F%2F%2Fw%3D%3DsuzD6znNXRlbnA7IAp9Cu06WsSKCPZIhkxbTG2hvvX53D8KTAmf4KWGP7K8A663CArWNDttrQcem2B6vxEMOn%2FShlCEnbLUQVnr8Jm4coJROL8yT9vZuDvo2djJMqXDsCb7MfLQKIdjCgfcUPwbcJp0ls1M9xucXxkPPt7QTmSRFr6kdrp7BvT8OlwZ7P37YydZQx2w2HQTIaKcsLno93KF6O9OOLIgAH308KnS9qNinYlO%2Fk4kxCoWN1gk8LWSU%2BRbfNFVivhP8U%2BTROBimK%2BwWrj3yhjv32odB%2BAe4KRcC4culXwc2z5U0bwq8AvoHHA5ijqTU6jnRNRTh%2BkUVsAgez%2FY8eSma9aMvarLWce5sxxW%2BLDcNVaB%2FSVceQuOlNuGcDDnilH5XS4jOIjDNpLmQim0uSGV45GygZvcFQrpDj0P8%2FdwU83xB7daunXVIywJpyJeCQ7mZThl2MPB55bUqxorqzO%2BBGjlflcLUedbI6Tdnz0%2FgcjFFo1%2B29f5j5lbitycviE0uyocJSFu86%2BUXd7Cjx3EB9YqbHk82SWm1jO%2B%2FM9haxSxkyKvpIffjo8cU8Qz7MjNJleH5l43Vb5k%2FAJcUmJF2ix%2Feizcr9afUyFLPYQabNe2Q5d9UA4Ps2gZxocV4bhsriQ2ky7LQ6ZG9TZjqEQTAbFzUBl8432wvhVEAf6wwM5tqtSh0bB5Hx&nvMid=21041699603&catId=50001332",null,{"$f":"IF(G63=0,H63,IF(AND(G63=0,H63=0),I63,G63))","v":"https://cr.shopping.naver.com/adcr.nhn?x=2EdVbeRpSzaNycD394GoAP%2F%2F%2Fw%3D%3DsuzD6znNXRlbnA7IAp9Cu06WsSKCPZIhkxbTG2hvvX53D8KTAmf4KWGP7K8A663CArWNDttrQcem2B6vxEMOn%2FShlCEnbLUQVnr8Jm4coJROL8yT9vZuDvo2djJMqXDsCb7MfLQKIdjCgfcUPwbcJp0ls1M9xucXxkPPt7QTmSRFr6kdrp7BvT8OlwZ7P37YydZQx2w2HQTIaKcsLno93KF6O9OOLIgAH308KnS9qNinYlO%2Fk4kxCoWN1gk8LWSU%2BRbfNFVivhP8U%2BTROBimK%2BwWrj3yhjv32odB%2BAe4KRcC4culXwc2z5U0bwq8AvoHHA5ijqTU6jnRNRTh%2BkUVsAgez%2FY8eSma9aMvarLWce5sxxW%2BLDcNVaB%2FSVceQuOlNuGcDDnilH5XS4jOIjDNpLmQim0uSGV45GygZvcFQrpDj0P8%2FdwU83xB7daunXVIywJpyJeCQ7mZThl2MPB55bUqxorqzO%2BBGjlflcLUedbI6Tdnz0%2FgcjFFo1%2B29f5j5lbitycviE0uyocJSFu86%2BUXd7Cjx3EB9YqbHk82SWm1jO%2B%2FM9haxSxkyKvpIffjo8cU8Qz7MjNJleH5l43Vb5k%2FAJcUmJF2ix%2Feizcr9afUyFLPYQabNe2Q5d9UA4Ps2gZxocV4bhsriQ2ky7LQ6ZG9TZjqEQTAbFzUBl8432wvhVEAf6wwM5tqtSh0bB5Hx&nvMid=21041699603&catId=50001332"},null,{"$f":"+_xlfn.RANK.AVG(Summary!I79,Summary!$I$13:$I$91,1)","v":19},{"$f":"+_xlfn.RANK.AVG(Summary!J79,Summary!$J$13:$J$91,0)","v":29.5},{"$f":"+_xlfn.RANK.AVG(Summary!K79,Summary!$K$13:$K$91,0)","v":10},19.5,16.5]
[35,"라일리 어린이 성장형 기능성 각도조절 높이조절 초등학생책상 (책장포함)","가구컴퍼스",248800,147,122,null,"https://cr.shopping.naver.com/adcr.nhn?x=ar32asuHZYFSF0%2FaL651B%2F%2F%2F%2Fw%3D%3DslYuk1vQ7eTEgg93PMFhwmPImhCLwREV3fFXpX77VyrXD8KTAmf4KWGP7K8A663CAb6afAWDMutKd6PNvFKPG9K5dFkQZXyoSzWADs0nSxDWL8yT9vZuDvo2djJMqXDsCb7MfLQKIdjCgfcUPwbcJpwY7th%2Fb5X%2Fu%2F1YFVAUnhxaK4j5MTwF45Ni1%2FMJqrSg0X08Buc49SzUsA6GPz2r5Z75O8VOCBKYxuqLFaciD5%2BZKYA5QIjINJ7dXAMIsc7SJw6ZjbtkbN7RD61dGUzg7G1qsmhWtsS26cBgiQoajA6p4Wa%2FCY1L3m6Y0IkO1%2FWHEg5d22wmfe71io4ReYEk0oBZ6uFodlyZ9bfk20%2BE%2B0r1JvDQ1l1pPAts4e38qy7asPoVRGKE69U0rr5qui8URdrxmGULQHJtNrch4RO3yM4hXTOIesktZmgYzYROR55rzuHt%2Fm2pv4G6N8uoSeyPjaABfIVLPG5b7jGnJANE9ktbCZGtuTHR7vza%2FXPBztRym80vCfKOWAVuhH3Inq5of4esn9g%2BgC4DZ%2BZmdJqMHuvQ1iJodAE%2F6n5ONm0%2Bx60D0yMWkRTDlwbCMK7KzyHwBF6H54Y97sz4ydPvHZhi5Nyla1dKWnNn8T1TPkLqePUYpras4lwgKib8N3cKj6eANGG9TZjqEQTAbFzUBl8432wvhVEAf6wwM5tqtSh0bB5Hx&nvMid=82354567843&catId=50001332","https://m.smartstore.naver.com/main/products/4810045177",{"$f":"IF(G64=0,H64,IF(AND(G64=0,H64=0),I64,G64))","v":"https://cr.shopping.naver.com/adcr.nhn?x=ar32asuHZYFSF0%2FaL651B%2F%2F%2F%2Fw%3D%3DslYuk1vQ7eTEgg93PMFhwmPImhCLwREV3fFXpX77VyrXD8KTAmf4KWGP7K8A663CAb6afAWDMutKd6PNvFKPG9K5dFkQZXyoSzWADs0nSxDWL8yT9vZuDvo2djJMqXDsCb7MfLQKIdjCgfcUPwbcJpwY7th%2Fb5X%2Fu%2F1YFVAUnhxaK4j5MTwF45Ni1%2FMJqrSg0X08Buc49SzUsA6GPz2r5Z75O8VOCBKYxuqLFaciD5%2BZKYA5QIjINJ7dXAMIsc7SJw6ZjbtkbN7RD61dGUzg7G1qsmhWtsS26cBgiQoajA6p4Wa%2FCY1L3m6Y0IkO1%2FWHEg5d22wmfe71io4ReYEk0oBZ6uFodlyZ9bfk20%2BE%2B0r1JvDQ1l1pPAts4e38qy7asPoVRGKE69U0rr5qui8URdrxmGULQHJtNrch4RO3yM4hXTOIesktZmgYzYROR55rzuHt%2Fm2pv4G6N8uoSeyPjaABfIVLPG5b7jGnJANE9ktbCZGtuTHR7vza%2FXPBztRym80vCfKOWAVuhH3Inq5of4esn9g%2BgC4DZ%2BZmdJqMHuvQ1iJodAE%2F6n5ONm0%2Bx60D0yMWkRTDlwbCMK7KzyHwBF6H54Y97sz4ydPvHZhi5Nyla1dKWnNn8T1TPkLqePUYpras4lwgKib8N3cKj6eANGG9TZjqEQTAbFzUBl8432wvhVEAf6wwM5tqtSh0bB5Hx&nvMid=82354567843&catId=50001332"},null,{"$f":"+_xlfn.RANK.AVG(Summary!I81,Summary!$I$13:$I$91,1)","v":14},{"$f":"+_xlfn.RANK.AVG(Summary!J81,Summary!$J$13:$J$91,0)","v":10},{"$f":"+_xlfn.RANK.AVG(Summary!K81,Summary!$K$13:$K$91,0)","v":25},16.333333333333332,15]
[36,"일룸 로이 1400폭 5단 다리형 책상 SET",null,685000,0,155,null,"https://cr.shopping.naver.com/adcr.nhn?x=BYPlj0RQhL4y%2BcOVUIANHf%2F%2F%2Fw%3D%3DsXwzM%2BDPChyzw4sjUDT%2BATjpFHaNTxFak7TbpaPj3Q0hJtAyFw1aYn46AJKNp9asDWced%2F7%2FzxQC04qCHdSxDgy7QGAvzJ557jbLHc8%2FGPNqiO9cZ9iLBq8rClqnxrHHyb6qQFTvGZCOG08lHer4ShtyGaSr%2B0dRu37W7MMIB4NFk9Io6iZoAfEBQfsbkhBMB8UZtM1jbqIVoPJhB%2FtfVlq%2FR0jGG9pLn%2B4g0KlKBbhH%2BGZlqeppNdVK2bKs2glgCN1CzfoTmgVhJuqiNatZgI5oC7oFHpSLbDFBBIk9qUb4gVc9gll0tM8AA6hcp67HBhmeWtJmvw8M90EK%2Bzy5a1yVdN3LpKf%2FbKuiZi7z1XJRShlwRQdfIEsclZ498SRQYXzu%2FxjtU0OrQyNqeH%2Bphr1d%2BqILAG09hjAR1K3qLYkDGBA2K8uYsFeUsJUDt0fRxyNG1EAqMpIwQNhblS8kmNLDzn3c5H6virFSgnW5KKdpd7HbUON0c%2B5w4TutUm7RGWQt7W%2B8%2FUq%2BOBQ57npf2ljUV5bdadpa9f0Fn3RNrUOCftYZrwVuKr%2Bn%2BIGGrqzjA8d9sBWHS5PONOq06FvvQu0%2FAJcUmJF2ix%2Feizcr9afXpcWAR46GqWP3G4%2BFRj9k%2FfOYzPXdCHYzQqRrqd%2B%2FWNW9TZjqEQTAbFzUBl8432wvhVEAf6wwM5tqtSh0bB5Hx&nvMid=18605492652&catId=50001332",null,{"$f":"IF(G65=0,H65,IF(AND(G65=0,H65=0),I65,G65))","v":"https://cr.shopping.naver.com/adcr.nhn?x=BYPlj0RQhL4y%2BcOVUIANHf%2F%2F%2Fw%3D%3DsXwzM%2BDPChyzw4sjUDT%2BATjpFHaNTxFak7TbpaPj3Q0hJtAyFw1aYn46AJKNp9asDWced%2F7%2FzxQC04qCHdSxDgy7QGAvzJ557jbLHc8%2FGPNqiO9cZ9iLBq8rClqnxrHHyb6qQFTvGZCOG08lHer4ShtyGaSr%2B0dRu37W7MMIB4NFk9Io6iZoAfEBQfsbkhBMB8UZtM1jbqIVoPJhB%2FtfVlq%2FR0jGG9pLn%2B4g0KlKBbhH%2BGZlqeppNdVK2bKs2glgCN1CzfoTmgVhJuqiNatZgI5oC7oFHpSLbDFBBIk9qUb4gVc9gll0tM8AA6hcp67HBhmeWtJmvw8M90EK%2Bzy5a1yVdN3LpKf%2FbKuiZi7z1XJRShlwRQdfIEsclZ498SRQYXzu%2FxjtU0OrQyNqeH%2Bphr1d%2BqILAG09hjAR1K3qLYkDGBA2K8uYsFeUsJUDt0fRxyNG1EAqMpIwQNhblS8kmNLDzn3c5H6virFSgnW5KKdpd7HbUON0c%2B5w4TutUm7RGWQt7W%2B8%2FUq%2BOBQ57npf2ljUV5bdadpa9f0Fn3RNrUOCftYZrwVuKr%2Bn%2BIGGrqzjA8d9sBWHS5PONOq06FvvQu0%2FAJcUmJF2ix%2Feizcr9afXpcWAR46GqWP3G4%2BFRj9k%2FfOYzPXdCHYzQqRrqd%2B%2FWNW9TZjqEQTAbFzUBl8432wvhVEAf6wwM5tqtSh0bB5Hx&nvMid=18605492652&catId=50001332"},null,{"$f":"+_xlfn.RANK.AVG(Summary!I83,Summary!$I$13:$I$91,1)","v":36},{"$f":"+_xlfn.RANK.AVG(Summary!J83,Summary!$J$13:$J$91,0)","v":29.5},{"$f":"+_xlfn.RANK.AVG(Summary!K83,Summary!$K$13:$K$91,0)","v":22},29.166666666666668,33]
[37,"일룸 로이모노 1400폭 5단 책상세트 D600",null,599000,0,94,null,"https://cr.shopping.naver.com/adcr.nhn?x=5TJp%2FjRWXTDxn0%2BlwJSMpf%2F%2F%2Fw%3D%3Dst2GL4V6mEaLDKHSVNpH%2Fgbwaqc2KZ3xt7UwKfQ7YbOJJtAyFw1aYn46AJKNp9asDPn7zaTS4iDLIw2fyXau8h9z8djdC%2F3%2B4Uo9bpqcGwg6iO9cZ9iLBq8rClqnxrHHyb6qQFTvGZCOG08lHer4ShtyGaSr%2B0dRu37W7MMIB4NFk9Io6iZoAfEBQfsbkhBMB20MCUUZaRD64wDiDGNQWMUGNDP7pzOfAmYssGuPo9HL%2BGZlqeppNdVK2bKs2glgCN1CzfoTmgVhJuqiNatZgI5oC7oFHpSLbDFBBIk9qUb4gVc9gll0tM8AA6hcp67HBhmeWtJmvw8M90EK%2Bzy5a1yVdN3LpKf%2FbKuiZi7z1XJQ3bNx%2FnBlfEz9gwqznHtRiFW%2BtQ6oypJtgXzIuzYwq5ld%2BqILAG09hjAR1K3qLYkBBZYiEa0N4FT2QliJZjGf%2F4WPBpOpZGz2HS1sCcTXDDbDzn3c5H6virFSgnW5KKdppkd1PTMGAhe4ZOCkFFIMZGuU09XJq%2FuFt2zCAlPuHDoS4irNABbDV09GK5SUFeP41QscUpgLt%2BxYDey0WS19WNp9vXjhGcgThnczqZqnSEMNqaKb5OR8crY265r4LmMRfLU4NjmwwU9pd3SkgpOJGPkB9RPewsneYQvsh1lplTSg6vLUqhZpK%2FOaT2tNtezFB0CIl3BeKsFF2drF%2B%2BsFv&nvMid=21445138228&catId=50001332",null,{"$f":"IF(G66=0,H66,IF(AND(G66=0,H66=0),I66,G66))","v":"https://cr.shopping.naver.com/adcr.nhn?x=5TJp%2FjRWXTDxn0%2BlwJSMpf%2F%2F%2Fw%3D%3Dst2GL4V6mEaLDKHSVNpH%2Fgbwaqc2KZ3xt7UwKfQ7YbOJJtAyFw1aYn46AJKNp9asDPn7zaTS4iDLIw2fyXau8h9z8djdC%2F3%2B4Uo9bpqcGwg6iO9cZ9iLBq8rClqnxrHHyb6qQFTvGZCOG08lHer4ShtyGaSr%2B0dRu37W7MMIB4NFk9Io6iZoAfEBQfsbkhBMB20MCUUZaRD64wDiDGNQWMUGNDP7pzOfAmYssGuPo9HL%2BGZlqeppNdVK2bKs2glgCN1CzfoTmgVhJuqiNatZgI5oC7oFHpSLbDFBBIk9qUb4gVc9gll0tM8AA6hcp67HBhmeWtJmvw8M90EK%2Bzy5a1yVdN3LpKf%2FbKuiZi7z1XJQ3bNx%2FnBlfEz9gwqznHtRiFW%2BtQ6oypJtgXzIuzYwq5ld%2BqILAG09hjAR1K3qLYkBBZYiEa0N4FT2QliJZjGf%2F4WPBpOpZGz2HS1sCcTXDDbDzn3c5H6virFSgnW5KKdppkd1PTMGAhe4ZOCkFFIMZGuU09XJq%2FuFt2zCAlPuHDoS4irNABbDV09GK5SUFeP41QscUpgLt%2BxYDey0WS19WNp9vXjhGcgThnczqZqnSEMNqaKb5OR8crY265r4LmMRfLU4NjmwwU9pd3SkgpOJGPkB9RPewsneYQvsh1lplTSg6vLUqhZpK%2FOaT2tNtezFB0CIl3BeKsFF2drF%2B%2BsFv&nvMid=21445138228&catId=50001332"},null,{"$f":"+_xlfn.RANK.AVG(Summary!I85,Summary!$I$13:$I$91,1)","v":35},{"$f":"+_xlfn.RANK.AVG(Summary!J85,Summary!$J$13:$J$91,0)","v":29.5},{"$f":"+_xlfn.RANK.AVG(Summary!K85,Summary!$K$13:$K$91,0)","v":27},30.5,36]
[38,"위드그로우 엘리트 책상 어린이 바른자세 높이각도조절 초등학생 책상",null,269000,0,260,null,"https://cr.shopping.naver.com/adcr.nhn?x=0SGsqdcx2P1gO2lvkf3Zxf%2F%2F%2Fw%3D%3Ds5jp7enKl9QT5xyc3EDUQaZBq2R1JZn%2Fv3UDDPGczdP7%2BV2Z1R9fh6msUn3l%2FMjx5K8TC%2BHmdsH2cpZh1cj3QMVp1BvIvuxTO2AS%2BvhSqjIU9Jl2wDM%2FAWKfycVx%2FkE3IfBqS3mXuWwE3MZp%2BCjkIC0gAn8lD2%2BxrgblrBqYwPdWug%2B9sjA7rHdeMLkY%2BwIMUMfF7ODc3WnM6LUARe6iFgvV2raiCF7aFk4I1%2BRMpbA46%2FEXhZgbhtRjphLcAni%2FciitGqoWNKiHOCPjKnfgRA8uxJYlMD%2BCjtqS%2FXLNFGbVthMLLkE5u%2BEmsBzTOOCHE334rL%2BbR36BhYe0R%2FrUmjgBSTS1sRv49oBHxm%2Bxq6HivxJTg3rudbhkuv4uvVGSgprIbu8OCQaCX%2BrgbkD%2FlgBZ6uFodlyZ9bfk20%2BE%2B0r1VtkruvLA17LMqLPhlM2kKPoVRGKE69U0rr5qui8URdqOtceUW2QHu4jFvQGcM4YEWCyFmhUqaP1ZCvMn4jaJMWIU4RVCXnaknwTRrIqCa7VwxsYVXLdG2z3ehX%2B%2F34hoPv%2FN4wqnBtLZGBuXCudmlBKwIrp99W3W8Toj631rtmDVCxxSmAu37FgN7LRZLX1aNRx4VJsG%2FpRRiwzFpikwXw2popvk5HxytjbrmvguYxB59i6NrJqBGbX7n5ktaFXotau9U0JnDatiDJPwDE%2FlayvGeSNjB5sk%2FFu2qE%2Fa8okHQIiXcF4qwUXZ2sX76wW8%3D&nvMid=24266408083&catId=50001332",null,{"$f":"IF(G67=0,H67,IF(AND(G67=0,H67=0),I67,G67))","v":"https://cr.shopping.naver.com/adcr.nhn?x=0SGsqdcx2P1gO2lvkf3Zxf%2F%2F%2Fw%3D%3Ds5jp7enKl9QT5xyc3EDUQaZBq2R1JZn%2Fv3UDDPGczdP7%2BV2Z1R9fh6msUn3l%2FMjx5K8TC%2BHmdsH2cpZh1cj3QMVp1BvIvuxTO2AS%2BvhSqjIU9Jl2wDM%2FAWKfycVx%2FkE3IfBqS3mXuWwE3MZp%2BCjkIC0gAn8lD2%2BxrgblrBqYwPdWug%2B9sjA7rHdeMLkY%2BwIMUMfF7ODc3WnM6LUARe6iFgvV2raiCF7aFk4I1%2BRMpbA46%2FEXhZgbhtRjphLcAni%2FciitGqoWNKiHOCPjKnfgRA8uxJYlMD%2BCjtqS%2FXLNFGbVthMLLkE5u%2BEmsBzTOOCHE334rL%2BbR36BhYe0R%2FrUmjgBSTS1sRv49oBHxm%2Bxq6HivxJTg3rudbhkuv4uvVGSgprIbu8OCQaCX%2BrgbkD%2FlgBZ6uFodlyZ9bfk20%2BE%2B0r1VtkruvLA17LMqLPhlM2kKPoVRGKE69U0rr5qui8URdqOtceUW2QHu4jFvQGcM4YEWCyFmhUqaP1ZCvMn4jaJMWIU4RVCXnaknwTRrIqCa7VwxsYVXLdG2z3ehX%2B%2F34hoPv%2FN4wqnBtLZGBuXCudmlBKwIrp99W3W8Toj631rtmDVCxxSmAu37FgN7LRZLX1aNRx4VJsG%2FpRRiwzFpikwXw2popvk5HxytjbrmvguYxB59i6NrJqBGbX7n5ktaFXotau9U0JnDatiDJPwDE%2FlayvGeSNjB5sk%2FFu2qE%2Fa8okHQIiXcF4qwUXZ2sX76wW8%3D&nvMid=24266408083&catId=50001332"},null,{"$f":"+_xlfn.RANK.AVG(Summary!I87,Summary!$I$13:$I$91,1)","v":21},{"$f":"+_xlfn.RANK.AVG(Summary!J87,Summary!$J$13:$J$91,0)","v":29.5},{"$f":"+_xlfn.RANK.AVG(Summary!K87,Summary!$K$13:$K$91,0)","v":14},21.5,21.5]
[39,"[러브포엠] 이케아 PÅHL 폴 책상 화이트,핑크 ,블루,그린 3단높이 조절 책상","LOVE POEM",74900,14,1,null,"https://cr.shopping.naver.com/adcr.nhn?x=4OKawEPFerGUI%2BByGuODW%2F%2F%2F%2Fw%3D%3DsirIln7BSApV%2BLkLgJ9OjkzDwQX85alFhYIDiHRAI5ElJtAyFw1aYn46AJKNp9asDe%2F%2BWLuYlbYgOH3NMwJHmla9kjzAhCfzqXAHj%2FteRfpyiO9cZ9iLBq8rClqnxrHHyb6qQFTvGZCOG08lHer4ShicX2AUq8VPh3PK%2Fo8l8aTkQ30gwb0ZAWnfX3Zzr1ayRKz8gT2KMhp%2BMKJ6Jk3Z%2BSwdS8NtJWn4dCAHfYcCdS7CDivgLUT8vYh1TsqkpNDO5gGwmPNX%2Fe%2BXkuZ30duRQYj%2FN1gL%2FBgCKENDMCz1nm%2F2mFFdr%2BSQW0%2FFEfcVQM5IPoDPxy%2F0R0S%2FsURXb68N1on3ERyFkjtvUjCWoeUuIcI%2FjA3CoXKSzEgMvSL8%2Fvu8HjB5%2BwQwTWqlzZqCmwHkzLzpMtTvF9VEIl205U3bDH8jAO9y8QxacTiEyHFDQwCpwTSmv20LU4Tz4yxVQiAhn1d2U2nPuyq0%2F%2BIzd%2BgXwUsUSEUORBKlOsHZxck9Gi5c0DvgLtyr7wv03XtmitGvUQePzIs9w9SL07adRVW6xpOilDslwvVnIx2yVxEamH6cIlWs2ie5mS8YCzalIwycsUD4hM85NwbjunrLgLz0TGt%2FJ777AnIahW533P2fpd8TftqlHFGEdLglK%2BFxTEVXnp%2BR79U%2F6Az3gE9mQ%2Flgn57E%3D&nvMid=82745285666&catId=50001332","https://m.smartstore.naver.com/main/products/5200764037",{"$f":"IF(G68=0,H68,IF(AND(G68=0,H68=0),I68,G68))","v":"https://cr.shopping.naver.com/adcr.nhn?x=4OKawEPFerGUI%2BByGuODW%2F%2F%2F%2Fw%3D%3DsirIln7BSApV%2BLkLgJ9OjkzDwQX85alFhYIDiHRAI5ElJtAyFw1aYn46AJKNp9asDe%2F%2BWLuYlbYgOH3NMwJHmla9kjzAhCfzqXAHj%2FteRfpyiO9cZ9iLBq8rClqnxrHHyb6qQFTvGZCOG08lHer4ShicX2AUq8VPh3PK%2Fo8l8aTkQ30gwb0ZAWnfX3Zzr1ayRKz8gT2KMhp%2BMKJ6Jk3Z%2BSwdS8NtJWn4dCAHfYcCdS7CDivgLUT8vYh1TsqkpNDO5gGwmPNX%2Fe%2BXkuZ30duRQYj%2FN1gL%2FBgCKENDMCz1nm%2F2mFFdr%2BSQW0%2FFEfcVQM5IPoDPxy%2F0R0S%2FsURXb68N1on3ERyFkjtvUjCWoeUuIcI%2FjA3CoXKSzEgMvSL8%2Fvu8HjB5%2BwQwTWqlzZqCmwHkzLzpMtTvF9VEIl205U3bDH8jAO9y8QxacTiEyHFDQwCpwTSmv20LU4Tz4yxVQiAhn1d2U2nPuyq0%2F%2BIzd%2BgXwUsUSEUORBKlOsHZxck9Gi5c0DvgLtyr7wv03XtmitGvUQePzIs9w9SL07adRVW6xpOilDslwvVnIx2yVxEamH6cIlWs2ie5mS8YCzalIwycsUD4hM85NwbjunrLgLz0TGt%2FJ777AnIahW533P2fpd8TftqlHFGEdLglK%2BFxTEVXnp%2BR79U%2F6Az3gE9mQ%2Flgn57E%3D&nvMid=82745285666&catId=50001332"},null,{"$f":"+_xlfn.RANK.AVG(Summary!I89,Summary!$I$13:$I$91,1)","v":3},{"$f":"+_xlfn.RANK.AVG(Summary!J89,Summary!$J$13:$J$91,0)","v":17},{"$f":"+_xlfn.RANK.AVG(Summary!K89,Summary!$K$13:$K$91,0)","v":38.5},19.5,16.5]
[40,"일룸 이타카네오 1400폭 7단 모션데스크 세트",null,1318000,0,32,null,"https://cr.shopping.naver.com/adcr.nhn?x=Y4DYOAico1shZ3TXKhCYkf%2F%2F%2Fw%3D%3DsEquuEIOf9GNSknSh4ymUH%2FkZWnoXZsFUtrkQiwo0X%2BIO0U7iBuW5jhI3nQa2BPSOMfyWS3atX3UXR0fWNprtKuFKmBN2jNgyx1fu2c2mFUdJ%2BmDaejXokPQBEaOjG2CKSRbFZoE9rkTcApB8DXr1fci30QtKP1mA7BYZPpxeJLexWvZfe2todmJfmpbNrXnqalteSokYOOMGAoDzIWsIM1x12x6FjR%2Bt3FBU03GHUKfB2Em03XMO49bLEPTDsSqpJl2PL5NanwBSvSvU4lYkp9KMO7iVYl1eD%2B6cluKu9Ibxa1S4%2B1DlHYjQhLW4IUVRy%2F6MHZ6u%2F5n6uuzlUc6JNEuUiTS4CHUtVxQrWeRhExiJpQqGIoOXyz50fDqhREx6ISFv7n5uAItYPm5%2BaPBVoKp2UIUlyIA5IF5YG%2FASKaHXdXtFNgUvdVF64J9fEBQxoCF9uZFzpP1D3UyqhUgjqvMz%2BSW9CAAPbCJoa%2BdYtl17yS5AZqF58g0cLzWryjiQblcp7xAl3oSnp4V8XZvMAFzB%2FnZaokmD%2BgCM4SN4RNqDuvmco3han7Wsfn4ZRv4TznoaR4i9bKSCc778rYnZqh%2FgurAzuZxMjlE%2B4UQMD%2Fn%2BrLgUB9VevFUnT%2BIRbg1YzzjzRgPaUhINhyalJN%2BnZ5aaZ22F%2Bx4VuPmDisC1N0IOEsHC78VBLnFZh%2FnDobeN&nvMid=18508703233&catId=50001332",null,{"$f":"IF(G69=0,H69,IF(AND(G69=0,H69=0),I69,G69))","v":"https://cr.shopping.naver.com/adcr.nhn?x=Y4DYOAico1shZ3TXKhCYkf%2F%2F%2Fw%3D%3DsEquuEIOf9GNSknSh4ymUH%2FkZWnoXZsFUtrkQiwo0X%2BIO0U7iBuW5jhI3nQa2BPSOMfyWS3atX3UXR0fWNprtKuFKmBN2jNgyx1fu2c2mFUdJ%2BmDaejXokPQBEaOjG2CKSRbFZoE9rkTcApB8DXr1fci30QtKP1mA7BYZPpxeJLexWvZfe2todmJfmpbNrXnqalteSokYOOMGAoDzIWsIM1x12x6FjR%2Bt3FBU03GHUKfB2Em03XMO49bLEPTDsSqpJl2PL5NanwBSvSvU4lYkp9KMO7iVYl1eD%2B6cluKu9Ibxa1S4%2B1DlHYjQhLW4IUVRy%2F6MHZ6u%2F5n6uuzlUc6JNEuUiTS4CHUtVxQrWeRhExiJpQqGIoOXyz50fDqhREx6ISFv7n5uAItYPm5%2BaPBVoKp2UIUlyIA5IF5YG%2FASKaHXdXtFNgUvdVF64J9fEBQxoCF9uZFzpP1D3UyqhUgjqvMz%2BSW9CAAPbCJoa%2BdYtl17yS5AZqF58g0cLzWryjiQblcp7xAl3oSnp4V8XZvMAFzB%2FnZaokmD%2BgCM4SN4RNqDuvmco3han7Wsfn4ZRv4TznoaR4i9bKSCc778rYnZqh%2FgurAzuZxMjlE%2B4UQMD%2Fn%2BrLgUB9VevFUnT%2BIRbg1YzzjzRgPaUhINhyalJN%2BnZ5aaZ22F%2Bx4VuPmDisC1N0IOEsHC78VBLnFZh%2FnDobeN&nvMid=18508703233&catId=50001332"},null,{"$f":"+_xlfn.RANK.AVG(Summary!I91,Summary!$I$13:$I$91,1)","v":40},{"$f":"+_xlfn.RANK.AVG(Summary!J91,Summary!$J$13:$J$91,0)","v":29.5},{"$f":"+_xlfn.RANK.AVG(Summary!K91,Summary!$K$13:$K$91,0)","v":32},33.833333333333336,39]
[null,null,null,null,null,null,null,null,null,null,null,null,40]